Council Name,Date,TransNo,Amount � (Excl VAT),Unclaimed VAT,Supplier name,Supplier Category,Expense Area,Expense Type
London Borough of Sutton,01/05/2022,50204495,"16,562.68",0,4D Care Ltd,SOCIAL SERVICES RESIDENTIAL,Peoples Services,Residential Care-Children
London Borough of Sutton,04/05/2022,50204398,"56,087.10",0,A Wilderness Way Group Ltd,CHILDREN'S SERVICES - RESIDENTIAL,Peoples Services,Residential Care-Children
London Borough of Sutton,04/05/2022,50204483,"5,820.00",0,A Wilderness Way Ltd,CHILDREN'S SERVICES - FOSTERING & ADOPTION SERVICES,Peoples Services,Residential Care-Children
London Borough of Sutton,04/05/2022,50204494,"30,070.00",0,A Wilderness Way Ltd,CHILDREN'S SERVICES - FOSTERING & ADOPTION SERVICES,Peoples Services,Residential Care-Children
London Borough of Sutton,10/06/2022,50204617,"3,848.24",0,Abbey Care Centre,SOCIAL SERVICES RESIDENTIAL,Peoples Services,Nursing Care - Ext Provider
London Borough of Sutton,10/06/2022,50204617,-750.4,0,Abbey Care Centre,SOCIAL SERVICES RESIDENTIAL,Peoples Services,Nursing Care - 3rd party top up payment
London Borough of Sutton,10/06/2022,50204807,-750.4,0,Abbey Care Centre,SOCIAL SERVICES RESIDENTIAL,Peoples Services,Nursing Care - 3rd party top up payment
London Borough of Sutton,10/06/2022,50204807,"3,848.24",0,Abbey Care Centre,SOCIAL SERVICES RESIDENTIAL,Peoples Services,Nursing Care Short Term
London Borough of Sutton,10/06/2022,50204807,"-1,492.80",0,Abbey Care Centre,SOCIAL SERVICES RESIDENTIAL,Peoples Services,Nursing Care - 3rd party top up payment
London Borough of Sutton,10/06/2022,50204887,-750.4,0,Abbey Care Centre,SOCIAL SERVICES RESIDENTIAL,Peoples Services,Nursing Care - 3rd party top up payment
London Borough of Sutton,10/06/2022,50204887,"3,848.24",0,Abbey Care Centre,SOCIAL SERVICES RESIDENTIAL,Peoples Services,Nursing Care Short Term
London Borough of Sutton,10/06/2022,50204982,-750.4,0,Abbey Care Centre,SOCIAL SERVICES RESIDENTIAL,Peoples Services,Nursing Care - 3rd party top up payment
London Borough of Sutton,10/06/2022,50204982,"3,848.24",0,Abbey Care Centre,SOCIAL SERVICES RESIDENTIAL,Peoples Services,Nursing Care Short Term
London Borough of Sutton,07/06/2022,50199332,827.55,0,ABC Pre-School Beddington LLP,GRANTS & EX GRATIA PAYMENTS,Peoples Services,Place Funding
London Borough of Sutton,07/06/2022,50199396,"3,870.72",0,ABC Pre-School Beddington LLP,GRANTS & EX GRATIA PAYMENTS,Peoples Services,Place Funding
London Borough of Sutton,23/05/2022,20025140,"5,926.51",0,Absolute Care Services Ltd,SOCIAL SERVICES DAY CARE,Peoples Services,Homecare Core Services
London Borough of Sutton,23/05/2022,20025141,"5,715.81",0,Absolute Care Services Ltd,SOCIAL SERVICES DAY CARE,Peoples Services,Homecare Core Services
London Borough of Sutton,23/05/2022,20025142,"6,794.87",0,Absolute Care Services Ltd,SOCIAL SERVICES DAY CARE,Peoples Services,Homecare Core Services
London Borough of Sutton,24/05/2022,20025161,"2,621.76",0,Absolute Care Services Ltd,SOCIAL SERVICES DAY CARE,Peoples Services,Homecare Core Services
London Borough of Sutton,24/05/2022,20025164,"2,205.48",0,Absolute Care Services Ltd,SOCIAL SERVICES DAY CARE,Peoples Services,Homecare Core Services
London Borough of Sutton,24/05/2022,20025165,"2,019.72",0,Absolute Care Services Ltd,SOCIAL SERVICES DAY CARE,Peoples Services,Homecare Core Services
London Borough of Sutton,30/05/2022,20025457,"6,794.87",0,Absolute Care Services Ltd,SOCIAL SERVICES DAY CARE,Peoples Services,Homecare Core Services
London Borough of Sutton,30/05/2022,20025458,"5,715.81",0,Absolute Care Services Ltd,SOCIAL SERVICES DAY CARE,Peoples Services,Homecare Core Services
London Borough of Sutton,30/05/2022,20025459,"5,926.51",0,Absolute Care Services Ltd,SOCIAL SERVICES DAY CARE,Peoples Services,Homecare Core Services
London Borough of Sutton,01/06/2022,20025688,"1,467.76",0,Absolute Care Services Ltd,SOCIAL SERVICES DAY CARE,Peoples Services,Building Rents
London Borough of Sutton,06/06/2022,20026107,"5,926.51",0,Absolute Care Services Ltd,SOCIAL SERVICES DAY CARE,Peoples Services,Homecare Core Services
London Borough of Sutton,06/06/2022,20026108,"6,794.87",0,Absolute Care Services Ltd,SOCIAL SERVICES DAY CARE,Peoples Services,Homecare Core Services
London Borough of Sutton,06/06/2022,20026109,"5,715.81",0,Absolute Care Services Ltd,SOCIAL SERVICES DAY CARE,Peoples Services,Homecare Core Services
London Borough of Sutton,13/06/2022,20026288,"5,926.51",0,Absolute Care Services Ltd,SOCIAL SERVICES DAY CARE,Peoples Services,Homecare Core Services
London Borough of Sutton,13/06/2022,20026289,"5,715.81",0,Absolute Care Services Ltd,SOCIAL SERVICES DAY CARE,Peoples Services,Homecare Core Services
London Borough of Sutton,13/06/2022,20026290,"6,794.87",0,Absolute Care Services Ltd,SOCIAL SERVICES DAY CARE,Peoples Services,Homecare Core Services
London Borough of Sutton,20/06/2022,20026765,"6,794.87",0,Absolute Care Services Ltd,SOCIAL SERVICES DAY CARE,Peoples Services,Homecare Core Services
London Borough of Sutton,20/06/2022,20026766,"5,926.51",0,Absolute Care Services Ltd,SOCIAL SERVICES DAY CARE,Peoples Services,Homecare Core Services
London Borough of Sutton,22/05/2022,50198336,734.72,0,Absolute Care Services Ltd,SOCIAL SERVICES DAY CARE,Peoples Services,Home Care Services
London Borough of Sutton,22/05/2022,50198336,26.24,0,Absolute Care Services Ltd,SOCIAL SERVICES DAY CARE,Peoples Services,Home Care Services
London Borough of Sutton,22/05/2022,50198341,118.85,0,Absolute Care Services Ltd,SOCIAL SERVICES DAY CARE,Peoples Services,Home Care Services
London Borough of Sutton,22/05/2022,50198341,153.58,0,Absolute Care Services Ltd,SOCIAL SERVICES DAY CARE,Peoples Services,Home Care Services
London Borough of Sutton,22/05/2022,50198341,322.52,0,Absolute Care Services Ltd,SOCIAL SERVICES DAY CARE,Peoples Services,Home Care Services
London Borough of Sutton,22/05/2022,50198359,551.18,0,Absolute Care Services Ltd,SOCIAL SERVICES DAY CARE,Peoples Services,Home Care Services
London Borough of Sutton,22/05/2022,50198380,551.18,0,Absolute Care Services Ltd,SOCIAL SERVICES DAY CARE,Peoples Services,Home Care Services
London Borough of Sutton,22/05/2022,50198406,795.9,0,Absolute Care Services Ltd,SOCIAL SERVICES DAY CARE,Peoples Services,Home Care Services
London Borough of Sutton,22/05/2022,50198406,104.94,0,Absolute Care Services Ltd,SOCIAL SERVICES DAY CARE,Peoples Services,Home Care Services
London Borough of Sutton,22/05/2022,50198408,64.32,0,Absolute Care Services Ltd,SOCIAL SERVICES DAY CARE,Peoples Services,Home Care Services
London Borough of Sutton,22/05/2022,50198408,562.8,0,Absolute Care Services Ltd,SOCIAL SERVICES DAY CARE,Peoples Services,Home Care Services
London Borough of Sutton,22/05/2022,50198415,730.25,0,Absolute Care Services Ltd,SOCIAL SERVICES DAY CARE,Peoples Services,Home Care Services
London Borough of Sutton,22/05/2022,50198415,48.14,0,Absolute Care Services Ltd,SOCIAL SERVICES DAY CARE,Peoples Services,Home Care Services
London Borough of Sutton,22/05/2022,50198430,612.36,0,Absolute Care Services Ltd,SOCIAL SERVICES DAY CARE,Peoples Services,Home Care Services
London Borough of Sutton,22/05/2022,50198431,16.08,0,Absolute Care Services Ltd,SOCIAL SERVICES DAY CARE,Peoples Services,Home Care Services
London Borough of Sutton,22/05/2022,50198431,506.52,0,Absolute Care Services Ltd,SOCIAL SERVICES DAY CARE,Peoples Services,Home Care Services
London Borough of Sutton,22/05/2022,50198432,48.24,0,Absolute Care Services Ltd,SOCIAL SERVICES DAY CARE,Peoples Services,Home Care Services
London Borough of Sutton,22/05/2022,50198432,498.48,0,Absolute Care Services Ltd,SOCIAL SERVICES DAY CARE,Peoples Services,Home Care Services
London Borough of Sutton,22/05/2022,50198445,551.19,0,Absolute Care Services Ltd,SOCIAL SERVICES DAY CARE,Peoples Services,Home Care Services
London Borough of Sutton,22/05/2022,50198445,34.98,0,Absolute Care Services Ltd,SOCIAL SERVICES DAY CARE,Peoples Services,Home Care Services
London Borough of Sutton,22/05/2022,50198449,526.49,0,Absolute Care Services Ltd,SOCIAL SERVICES DAY CARE,Peoples Services,Home Care Services
London Borough of Sutton,22/05/2022,50198449,75.21,0,Absolute Care Services Ltd,SOCIAL SERVICES DAY CARE,Peoples Services,Home Care Services
London Borough of Sutton,22/05/2022,50198449,105.82,0,Absolute Care Services Ltd,SOCIAL SERVICES DAY CARE,Peoples Services,Home Care Services
London Borough of Sutton,22/05/2022,50198451,409.11,0,Absolute Care Services Ltd,SOCIAL SERVICES DAY CARE,Peoples Services,Home Care Services
London Borough of Sutton,22/05/2022,50198451,12.99,0,Absolute Care Services Ltd,SOCIAL SERVICES DAY CARE,Peoples Services,Home Care Services
London Borough of Sutton,22/05/2022,50198451,100.5,0,Absolute Care Services Ltd,SOCIAL SERVICES DAY CARE,Peoples Services,Home Care Services
London Borough of Sutton,29/05/2022,50198944,734.72,0,Absolute Care Services Ltd,SOCIAL SERVICES DAY CARE,Peoples Services,Home Care Services
London Borough of Sutton,29/05/2022,50198944,26.24,0,Absolute Care Services Ltd,SOCIAL SERVICES DAY CARE,Peoples Services,Home Care Services
London Borough of Sutton,29/05/2022,50198951,118.85,0,Absolute Care Services Ltd,SOCIAL SERVICES DAY CARE,Peoples Services,Home Care Services
London Borough of Sutton,29/05/2022,50198951,153.58,0,Absolute Care Services Ltd,SOCIAL SERVICES DAY CARE,Peoples Services,Home Care Services
London Borough of Sutton,29/05/2022,50198951,322.53,0,Absolute Care Services Ltd,SOCIAL SERVICES DAY CARE,Peoples Services,Home Care Services
London Borough of Sutton,29/05/2022,50198971,551.18,0,Absolute Care Services Ltd,SOCIAL SERVICES DAY CARE,Peoples Services,Home Care Services
London Borough of Sutton,29/05/2022,50198976,48.24,0,Absolute Care Services Ltd,SOCIAL SERVICES DAY CARE,Peoples Services,Home Care Services
London Borough of Sutton,29/05/2022,50198976,506.52,0,Absolute Care Services Ltd,SOCIAL SERVICES DAY CARE,Peoples Services,Home Care Services
London Borough of Sutton,29/05/2022,50198990,551.18,0,Absolute Care Services Ltd,SOCIAL SERVICES DAY CARE,Peoples Services,Home Care Services
London Borough of Sutton,29/05/2022,50199019,795.9,0,Absolute Care Services Ltd,SOCIAL SERVICES DAY CARE,Peoples Services,Home Care Services
London Borough of Sutton,29/05/2022,50199019,104.94,0,Absolute Care Services Ltd,SOCIAL SERVICES DAY CARE,Peoples Services,Home Care Services
London Borough of Sutton,29/05/2022,50199023,64.32,0,Absolute Care Services Ltd,SOCIAL SERVICES DAY CARE,Peoples Services,Home Care Services
London Borough of Sutton,29/05/2022,50199023,562.8,0,Absolute Care Services Ltd,SOCIAL SERVICES DAY CARE,Peoples Services,Home Care Services
London Borough of Sutton,29/05/2022,50199040,734.37,0,Absolute Care Services Ltd,SOCIAL SERVICES DAY CARE,Peoples Services,Home Care Services
London Borough of Sutton,29/05/2022,50199040,48.41,0,Absolute Care Services Ltd,SOCIAL SERVICES DAY CARE,Peoples Services,Home Care Services
London Borough of Sutton,29/05/2022,50199062,612.36,0,Absolute Care Services Ltd,SOCIAL SERVICES DAY CARE,Peoples Services,Home Care Services
London Borough of Sutton,29/05/2022,50199063,16.08,0,Absolute Care Services Ltd,SOCIAL SERVICES DAY CARE,Peoples Services,Home Care Services
London Borough of Sutton,29/05/2022,50199063,506.52,0,Absolute Care Services Ltd,SOCIAL SERVICES DAY CARE,Peoples Services,Home Care Services
London Borough of Sutton,29/05/2022,50199086,551.19,0,Absolute Care Services Ltd,SOCIAL SERVICES DAY CARE,Peoples Services,Home Care Services
London Borough of Sutton,29/05/2022,50199086,34.98,0,Absolute Care Services Ltd,SOCIAL SERVICES DAY CARE,Peoples Services,Home Care Services
London Borough of Sutton,29/05/2022,50199091,526.49,0,Absolute Care Services Ltd,SOCIAL SERVICES DAY CARE,Peoples Services,Home Care Services
London Borough of Sutton,29/05/2022,50199091,75.21,0,Absolute Care Services Ltd,SOCIAL SERVICES DAY CARE,Peoples Services,Home Care Services
London Borough of Sutton,29/05/2022,50199091,105.82,0,Absolute Care Services Ltd,SOCIAL SERVICES DAY CARE,Peoples Services,Home Care Services
London Borough of Sutton,29/05/2022,50199093,409.11,0,Absolute Care Services Ltd,SOCIAL SERVICES DAY CARE,Peoples Services,Home Care Services
London Borough of Sutton,29/05/2022,50199093,12.99,0,Absolute Care Services Ltd,SOCIAL SERVICES DAY CARE,Peoples Services,Home Care Services
London Borough of Sutton,29/05/2022,50199093,100.5,0,Absolute Care Services Ltd,SOCIAL SERVICES DAY CARE,Peoples Services,Home Care Services
London Borough of Sutton,05/06/2022,50207221,551.18,0,Absolute Care Services Ltd,SOCIAL SERVICES DAY CARE,Peoples Services,Home Care Services
London Borough of Sutton,05/06/2022,50207244,551.19,0,Absolute Care Services Ltd,SOCIAL SERVICES DAY CARE,Peoples Services,Home Care Services
London Borough of Sutton,05/06/2022,50207270,551.18,0,Absolute Care Services Ltd,SOCIAL SERVICES DAY CARE,Peoples Services,Home Care Services
London Borough of Sutton,05/06/2022,50207270,34.98,0,Absolute Care Services Ltd,SOCIAL SERVICES DAY CARE,Peoples Services,Home Care Services
London Borough of Sutton,05/06/2022,50207283,795.9,0,Absolute Care Services Ltd,SOCIAL SERVICES DAY CARE,Peoples Services,Home Care Services
London Borough of Sutton,05/06/2022,50207283,104.94,0,Absolute Care Services Ltd,SOCIAL SERVICES DAY CARE,Peoples Services,Home Care Services
London Borough of Sutton,05/06/2022,50207289,64.32,0,Absolute Care Services Ltd,SOCIAL SERVICES DAY CARE,Peoples Services,Home Care Services
London Borough of Sutton,05/06/2022,50207289,562.8,0,Absolute Care Services Ltd,SOCIAL SERVICES DAY CARE,Peoples Services,Home Care Services
London Borough of Sutton,05/06/2022,50207298,795.9,0,Absolute Care Services Ltd,SOCIAL SERVICES DAY CARE,Peoples Services,Home Care Services
London Borough of Sutton,05/06/2022,50207298,52.47,0,Absolute Care Services Ltd,SOCIAL SERVICES DAY CARE,Peoples Services,Home Care Services
London Borough of Sutton,05/06/2022,50207315,612.36,0,Absolute Care Services Ltd,SOCIAL SERVICES DAY CARE,Peoples Services,Home Care Services
London Borough of Sutton,05/06/2022,50207316,16.08,0,Absolute Care Services Ltd,SOCIAL SERVICES DAY CARE,Peoples Services,Home Care Services
London Borough of Sutton,05/06/2022,50207316,506.52,0,Absolute Care Services Ltd,SOCIAL SERVICES DAY CARE,Peoples Services,Home Care Services
London Borough of Sutton,05/06/2022,50207317,48.24,0,Absolute Care Services Ltd,SOCIAL SERVICES DAY CARE,Peoples Services,Home Care Services
London Borough of Sutton,05/06/2022,50207317,506.52,0,Absolute Care Services Ltd,SOCIAL SERVICES DAY CARE,Peoples Services,Home Care Services
London Borough of Sutton,05/06/2022,50207336,526.49,0,Absolute Care Services Ltd,SOCIAL SERVICES DAY CARE,Peoples Services,Home Care Services
London Borough of Sutton,05/06/2022,50207336,75.21,0,Absolute Care Services Ltd,SOCIAL SERVICES DAY CARE,Peoples Services,Home Care Services
London Borough of Sutton,05/06/2022,50207336,105.82,0,Absolute Care Services Ltd,SOCIAL SERVICES DAY CARE,Peoples Services,Home Care Services
London Borough of Sutton,05/06/2022,50207337,409.11,0,Absolute Care Services Ltd,SOCIAL SERVICES DAY CARE,Peoples Services,Home Care Services
London Borough of Sutton,05/06/2022,50207337,12.99,0,Absolute Care Services Ltd,SOCIAL SERVICES DAY CARE,Peoples Services,Home Care Services
London Borough of Sutton,05/06/2022,50207337,100.5,0,Absolute Care Services Ltd,SOCIAL SERVICES DAY CARE,Peoples Services,Home Care Services
London Borough of Sutton,05/06/2022,50207339,734.72,0,Absolute Care Services Ltd,SOCIAL SERVICES DAY CARE,Peoples Services,Home Care Services
London Borough of Sutton,05/06/2022,50207339,26.24,0,Absolute Care Services Ltd,SOCIAL SERVICES DAY CARE,Peoples Services,Home Care Services
London Borough of Sutton,05/06/2022,50207344,118.85,0,Absolute Care Services Ltd,SOCIAL SERVICES DAY CARE,Peoples Services,Home Care Services
London Borough of Sutton,05/06/2022,50207344,153.58,0,Absolute Care Services Ltd,SOCIAL SERVICES DAY CARE,Peoples Services,Home Care Services
London Borough of Sutton,05/06/2022,50207344,322.53,0,Absolute Care Services Ltd,SOCIAL SERVICES DAY CARE,Peoples Services,Home Care Services
London Borough of Sutton,12/06/2022,50207868,526.49,0,Absolute Care Services Ltd,SOCIAL SERVICES DAY CARE,Peoples Services,Home Care Services
London Borough of Sutton,12/06/2022,50207868,75.21,0,Absolute Care Services Ltd,SOCIAL SERVICES DAY CARE,Peoples Services,Home Care Services
London Borough of Sutton,12/06/2022,50207868,105.82,0,Absolute Care Services Ltd,SOCIAL SERVICES DAY CARE,Peoples Services,Home Care Services
London Borough of Sutton,12/06/2022,50207869,409.11,0,Absolute Care Services Ltd,SOCIAL SERVICES DAY CARE,Peoples Services,Home Care Services
London Borough of Sutton,12/06/2022,50207869,12.99,0,Absolute Care Services Ltd,SOCIAL SERVICES DAY CARE,Peoples Services,Home Care Services
London Borough of Sutton,12/06/2022,50207869,100.5,0,Absolute Care Services Ltd,SOCIAL SERVICES DAY CARE,Peoples Services,Home Care Services
London Borough of Sutton,12/06/2022,50207886,118.85,0,Absolute Care Services Ltd,SOCIAL SERVICES DAY CARE,Peoples Services,Home Care Services
London Borough of Sutton,12/06/2022,50207886,153.58,0,Absolute Care Services Ltd,SOCIAL SERVICES DAY CARE,Peoples Services,Home Care Services
London Borough of Sutton,12/06/2022,50207886,322.53,0,Absolute Care Services Ltd,SOCIAL SERVICES DAY CARE,Peoples Services,Home Care Services
London Borough of Sutton,12/06/2022,50207922,612.36,0,Absolute Care Services Ltd,SOCIAL SERVICES DAY CARE,Peoples Services,Home Care Services
London Borough of Sutton,12/06/2022,50207923,16.08,0,Absolute Care Services Ltd,SOCIAL SERVICES DAY CARE,Peoples Services,Home Care Services
London Borough of Sutton,12/06/2022,50207923,506.52,0,Absolute Care Services Ltd,SOCIAL SERVICES DAY CARE,Peoples Services,Home Care Services
London Borough of Sutton,12/06/2022,50207928,48.24,0,Absolute Care Services Ltd,SOCIAL SERVICES DAY CARE,Peoples Services,Home Care Services
London Borough of Sutton,12/06/2022,50207928,506.52,0,Absolute Care Services Ltd,SOCIAL SERVICES DAY CARE,Peoples Services,Home Care Services
London Borough of Sutton,12/06/2022,50207929,551.18,0,Absolute Care Services Ltd,SOCIAL SERVICES DAY CARE,Peoples Services,Home Care Services
London Borough of Sutton,12/06/2022,50207949,551.18,0,Absolute Care Services Ltd,SOCIAL SERVICES DAY CARE,Peoples Services,Home Care Services
London Borough of Sutton,12/06/2022,50207949,34.98,0,Absolute Care Services Ltd,SOCIAL SERVICES DAY CARE,Peoples Services,Home Care Services
London Borough of Sutton,12/06/2022,50207979,970.8,0,Absolute Care Services Ltd,SOCIAL SERVICES DAY CARE,Peoples Services,Home Care Services
London Borough of Sutton,12/06/2022,50207979,104.94,0,Absolute Care Services Ltd,SOCIAL SERVICES DAY CARE,Peoples Services,Home Care Services
London Borough of Sutton,12/06/2022,50207986,64.32,0,Absolute Care Services Ltd,SOCIAL SERVICES DAY CARE,Peoples Services,Home Care Services
London Borough of Sutton,12/06/2022,50207986,562.8,0,Absolute Care Services Ltd,SOCIAL SERVICES DAY CARE,Peoples Services,Home Care Services
London Borough of Sutton,12/06/2022,50208013,783.59,0,Absolute Care Services Ltd,SOCIAL SERVICES DAY CARE,Peoples Services,Home Care Services
London Borough of Sutton,12/06/2022,50208013,51.66,0,Absolute Care Services Ltd,SOCIAL SERVICES DAY CARE,Peoples Services,Home Care Services
London Borough of Sutton,12/06/2022,50208033,725.97,0,Absolute Care Services Ltd,SOCIAL SERVICES DAY CARE,Peoples Services,Home Care Services
London Borough of Sutton,12/06/2022,50208033,26.24,0,Absolute Care Services Ltd,SOCIAL SERVICES DAY CARE,Peoples Services,Home Care Services
London Borough of Sutton,12/06/2022,50208070,551.18,0,Absolute Care Services Ltd,SOCIAL SERVICES DAY CARE,Peoples Services,Home Care Services
London Borough of Sutton,15/05/2022,50208916,64.32,0,Absolute Care Services Ltd,SOCIAL SERVICES DAY CARE,Peoples Services,Home Care Services
London Borough of Sutton,15/05/2022,50208916,562.8,0,Absolute Care Services Ltd,SOCIAL SERVICES DAY CARE,Peoples Services,Home Care Services
London Borough of Sutton,15/05/2022,50208920,16.08,0,Absolute Care Services Ltd,SOCIAL SERVICES DAY CARE,Peoples Services,Home Care Services
London Borough of Sutton,15/05/2022,50208920,506.52,0,Absolute Care Services Ltd,SOCIAL SERVICES DAY CARE,Peoples Services,Home Care Services
London Borough of Sutton,15/05/2022,50208921,48.24,0,Absolute Care Services Ltd,SOCIAL SERVICES DAY CARE,Peoples Services,Home Care Services
London Borough of Sutton,15/05/2022,50208921,506.52,0,Absolute Care Services Ltd,SOCIAL SERVICES DAY CARE,Peoples Services,Home Care Services
London Borough of Sutton,15/05/2022,50208931,734.72,0,Absolute Care Services Ltd,SOCIAL SERVICES DAY CARE,Peoples Services,Home Care Services
London Borough of Sutton,15/05/2022,50208931,26.24,0,Absolute Care Services Ltd,SOCIAL SERVICES DAY CARE,Peoples Services,Home Care Services
London Borough of Sutton,15/05/2022,50208933,118.85,0,Absolute Care Services Ltd,SOCIAL SERVICES DAY CARE,Peoples Services,Home Care Services
London Borough of Sutton,15/05/2022,50208933,153.58,0,Absolute Care Services Ltd,SOCIAL SERVICES DAY CARE,Peoples Services,Home Care Services
London Borough of Sutton,15/05/2022,50208933,322.53,0,Absolute Care Services Ltd,SOCIAL SERVICES DAY CARE,Peoples Services,Home Care Services
London Borough of Sutton,15/05/2022,50208947,551.18,0,Absolute Care Services Ltd,SOCIAL SERVICES DAY CARE,Peoples Services,Home Care Services
London Borough of Sutton,15/05/2022,50208949,409.11,0,Absolute Care Services Ltd,SOCIAL SERVICES DAY CARE,Peoples Services,Home Care Services
London Borough of Sutton,15/05/2022,50208949,12.99,0,Absolute Care Services Ltd,SOCIAL SERVICES DAY CARE,Peoples Services,Home Care Services
London Borough of Sutton,15/05/2022,50208949,100.5,0,Absolute Care Services Ltd,SOCIAL SERVICES DAY CARE,Peoples Services,Home Care Services
London Borough of Sutton,15/05/2022,50208964,551.18,0,Absolute Care Services Ltd,SOCIAL SERVICES DAY CARE,Peoples Services,Home Care Services
London Borough of Sutton,15/05/2022,50208987,795.9,0,Absolute Care Services Ltd,SOCIAL SERVICES DAY CARE,Peoples Services,Home Care Services
London Borough of Sutton,15/05/2022,50208987,104.94,0,Absolute Care Services Ltd,SOCIAL SERVICES DAY CARE,Peoples Services,Home Care Services
London Borough of Sutton,15/05/2022,50209004,545.64,0,Absolute Care Services Ltd,SOCIAL SERVICES DAY CARE,Peoples Services,Home Care Services
London Borough of Sutton,15/05/2022,50209004,35.97,0,Absolute Care Services Ltd,SOCIAL SERVICES DAY CARE,Peoples Services,Home Care Services
London Borough of Sutton,15/05/2022,50209019,603.63,0,Absolute Care Services Ltd,SOCIAL SERVICES DAY CARE,Peoples Services,Home Care Services
London Borough of Sutton,15/05/2022,50209043,526.49,0,Absolute Care Services Ltd,SOCIAL SERVICES DAY CARE,Peoples Services,Home Care Services
London Borough of Sutton,15/05/2022,50209043,75.21,0,Absolute Care Services Ltd,SOCIAL SERVICES DAY CARE,Peoples Services,Home Care Services
London Borough of Sutton,15/05/2022,50209043,105.82,0,Absolute Care Services Ltd,SOCIAL SERVICES DAY CARE,Peoples Services,Home Care Services
London Borough of Sutton,19/06/2022,50212398,526.49,0,Absolute Care Services Ltd,SOCIAL SERVICES DAY CARE,Peoples Services,Home Care Services
London Borough of Sutton,19/06/2022,50212398,75.21,0,Absolute Care Services Ltd,SOCIAL SERVICES DAY CARE,Peoples Services,Home Care Services
London Borough of Sutton,19/06/2022,50212398,105.82,0,Absolute Care Services Ltd,SOCIAL SERVICES DAY CARE,Peoples Services,Home Care Services
London Borough of Sutton,19/06/2022,50212399,409.11,0,Absolute Care Services Ltd,SOCIAL SERVICES DAY CARE,Peoples Services,Home Care Services
London Borough of Sutton,19/06/2022,50212399,12.99,0,Absolute Care Services Ltd,SOCIAL SERVICES DAY CARE,Peoples Services,Home Care Services
London Borough of Sutton,19/06/2022,50212399,100.5,0,Absolute Care Services Ltd,SOCIAL SERVICES DAY CARE,Peoples Services,Home Care Services
London Borough of Sutton,19/06/2022,50212411,118.85,0,Absolute Care Services Ltd,SOCIAL SERVICES DAY CARE,Peoples Services,Home Care Services
London Borough of Sutton,19/06/2022,50212411,153.58,0,Absolute Care Services Ltd,SOCIAL SERVICES DAY CARE,Peoples Services,Home Care Services
London Borough of Sutton,19/06/2022,50212411,322.53,0,Absolute Care Services Ltd,SOCIAL SERVICES DAY CARE,Peoples Services,Home Care Services
London Borough of Sutton,19/06/2022,50212506,64.32,0,Absolute Care Services Ltd,SOCIAL SERVICES DAY CARE,Peoples Services,Home Care Services
London Borough of Sutton,19/06/2022,50212506,562.8,0,Absolute Care Services Ltd,SOCIAL SERVICES DAY CARE,Peoples Services,Home Care Services
London Borough of Sutton,19/06/2022,50212543,16.08,0,Absolute Care Services Ltd,SOCIAL SERVICES DAY CARE,Peoples Services,Home Care Services
London Borough of Sutton,19/06/2022,50212543,506.52,0,Absolute Care Services Ltd,SOCIAL SERVICES DAY CARE,Peoples Services,Home Care Services
London Borough of Sutton,19/06/2022,50212544,48.24,0,Absolute Care Services Ltd,SOCIAL SERVICES DAY CARE,Peoples Services,Home Care Services
London Borough of Sutton,19/06/2022,50212544,506.52,0,Absolute Care Services Ltd,SOCIAL SERVICES DAY CARE,Peoples Services,Home Care Services
London Borough of Sutton,19/06/2022,50212568,734.72,0,Absolute Care Services Ltd,SOCIAL SERVICES DAY CARE,Peoples Services,Home Care Services
London Borough of Sutton,19/06/2022,50212568,26.24,0,Absolute Care Services Ltd,SOCIAL SERVICES DAY CARE,Peoples Services,Home Care Services
London Borough of Sutton,19/06/2022,50212592,551.18,0,Absolute Care Services Ltd,SOCIAL SERVICES DAY CARE,Peoples Services,Home Care Services
London Borough of Sutton,19/06/2022,50212611,795.9,0,Absolute Care Services Ltd,SOCIAL SERVICES DAY CARE,Peoples Services,Home Care Services
London Borough of Sutton,19/06/2022,50212611,104.94,0,Absolute Care Services Ltd,SOCIAL SERVICES DAY CARE,Peoples Services,Home Care Services
London Borough of Sutton,19/06/2022,50212621,771.28,0,Absolute Care Services Ltd,SOCIAL SERVICES DAY CARE,Peoples Services,Home Care Services
London Borough of Sutton,19/06/2022,50212621,50.85,0,Absolute Care Services Ltd,SOCIAL SERVICES DAY CARE,Peoples Services,Home Care Services
London Borough of Sutton,19/06/2022,50212633,612.36,0,Absolute Care Services Ltd,SOCIAL SERVICES DAY CARE,Peoples Services,Home Care Services
London Borough of Sutton,19/06/2022,50212646,551.18,0,Absolute Care Services Ltd,SOCIAL SERVICES DAY CARE,Peoples Services,Home Care Services
London Borough of Sutton,19/06/2022,50212646,34.98,0,Absolute Care Services Ltd,SOCIAL SERVICES DAY CARE,Peoples Services,Home Care Services
London Borough of Sutton,16/06/2022,50207725,"4,671.40",0,Accomplish Group Ltd,SOCIAL SERVICES RESIDENTIAL,Peoples Services,Supported Living
London Borough of Sutton,16/06/2022,50207726,"3,080.00",0,Accomplish Group Ltd,SOCIAL SERVICES RESIDENTIAL,Peoples Services,Supported Living
London Borough of Sutton,16/06/2022,50207727,"5,410.61",0,Accomplish Group Ltd,SOCIAL SERVICES RESIDENTIAL,Peoples Services,Supported Living
London Borough of Sutton,10/06/2022,50204522,"6,845.04",0,Achieve Together Limited,SOCIAL SERVICES RESIDENTIAL,Peoples Services,Residential Care - Ext Provider
London Borough of Sutton,10/06/2022,50204522,-441.6,0,Achieve Together Limited,SOCIAL SERVICES RESIDENTIAL,Peoples Services,Residential Care - Client Cont ( Net Paymt )
London Borough of Sutton,10/06/2022,50204538,"6,391.60",0,Achieve Together Limited,SOCIAL SERVICES RESIDENTIAL,Peoples Services,Residential Care - Ext Provider
London Borough of Sutton,10/06/2022,50204538,-425.6,0,Achieve Together Limited,SOCIAL SERVICES RESIDENTIAL,Peoples Services,Residential Care - Client Cont ( Net Paymt )
London Borough of Sutton,10/06/2022,50204660,"4,375.48",0,Achieve Together Limited,SOCIAL SERVICES RESIDENTIAL,Peoples Services,Residential Care - Ext Provider
London Borough of Sutton,10/06/2022,50204660,-488.8,0,Achieve Together Limited,SOCIAL SERVICES RESIDENTIAL,Peoples Services,Residential Care - Client Cont ( Net Paymt )
London Borough of Sutton,10/06/2022,50204707,"5,810.56",0,Achieve Together Limited,SOCIAL SERVICES RESIDENTIAL,Peoples Services,Residential Care - Ext Provider
London Borough of Sutton,10/06/2022,50204714,"4,682.44",0,Achieve Together Limited,SOCIAL SERVICES RESIDENTIAL,Peoples Services,Residential Care - Ext Provider
London Borough of Sutton,10/06/2022,50204714,-492.8,0,Achieve Together Limited,SOCIAL SERVICES RESIDENTIAL,Peoples Services,Residential Care - Client Cont ( Net Paymt )
London Borough of Sutton,10/06/2022,50204858,"5,100.00",0,Achieve Together Limited,SOCIAL SERVICES RESIDENTIAL,Peoples Services,Residential Care - Ext Provider
London Borough of Sutton,31/12/2021,50211791,835.2,0,Achieve Together Limited,SOCIAL SERVICES RESIDENTIAL,Peoples Services,Day Care Services
London Borough of Sutton,04/05/2022,50204393,"16,784.33",0,Acorn Homes UK Ltd,CHILDREN'S SERVICES - FOSTERING & ADOPTION SERVICES,Peoples Services,Residential Care-Children
London Borough of Sutton,10/06/2022,50204600,"3,012.36",0,Acorn Lodge,SOCIAL SERVICES RESIDENTIAL,Peoples Services,Residential Care - Ext Provider
London Borough of Sutton,10/06/2022,50204672,"3,232.48",0,Acorn Residential Home,SOCIAL SERVICES RESIDENTIAL,Peoples Services,Residential Care - Ext Provider
London Borough of Sutton,25/05/2022,20025178,"159,747.75",0,ADAM HTT LTD,TAXI AND COACH HIRE,Peoples Services,Contract Cleaning
London Borough of Sutton,18/05/2022,20025602,"177,839.33",0,ADAM HTT LTD,TAXI AND COACH HIRE,Peoples Services,Contract Cleaning
London Borough of Sutton,01/06/2022,20025807,"197,181.19",0,ADAM HTT LTD,TAXI AND COACH HIRE,Peoples Services,Contract Cleaning
London Borough of Sutton,08/06/2022,20026347,"34,695.92",0,ADAM HTT LTD,TAXI AND COACH HIRE,Peoples Services,Childrens Social Care Transport
London Borough of Sutton,15/06/2022,20026536,"169,984.31",0,ADAM HTT LTD,TAXI AND COACH HIRE,Peoples Services,Childrens Social Care Transport
London Borough of Sutton,22/06/2022,20027057,"170,598.09",0,ADAM HTT LTD,TAXI AND COACH HIRE,Peoples Services,Contract Cleaning
London Borough of Sutton,01/06/2022,50198793,551.25,0,Adelfi Homecare Ltd,SOCIAL SERVICES RESIDENTIAL,Peoples Services,Home Care Services
London Borough of Sutton,24/05/2022,20025301,955,0,Advanced Demand Side Management Ltd,CONFERENCES,Environment Housing and Neighbourhoods,Purchases and Repairs Fixtures & Fittings
London Borough of Sutton,31/05/2022,20025605,"2,916.67",0,Advocacy For All,LEGAL & PROFESSIONAL SERVICES,Peoples Services,Provider Contract Payments
London Borough of Sutton,31/05/2022,20025607,"12,916.67",0,Advocacy For All,LEGAL & PROFESSIONAL SERVICES,Peoples Services,Provider Contract Payments
London Borough of Sutton,26/05/2022,20025449,"35,908.00",0,AECOM Ltd,LEGAL & PROFESSIONAL SERVICES,Development Growth and Regeneration,Professional Fees
London Borough of Sutton,25/05/2022,50204372,"3,527.49",0,Affinity Fostering Services Ltd,CHILDREN'S SERVICES - FOSTERING & ADOPTION SERVICES,Peoples Services,Foster Parents Support
London Borough of Sutton,25/05/2022,50204373,"3,715.35",0,Affinity Fostering Services Ltd,CHILDREN'S SERVICES - FOSTERING & ADOPTION SERVICES,Peoples Services,Foster Parents Support
London Borough of Sutton,25/05/2022,50204417,"3,317.31",0,Affinity Fostering Services Ltd,CHILDREN'S SERVICES - FOSTERING & ADOPTION SERVICES,Peoples Services,Foster Parents Support
London Borough of Sutton,25/05/2022,50204418,"3,494.01",0,Affinity Fostering Services Ltd,CHILDREN'S SERVICES - FOSTERING & ADOPTION SERVICES,Peoples Services,Foster Parents Support
London Borough of Sutton,25/05/2022,50204491,"3,494.01",0,Affinity Fostering Services Ltd,CHILDREN'S SERVICES - FOSTERING & ADOPTION SERVICES,Peoples Services,Foster Parents Support
London Borough of Sutton,15/06/2022,20026635,992,0,African Caribbean Heritage Association,SUNDRY SUPPLIER - ENV SERVICES,Resources,"Grants, Contributions & Donations"
London Borough of Sutton,10/06/2022,50204529,"7,793.40",0,Aims Care Partnership (Leighton House Ltd),SOCIAL SERVICES RESIDENTIAL,Peoples Services,Residential Care - Ext Provider
London Borough of Sutton,10/06/2022,50204574,"8,716.00",0,Aitch Care Homes,SOCIAL SERVICES RESIDENTIAL,Peoples Services,Residential Care - Ext Provider
London Borough of Sutton,06/06/2022,20025817,"1,123.20",0,Alastair Fyfe Photography Ltd,SUNDRY SUPPLIER - FINANCE,Resources,Other Supplies & Services
London Borough of Sutton,08/04/2022,20022485,"1,000.00",0,All in Wallington,SUNDRY SUPPLIER - ENV SERVICES,Resources,"Grants, Contributions & Donations"
London Borough of Sutton,07/06/2022,50199143,"159,396.66",0,All Saints Benhilton C Of E,GRANTS & EX GRATIA PAYMENTS,Peoples Services,Payments to Schools
London Borough of Sutton,07/06/2022,50199180,"11,750.40",0,All Saints Benhilton C Of E,GRANTS & EX GRATIA PAYMENTS,Peoples Services,Place Funding
London Borough of Sutton,07/06/2022,50199181,"11,232.00",0,All Saints Carshalton Primary School,GRANTS & EX GRATIA PAYMENTS,Peoples Services,Place Funding
London Borough of Sutton,10/06/2022,50204508,"4,621.64",0,Allied Care (Mhs) Ltd,SOCIAL SERVICES - OTHER,Peoples Services,Residential Care - Ext Provider
London Borough of Sutton,20/06/2022,20027062,565,0,Alljos Services Ltd,PREMISES - CLEANING & LAUNDRY,Environment Housing and Neighbourhoods,Grants Given For Capital Purposes
London Borough of Sutton,21/06/2022,20027072,985,0,Alljos Services Ltd,PREMISES - CLEANING & LAUNDRY,Environment Housing and Neighbourhoods,Grants Given For Capital Purposes
London Borough of Sutton,31/05/2022,20026113,684.85,0,Allpay Ltd,OFFICE SERVICES,Resources,Other Supplies & Services
London Borough of Sutton,01/06/2022,20025772,"1,888.05",0,Allstar Business Solutions,FUEL AND VEHICLE SUPPLIES,Environment Housing and Neighbourhoods,Vehicles -  Fuel
London Borough of Sutton,10/06/2022,50204616,"5,397.60",0,Allswell Care Services Ltd,SOCIAL SERVICES RESIDENTIAL,Peoples Services,Residential Care - Ext Provider
London Borough of Sutton,10/06/2022,50204675,"6,609.52",0,Allswell Care Services Ltd,SOCIAL SERVICES RESIDENTIAL,Peoples Services,Residential Care - Ext Provider
London Borough of Sutton,10/06/2022,50204743,"5,397.60",0,Allswell Care Services Ltd,SOCIAL SERVICES RESIDENTIAL,Peoples Services,Residential Care - Ext Provider
London Borough of Sutton,17/06/2022,50208488,"2,697.92",0,Alpenbest Limited,SOCIAL SERVICES DAY CARE,Peoples Services,Home Care Services
London Borough of Sutton,17/06/2022,50208499,"1,197.92",0,Alpenbest Limited,SOCIAL SERVICES DAY CARE,Peoples Services,Home Care Services
London Borough of Sutton,17/06/2022,50208502,"1,744.76",0,Alpenbest Limited,SOCIAL SERVICES DAY CARE,Peoples Services,Home Care Services
London Borough of Sutton,17/06/2022,50208506,932.04,0,Alpenbest Limited,SOCIAL SERVICES DAY CARE,Peoples Services,Home Care Services
London Borough of Sutton,17/06/2022,50208548,765.03,0,Alpenbest Limited,SOCIAL SERVICES DAY CARE,Peoples Services,Home Care Services
London Borough of Sutton,17/06/2022,50208549,867.58,0,Alpenbest Limited,SOCIAL SERVICES DAY CARE,Peoples Services,Home Care Services
London Borough of Sutton,17/06/2022,50208550,"1,593.76",0,Alpenbest Limited,SOCIAL SERVICES DAY CARE,Peoples Services,Home Care Services
London Borough of Sutton,17/06/2022,50208552,"1,564.38",0,Alpenbest Limited,SOCIAL SERVICES DAY CARE,Peoples Services,Home Care Services
London Borough of Sutton,17/06/2022,50208553,701.1,0,Alpenbest Limited,SOCIAL SERVICES DAY CARE,Peoples Services,Home Care Services
London Borough of Sutton,17/06/2022,50208566,867.58,0,Alpenbest Limited,SOCIAL SERVICES DAY CARE,Peoples Services,Home Care Services
London Borough of Sutton,17/06/2022,50208567,"1,447.33",0,Alpenbest Limited,SOCIAL SERVICES DAY CARE,Peoples Services,Home Care Services
London Borough of Sutton,17/06/2022,50208567,904.95,0,Alpenbest Limited,SOCIAL SERVICES DAY CARE,Peoples Services,Home Care Services
London Borough of Sutton,17/06/2022,50208570,867.58,0,Alpenbest Limited,SOCIAL SERVICES DAY CARE,Peoples Services,Home Care Services
London Borough of Sutton,17/06/2022,50208573,513.05,0,Alpenbest Limited,SOCIAL SERVICES DAY CARE,Peoples Services,Home Care Services
London Borough of Sutton,17/06/2022,50208574,"3,239.32",0,Alpenbest Limited,SOCIAL SERVICES DAY CARE,Peoples Services,Home Care Services
London Borough of Sutton,17/06/2022,50208575,"1,114.41",0,Alpenbest Limited,SOCIAL SERVICES DAY CARE,Peoples Services,Home Care Services
London Borough of Sutton,17/06/2022,50208580,"1,763.08",0,Alpenbest Limited,SOCIAL SERVICES DAY CARE,Peoples Services,Home Care Services
London Borough of Sutton,17/06/2022,50208582,752.08,0,Alpenbest Limited,SOCIAL SERVICES DAY CARE,Peoples Services,Home Care Services
London Borough of Sutton,10/06/2022,50204513,"4,260.00",0,ANA Treatment Centres Ltd,SOCIAL SERVICES RESIDENTIAL,Peoples Services,Interim Placements - Ext Provider
London Borough of Sutton,01/05/2022,50204381,"4,495.00",0,Anchor Foster Care Services Ltd,CHILDREN'S SERVICES - FOSTERING & ADOPTION SERVICES,Peoples Services,Foster Parents Support
London Borough of Sutton,10/06/2022,50204780,"2,762.52",0,Anchor Trust,SOCIAL SERVICES RESIDENTIAL,Peoples Services,Residential Care - Ext Provider
London Borough of Sutton,23/05/2022,20026745,938.34,0,REDACTED - PERSONAL DATA,PLS LANDLORDS,Environment Housing and Neighbourhoods,Temporary Protection - Homeless Persons
London Borough of Sutton,23/06/2022,20027138,938.34,0,REDACTED - PERSONAL DATA,PLS LANDLORDS,Environment Housing and Neighbourhoods,Temporary Protection - Homeless Persons
London Borough of Sutton,01/06/2022,50204344,"3,476.43",0,Ansacare Fostering Agency Ltd,CHILDREN'S SERVICES - FOSTERING & ADOPTION SERVICES,Peoples Services,Foster Parents Support
London Borough of Sutton,01/06/2022,50204345,"3,476.43",0,Ansacare Fostering Agency Ltd,CHILDREN'S SERVICES - FOSTERING & ADOPTION SERVICES,Peoples Services,Foster Parents Support
London Borough of Sutton,31/03/2022,20023120,"143,983.84",0,Aon UK Limited,FINANCIAL / INSURANCE INSTNS,Resources,General Insurance (Excl Premises & Transport)
London Borough of Sutton,26/05/2022,20026505,"435,080.70",0,Aon UK Limited,FINANCIAL / INSURANCE INSTNS,Resources,General Insurance (Excl Premises & Transport)
London Borough of Sutton,26/05/2022,20026506,"47,572.00",0,Aon UK Limited,FINANCIAL / INSURANCE INSTNS,Resources,General Insurance (Excl Premises & Transport)
London Borough of Sutton,08/06/2022,20026677,890.42,0,Aon UK Limited,FINANCIAL / INSURANCE INSTNS,Resources,General Insurance (Excl Premises & Transport)
London Borough of Sutton,01/06/2022,20026978,"2,028.32",0,Aon UK Limited,FINANCIAL / INSURANCE INSTNS,Resources,General Insurance (Excl Premises & Transport)
London Borough of Sutton,31/05/2022,20025783,"2,989.00",0,Arbtech Consulting Ltd,AGRICULTURAL & ESTATE SERVICES,Development Growth and Regeneration,"Surveys, Trial Holes Etc"
London Borough of Sutton,06/04/2022,20025735,"1,257.00",0,Arthur Rai Medical Services Ltd,TEMP STAFF & CONSULTANCY,Health and Wellbeing,Agency Staff - Other
London Borough of Sutton,25/05/2022,20025736,"1,406.40",0,Arthur Rai Medical Services Ltd,TEMP STAFF & CONSULTANCY,Health and Wellbeing,Agency Staff - Other
London Borough of Sutton,28/04/2022,20025737,754.2,0,Arthur Rai Medical Services Ltd,TEMP STAFF & CONSULTANCY,Health and Wellbeing,Agency Staff - Other
London Borough of Sutton,04/05/2022,20025738,"1,758.00",0,Arthur Rai Medical Services Ltd,TEMP STAFF & CONSULTANCY,Health and Wellbeing,Agency Staff - Other
London Borough of Sutton,28/04/2022,20025739,"1,005.60",0,Arthur Rai Medical Services Ltd,TEMP STAFF & CONSULTANCY,Health and Wellbeing,Agency Staff - Other
London Borough of Sutton,11/05/2022,20025740,"1,406.40",0,Arthur Rai Medical Services Ltd,TEMP STAFF & CONSULTANCY,Health and Wellbeing,Agency Staff - Other
London Borough of Sutton,28/04/2022,20025741,502.8,0,Arthur Rai Medical Services Ltd,TEMP STAFF & CONSULTANCY,Health and Wellbeing,Agency Staff - Other
London Borough of Sutton,11/05/2022,20025742,"1,406.40",0,Arthur Rai Medical Services Ltd,TEMP STAFF & CONSULTANCY,Health and Wellbeing,Agency Staff - Other
London Borough of Sutton,04/05/2022,20025744,"1,406.40",0,Arthur Rai Medical Services Ltd,TEMP STAFF & CONSULTANCY,Health and Wellbeing,Agency Staff - Other
London Borough of Sutton,28/04/2022,20025745,"1,257.00",0,Arthur Rai Medical Services Ltd,TEMP STAFF & CONSULTANCY,Health and Wellbeing,Agency Staff - Other
London Borough of Sutton,27/04/2022,20025746,"1,257.00",0,Arthur Rai Medical Services Ltd,TEMP STAFF & CONSULTANCY,Health and Wellbeing,Agency Staff - Other
London Borough of Sutton,18/05/2022,20025747,"1,758.00",0,Arthur Rai Medical Services Ltd,TEMP STAFF & CONSULTANCY,Health and Wellbeing,Agency Staff - Other
London Borough of Sutton,18/05/2022,20025748,"1,054.80",0,Arthur Rai Medical Services Ltd,TEMP STAFF & CONSULTANCY,Health and Wellbeing,Agency Staff - Other
London Borough of Sutton,31/05/2022,20026857,"1,711.12",0,Arthur Rai Medical Services Ltd,TEMP STAFF & CONSULTANCY,Health and Wellbeing,Agency Staff - Other
London Borough of Sutton,25/05/2022,20026858,"1,758.00",0,Arthur Rai Medical Services Ltd,TEMP STAFF & CONSULTANCY,Health and Wellbeing,Agency Staff - Other
London Borough of Sutton,31/05/2022,20026859,"1,406.40",0,Arthur Rai Medical Services Ltd,TEMP STAFF & CONSULTANCY,Health and Wellbeing,Agency Staff - Other
London Borough of Sutton,31/05/2022,20026861,"1,758.00",0,Arthur Rai Medical Services Ltd,TEMP STAFF & CONSULTANCY,Health and Wellbeing,Agency Staff - Other
London Borough of Sutton,25/05/2022,20026863,"1,054.80",0,Arthur Rai Medical Services Ltd,TEMP STAFF & CONSULTANCY,Health and Wellbeing,Agency Staff - Other
London Borough of Sutton,07/04/2022,20022830,727.43,0,Ashley Blind Contracts,SUNDRY SUPPLIER - ASC,Health and Wellbeing,Other Premises Costs
London Borough of Sutton,28/04/2022,50205917,"1,312.36",0,Ashlong House Ltd,SOCIAL SERVICES RESIDENTIAL,Peoples Services,Supported Living
London Borough of Sutton,28/04/2022,50205918,"1,027.20",0,Ashlong House Ltd,SOCIAL SERVICES RESIDENTIAL,Peoples Services,Supported Living
London Borough of Sutton,28/04/2022,50205921,"1,915.00",0,Ashlong House Ltd,SOCIAL SERVICES RESIDENTIAL,Peoples Services,Supported Living
London Borough of Sutton,01/06/2022,50208115,"1,312.36",0,Ashlong House Ltd,SOCIAL SERVICES RESIDENTIAL,Peoples Services,Supported Living
London Borough of Sutton,01/06/2022,50208116,"1,141.97",0,Ashlong House Ltd,SOCIAL SERVICES RESIDENTIAL,Peoples Services,Supported Living
London Borough of Sutton,01/06/2022,50208117,"1,915.00",0,Ashlong House Ltd,SOCIAL SERVICES RESIDENTIAL,Peoples Services,Supported Living
London Borough of Sutton,10/06/2022,50204601,"4,144.68",0,Aspen Place,SOCIAL SERVICES DAY CARE,Peoples Services,Nursing Care - Ext Provider
London Borough of Sutton,10/06/2022,50204552,"5,699.00",0,Aspens Charities,SOCIAL SERVICES RESIDENTIAL,Peoples Services,Residential Care - Ext Provider
London Borough of Sutton,30/05/2022,50198723,"2,480.00",0,Aspirations Care Ltd,SOCIAL SERVICES DAY CARE,Peoples Services,Home Care Services
London Borough of Sutton,30/05/2022,50198723,"7,356.30",0,Aspirations Care Ltd,SOCIAL SERVICES DAY CARE,Peoples Services,Home Care Services
London Borough of Sutton,27/05/2022,20025349,690,0,ASSOCIATON OF ACCOUNTING TECHNICIANS,SUBSCRIPTIONS & PUBLICATIONS,Health and Wellbeing,Examination Fees
London Borough of Sutton,14/06/2022,20026484,"-1,189.26",0,Atalian Servest Limited,PREMISES - CLEANING & LAUNDRY,Resources,FM - Building Cleaning Contract - Servest
London Borough of Sutton,22/06/2022,20027073,"26,747.47",0,Atalian Servest Limited,PREMISES - CLEANING & LAUNDRY,Resources,Security / Surveillance Equipment Maintenance
London Borough of Sutton,14/06/2022,20027320,"55,119.10",0,Atalian Servest Limited,PREMISES - CLEANING & LAUNDRY,Resources,FM - Building Cleaning Contract - Servest
London Borough of Sutton,28/06/2022,20027326,"7,998.86",0,Atalian Servest Limited,PREMISES - CLEANING & LAUNDRY,Resources,Security / Surveillance Equipment Maintenance
London Borough of Sutton,28/06/2022,20027327,"22,010.00",0,Atalian Servest Limited,PREMISES - CLEANING & LAUNDRY,Resources,Security / Surveillance Equipment Maintenance
London Borough of Sutton,31/05/2022,20027414,"53,670.96",0,Atalian Servest Limited,PREMISES - CLEANING & LAUNDRY,Resources,FM - Building Cleaning Contract - Servest
London Borough of Sutton,10/06/2022,50204528,"6,024.56",0,Autism & Aspergers Care Services,SOCIAL SERVICES RESIDENTIAL,Peoples Services,Residential Care - Ext Provider
London Borough of Sutton,22/06/2022,50211280,"5,148.22",0,Avance Ltd ,CHILDREN'S SERVICES - FOSTERING & ADOPTION SERVICES,Peoples Services,Approved Lodgings
London Borough of Sutton,07/06/2022,50199182,"12,565.80",0,Avenue Primary Acadamy,GRANTS & EX GRATIA PAYMENTS,Peoples Services,Place Funding
London Borough of Sutton,31/05/2022,50204430,"16,116.02",0,Ayai Care Limited,SOCIAL SERVICES DAY CARE,Peoples Services,Approved Lodgings
London Borough of Sutton,31/05/2022,50204476,"31,143.93",0,Ayai Care Limited,SOCIAL SERVICES DAY CARE,Peoples Services,Residential Care-Children
London Borough of Sutton,22/06/2022,50211014,"13,680.00",0,Ayai Care Limited,SOCIAL SERVICES DAY CARE,Peoples Services,Supported Living
London Borough of Sutton,07/06/2022,50199397,"13,242.42",0,The Adventure Pre-School,GRANTS & EX GRATIA PAYMENTS,Peoples Services,Place Funding
London Borough of Sutton,25/05/2022,20025704,"4,782.85",0,Back on Track Housing Ltd,SOCIAL SERVICES - OTHER,Peoples Services,Living Allowance
London Borough of Sutton,24/05/2022,50204464,"5,225.67",0,Back on Track Housing Ltd,SOCIAL SERVICES - OTHER,Peoples Services,Approved Lodgings
London Borough of Sutton,07/06/2022,50199334,"2,068.87",0,Bandon Hill Pre-School,GRANTS & EX GRATIA PAYMENTS,Peoples Services,Place Funding
London Borough of Sutton,07/06/2022,50199400,"2,778.97",0,Bandon Hill Pre-School,GRANTS & EX GRATIA PAYMENTS,Peoples Services,Place Funding
London Borough of Sutton,07/06/2022,50199183,"14,015.70",0,Bandon Hill Primary School (Academy),GRANTS & EX GRATIA PAYMENTS,Peoples Services,Place Funding
London Borough of Sutton,31/08/2021,20025171,531.92,0,Banner Group Limited,BOOKS PUBLICATIONS STATIONERY,Peoples Services,Miscellaneous Expenses
London Borough of Sutton,08/06/2022,20026056,912.77,0,Banner Group Limited,BOOKS PUBLICATIONS STATIONERY,Resources,Stationery
London Borough of Sutton,13/06/2022,20026391,830.77,0,Banner Group Limited,BOOKS PUBLICATIONS STATIONERY,Resources,Stationery
London Borough of Sutton,13/10/2021,20026666,713.94,0,Banner Group Limited,BOOKS PUBLICATIONS STATIONERY,Peoples Services,Miscellaneous Expenses
London Borough of Sutton,22/03/2021,20026679,548.05,0,Banner Group Limited,BOOKS PUBLICATIONS STATIONERY,Health and Wellbeing,Miscellaneous Expenses
London Borough of Sutton,20/06/2022,20026869,740.53,0,Banner Group Limited,BOOKS PUBLICATIONS STATIONERY,Health and Wellbeing,Provisions
London Borough of Sutton,19/05/2022,50200310,"3,915.00",0,BANSTEAD PREPARATORY SCHOOL,CHILDREN'S SERVICES - SEN SERVICES,Peoples Services,Independent School Fees
London Borough of Sutton,19/05/2022,50200311,"4,253.33",0,BANSTEAD PREPARATORY SCHOOL,CHILDREN'S SERVICES - SEN SERVICES,Peoples Services,Independent School Fees
London Borough of Sutton,01/06/2022,20026458,"14,713.14",0,Barnardo's,CHILDREN'S SERVICES - RESIDENTIAL,Peoples Services,Approved Lodgings
London Borough of Sutton,29/05/2022,20025427,900,0,Bartlett Cooke LTD,SUNDRY SUPPLIER - HOUSING,Environment Housing and Neighbourhoods,Rent Deposit Scheme
London Borough of Sutton,29/05/2022,20025427,"1,038.46",0,Bartlett Cooke LTD,SUNDRY SUPPLIER - HOUSING,Environment Housing and Neighbourhoods,Rent Deposit Scheme
London Borough of Sutton,07/06/2022,50199137,"105,063.94",0,Beddington Infants School,GRANTS & EX GRATIA PAYMENTS,Peoples Services,Payments to Schools
London Borough of Sutton,07/06/2022,50199185,"9,666.00",0,Beddington Infants School,GRANTS & EX GRATIA PAYMENTS,Peoples Services,Place Funding
London Borough of Sutton,14/06/2022,50205300,"10,400.00",0,Beddington Infants School,GRANTS & EX GRATIA PAYMENTS,Non-Service Cost Centres,Recharge-Teaching Staff
London Borough of Sutton,16/06/2022,50206041,"10,400.00",0,Beddington Infants School,GRANTS & EX GRATIA PAYMENTS,Non-Service Cost Centres,Recharge-Teaching Staff
London Borough of Sutton,07/06/2022,50199186,"11,599.20",0,Beddington Park Primary (Academy),GRANTS & EX GRATIA PAYMENTS,Peoples Services,Place Funding
London Borough of Sutton,22/06/2022,50210974,"-4,141.07",0,Beechcroft Care Limited,SOCIAL SERVICES RESIDENTIAL,Peoples Services,Nursing Care - 3rd party top up payment
London Borough of Sutton,22/06/2022,50210974,"8,282.15",0,Beechcroft Care Limited,SOCIAL SERVICES RESIDENTIAL,Peoples Services,Supported Living
London Borough of Sutton,01/06/2022,20025691,"3,090.55",0,Beeches Tree Care,AGRICULTURAL & ESTATE SERVICES,Environment Housing and Neighbourhoods,Maintenance of trees
London Borough of Sutton,10/06/2022,20026058,"4,808.00",0,Beeches Tree Care,AGRICULTURAL & ESTATE SERVICES,Environment Housing and Neighbourhoods,Highway Trees - Maintenance
London Borough of Sutton,10/06/2022,20026162,"1,800.00",0,Beeches Tree Care,AGRICULTURAL & ESTATE SERVICES,Environment Housing and Neighbourhoods,Maintenance of trees
London Borough of Sutton,16/06/2022,20026676,"6,444.44",0,Beeches Tree Care,AGRICULTURAL & ESTATE SERVICES,Environment Housing and Neighbourhoods,Maintenance of trees
London Borough of Sutton,17/06/2022,20026689,"6,010.00",0,Beeches Tree Care,AGRICULTURAL & ESTATE SERVICES,Environment Housing and Neighbourhoods,Highway Trees - Maintenance
London Borough of Sutton,23/06/2022,20027145,"7,688.25",0,Beeches Tree Care,AGRICULTURAL & ESTATE SERVICES,Environment Housing and Neighbourhoods,Maintenance of trees
London Borough of Sutton,31/05/2022,20025647,"5,110.00",0,Belmont Festival,SUNDRY SUPPLIER - ENV SERVICES,Resources,"Grants, Contributions & Donations"
London Borough of Sutton,07/06/2022,50199335,827.55,0,Belmont Village Playgroup,GRANTS & EX GRATIA PAYMENTS,Peoples Services,Place Funding
London Borough of Sutton,07/06/2022,50199401,"5,815.71",0,Belmont Village Playgroup,GRANTS & EX GRATIA PAYMENTS,Peoples Services,Place Funding
London Borough of Sutton,10/06/2022,50206053,"4,800.00",0,Belmont Village Playgroup,GRANTS & EX GRATIA PAYMENTS,Peoples Services,Top-up individual funding
London Borough of Sutton,10/06/2022,50206054,"2,400.00",0,Belmont Village Playgroup,GRANTS & EX GRATIA PAYMENTS,Peoples Services,Top-up individual funding
London Borough of Sutton,10/05/2022,20025384,820,0,Benhill & Belmont GP Centre,SOCIAL SERVICES - OTHER,Health and Wellbeing,Provider Contract Payments
London Borough of Sutton,29/05/2022,50199778,526,0,Best at Home Domiciliary Care Services Ltd,SOCIAL SERVICES DAY CARE,Peoples Services,Home Care Services
London Borough of Sutton,22/05/2022,50199781,828,0,Best at Home Domiciliary Care Services Ltd,SOCIAL SERVICES DAY CARE,Peoples Services,Home Care Services
London Borough of Sutton,01/06/2022,50199782,828,0,Best at Home Domiciliary Care Services Ltd,SOCIAL SERVICES DAY CARE,Peoples Services,Home Care Services
London Borough of Sutton,01/06/2022,50199783,828,0,Best at Home Domiciliary Care Services Ltd,SOCIAL SERVICES DAY CARE,Peoples Services,Home Care Services
London Borough of Sutton,01/06/2022,50199784,868,0,Best at Home Domiciliary Care Services Ltd,SOCIAL SERVICES DAY CARE,Peoples Services,Home Care Services
London Borough of Sutton,01/06/2022,50199786,828,0,Best at Home Domiciliary Care Services Ltd,SOCIAL SERVICES DAY CARE,Peoples Services,Home Care Services
London Borough of Sutton,01/06/2022,50199787,828,0,Best at Home Domiciliary Care Services Ltd,SOCIAL SERVICES DAY CARE,Peoples Services,Home Care Services
London Borough of Sutton,01/06/2022,50199788,868,0,Best at Home Domiciliary Care Services Ltd,SOCIAL SERVICES DAY CARE,Peoples Services,Home Care Services
London Borough of Sutton,01/06/2022,50199789,828,0,Best at Home Domiciliary Care Services Ltd,SOCIAL SERVICES DAY CARE,Peoples Services,Home Care Services
London Borough of Sutton,25/05/2022,50199790,828,0,Best at Home Domiciliary Care Services Ltd,SOCIAL SERVICES DAY CARE,Peoples Services,Home Care Services
London Borough of Sutton,01/06/2022,50199791,868,0,Best at Home Domiciliary Care Services Ltd,SOCIAL SERVICES DAY CARE,Peoples Services,Home Care Services
London Borough of Sutton,01/06/2022,50199792,828,0,Best at Home Domiciliary Care Services Ltd,SOCIAL SERVICES DAY CARE,Peoples Services,Home Care Services
London Borough of Sutton,29/05/2022,50199797,827.97,0,Best at Home Domiciliary Care Services Ltd,SOCIAL SERVICES DAY CARE,Peoples Services,Home Care Services
London Borough of Sutton,29/05/2022,50199804,827.97,0,Best at Home Domiciliary Care Services Ltd,SOCIAL SERVICES DAY CARE,Peoples Services,Home Care Services
London Borough of Sutton,29/05/2022,50199811,827.97,0,Best at Home Domiciliary Care Services Ltd,SOCIAL SERVICES DAY CARE,Peoples Services,Home Care Services
London Borough of Sutton,29/05/2022,50199811,150,0,Best at Home Domiciliary Care Services Ltd,SOCIAL SERVICES DAY CARE,Peoples Services,Home Care Services
London Borough of Sutton,29/05/2022,50199816,"3,156.00",0,Best at Home Domiciliary Care Services Ltd,SOCIAL SERVICES DAY CARE,Peoples Services,Home Care Services
London Borough of Sutton,29/05/2022,50199817,"3,156.00",0,Best at Home Domiciliary Care Services Ltd,SOCIAL SERVICES DAY CARE,Peoples Services,Home Care Services
London Borough of Sutton,29/05/2022,50199823,981.94,0,Best at Home Domiciliary Care Services Ltd,SOCIAL SERVICES DAY CARE,Peoples Services,Home Care Services
London Borough of Sutton,29/05/2022,50199825,827.97,0,Best at Home Domiciliary Care Services Ltd,SOCIAL SERVICES DAY CARE,Peoples Services,Home Care Services
London Borough of Sutton,09/12/2020,50205104,977,0,Best at Home Domiciliary Care Services Ltd,SOCIAL SERVICES DAY CARE,Peoples Services,Home Care Services
London Borough of Sutton,03/12/2020,50205105,888.5,0,Best at Home Domiciliary Care Services Ltd,SOCIAL SERVICES DAY CARE,Peoples Services,Home Care Services
London Borough of Sutton,03/12/2020,50205105,88.5,0,Best at Home Domiciliary Care Services Ltd,SOCIAL SERVICES DAY CARE,Peoples Services,Home Care Services
London Borough of Sutton,14/12/2020,50205106,88.5,0,Best at Home Domiciliary Care Services Ltd,SOCIAL SERVICES DAY CARE,Peoples Services,Home Care Services
London Borough of Sutton,14/12/2020,50205106,888.5,0,Best at Home Domiciliary Care Services Ltd,SOCIAL SERVICES DAY CARE,Peoples Services,Home Care Services
London Borough of Sutton,23/11/2020,50205107,888.5,0,Best at Home Domiciliary Care Services Ltd,SOCIAL SERVICES DAY CARE,Peoples Services,Home Care Services
London Borough of Sutton,23/11/2020,50205107,88.5,0,Best at Home Domiciliary Care Services Ltd,SOCIAL SERVICES DAY CARE,Peoples Services,Home Care Services
London Borough of Sutton,21/12/2020,50205108,888.5,0,Best at Home Domiciliary Care Services Ltd,SOCIAL SERVICES DAY CARE,Peoples Services,Home Care Services
London Borough of Sutton,21/12/2020,50205108,88.5,0,Best at Home Domiciliary Care Services Ltd,SOCIAL SERVICES DAY CARE,Peoples Services,Home Care Services
London Borough of Sutton,08/01/2021,50205109,"1,031.00",0,Best at Home Domiciliary Care Services Ltd,SOCIAL SERVICES DAY CARE,Peoples Services,Home Care Services
London Borough of Sutton,11/01/2021,50205112,977,0,Best at Home Domiciliary Care Services Ltd,SOCIAL SERVICES DAY CARE,Peoples Services,Home Care Services
London Borough of Sutton,27/01/2021,50205113,977,0,Best at Home Domiciliary Care Services Ltd,SOCIAL SERVICES DAY CARE,Peoples Services,Home Care Services
London Borough of Sutton,08/02/2021,50205114,977,0,Best at Home Domiciliary Care Services Ltd,SOCIAL SERVICES DAY CARE,Peoples Services,Home Care Services
London Borough of Sutton,09/02/2021,50205115,977,0,Best at Home Domiciliary Care Services Ltd,SOCIAL SERVICES DAY CARE,Peoples Services,Home Care Services
London Borough of Sutton,15/02/2021,50205116,977,0,Best at Home Domiciliary Care Services Ltd,SOCIAL SERVICES DAY CARE,Peoples Services,Home Care Services
London Borough of Sutton,08/01/2021,50205119,"1,085.00",0,Best at Home Domiciliary Care Services Ltd,SOCIAL SERVICES DAY CARE,Peoples Services,Home Care Services
London Borough of Sutton,18/01/2021,50205120,977,0,Best at Home Domiciliary Care Services Ltd,SOCIAL SERVICES DAY CARE,Peoples Services,Home Care Services
London Borough of Sutton,07/11/2021,50205127,516,0,Best at Home Domiciliary Care Services Ltd,SOCIAL SERVICES DAY CARE,Peoples Services,Home Care Services
London Borough of Sutton,18/10/2021,50205131,108,0,Best at Home Domiciliary Care Services Ltd,SOCIAL SERVICES DAY CARE,Peoples Services,Home Care Services
London Borough of Sutton,18/10/2021,50205131,400,0,Best at Home Domiciliary Care Services Ltd,SOCIAL SERVICES DAY CARE,Peoples Services,Home Care Services
London Borough of Sutton,10/05/2021,50205137,148,0,Best at Home Domiciliary Care Services Ltd,SOCIAL SERVICES DAY CARE,Peoples Services,Home Care Services
London Borough of Sutton,10/05/2021,50205137,386,0,Best at Home Domiciliary Care Services Ltd,SOCIAL SERVICES DAY CARE,Peoples Services,Home Care Services
London Borough of Sutton,19/04/2021,50205156,"1,324.50",0,Best at Home Domiciliary Care Services Ltd,SOCIAL SERVICES DAY CARE,Peoples Services,Home Care Services
London Borough of Sutton,20/09/2021,50205158,218,0,Best at Home Domiciliary Care Services Ltd,SOCIAL SERVICES DAY CARE,Peoples Services,Home Care Services
London Borough of Sutton,20/09/2021,50205158,358,0,Best at Home Domiciliary Care Services Ltd,SOCIAL SERVICES DAY CARE,Peoples Services,Home Care Services
London Borough of Sutton,20/03/2022,50205187,689.95,0,Best at Home Domiciliary Care Services Ltd,SOCIAL SERVICES DAY CARE,Peoples Services,Home Care Services
London Borough of Sutton,05/06/2022,50205402,504.47,0,Best at Home Domiciliary Care Services Ltd,SOCIAL SERVICES DAY CARE,Peoples Services,Home Care Services
London Borough of Sutton,05/06/2022,50205408,907.98,0,Best at Home Domiciliary Care Services Ltd,SOCIAL SERVICES DAY CARE,Peoples Services,Home Care Services
London Borough of Sutton,05/06/2022,50205408,165,0,Best at Home Domiciliary Care Services Ltd,SOCIAL SERVICES DAY CARE,Peoples Services,Home Care Services
London Borough of Sutton,05/06/2022,50205414,"3,516.00",0,Best at Home Domiciliary Care Services Ltd,SOCIAL SERVICES DAY CARE,Peoples Services,Home Care Services
London Borough of Sutton,05/06/2022,50205415,586,0,Best at Home Domiciliary Care Services Ltd,SOCIAL SERVICES DAY CARE,Peoples Services,Home Care Services
London Borough of Sutton,05/06/2022,50205417,"3,516.00",0,Best at Home Domiciliary Care Services Ltd,SOCIAL SERVICES DAY CARE,Peoples Services,Home Care Services
London Borough of Sutton,05/06/2022,50205429,"1,172.00",0,Best at Home Domiciliary Care Services Ltd,SOCIAL SERVICES DAY CARE,Peoples Services,Home Care Services
London Borough of Sutton,05/06/2022,50205432,"1,081.96",0,Best at Home Domiciliary Care Services Ltd,SOCIAL SERVICES DAY CARE,Peoples Services,Home Care Services
London Borough of Sutton,05/06/2022,50205436,602.5,0,Best at Home Domiciliary Care Services Ltd,SOCIAL SERVICES DAY CARE,Peoples Services,Home Care Services
London Borough of Sutton,05/06/2022,50205437,907.98,0,Best at Home Domiciliary Care Services Ltd,SOCIAL SERVICES DAY CARE,Peoples Services,Home Care Services
London Borough of Sutton,05/06/2022,50205467,907.98,0,Best at Home Domiciliary Care Services Ltd,SOCIAL SERVICES DAY CARE,Peoples Services,Home Care Services
London Borough of Sutton,05/06/2022,50205473,567.95,0,Best at Home Domiciliary Care Services Ltd,SOCIAL SERVICES DAY CARE,Peoples Services,Home Care Services
London Borough of Sutton,07/05/2021,50207740,553.5,0,Best at Home Domiciliary Care Services Ltd,SOCIAL SERVICES DAY CARE,Peoples Services,Home Care Services
London Borough of Sutton,05/04/2021,50207743,417,0,Best at Home Domiciliary Care Services Ltd,SOCIAL SERVICES DAY CARE,Peoples Services,Home Care Services
London Borough of Sutton,05/04/2021,50207743,166.5,0,Best at Home Domiciliary Care Services Ltd,SOCIAL SERVICES DAY CARE,Peoples Services,Home Care Services
London Borough of Sutton,24/05/2021,50207750,553.5,0,Best at Home Domiciliary Care Services Ltd,SOCIAL SERVICES DAY CARE,Peoples Services,Home Care Services
London Borough of Sutton,04/05/2021,50207751,553,0,Best at Home Domiciliary Care Services Ltd,SOCIAL SERVICES DAY CARE,Peoples Services,Home Care Services
London Borough of Sutton,12/04/2021,50207755,583.5,0,Best at Home Domiciliary Care Services Ltd,SOCIAL SERVICES DAY CARE,Peoples Services,Home Care Services
London Borough of Sutton,19/04/2021,50207759,533.5,0,Best at Home Domiciliary Care Services Ltd,SOCIAL SERVICES DAY CARE,Peoples Services,Home Care Services
London Borough of Sutton,10/05/2021,50207760,583.5,0,Best at Home Domiciliary Care Services Ltd,SOCIAL SERVICES DAY CARE,Peoples Services,Home Care Services
London Borough of Sutton,17/05/2021,50207763,553.5,0,Best at Home Domiciliary Care Services Ltd,SOCIAL SERVICES DAY CARE,Peoples Services,Home Care Services
London Borough of Sutton,12/06/2022,50207776,542.5,0,Best at Home Domiciliary Care Services Ltd,SOCIAL SERVICES DAY CARE,Peoples Services,Home Care Services
London Borough of Sutton,12/06/2022,50207789,827.97,0,Best at Home Domiciliary Care Services Ltd,SOCIAL SERVICES DAY CARE,Peoples Services,Home Care Services
London Borough of Sutton,12/06/2022,50207789,150,0,Best at Home Domiciliary Care Services Ltd,SOCIAL SERVICES DAY CARE,Peoples Services,Home Care Services
London Borough of Sutton,12/06/2022,50207793,"3,156.00",0,Best at Home Domiciliary Care Services Ltd,SOCIAL SERVICES DAY CARE,Peoples Services,Home Care Services
London Borough of Sutton,12/06/2022,50207794,526,0,Best at Home Domiciliary Care Services Ltd,SOCIAL SERVICES DAY CARE,Peoples Services,Home Care Services
London Borough of Sutton,12/06/2022,50207795,"3,156.00",0,Best at Home Domiciliary Care Services Ltd,SOCIAL SERVICES DAY CARE,Peoples Services,Home Care Services
London Borough of Sutton,12/06/2022,50207801,827.97,0,Best at Home Domiciliary Care Services Ltd,SOCIAL SERVICES DAY CARE,Peoples Services,Home Care Services
London Borough of Sutton,12/06/2022,50207815,827.97,0,Best at Home Domiciliary Care Services Ltd,SOCIAL SERVICES DAY CARE,Peoples Services,Home Care Services
London Borough of Sutton,12/06/2022,50207825,981.94,0,Best at Home Domiciliary Care Services Ltd,SOCIAL SERVICES DAY CARE,Peoples Services,Home Care Services
London Borough of Sutton,12/06/2022,50207827,827.97,0,Best at Home Domiciliary Care Services Ltd,SOCIAL SERVICES DAY CARE,Peoples Services,Home Care Services
London Borough of Sutton,30/01/2022,50208610,"3,456.00",0,Best at Home Domiciliary Care Services Ltd,SOCIAL SERVICES DAY CARE,Peoples Services,Home Care Services
London Borough of Sutton,06/02/2022,50208611,"3,268.00",0,Best at Home Domiciliary Care Services Ltd,SOCIAL SERVICES DAY CARE,Peoples Services,Home Care Services
London Borough of Sutton,13/01/2022,50208612,"1,470.35",0,Best at Home Domiciliary Care Services Ltd,SOCIAL SERVICES DAY CARE,Peoples Services,Home Care Services
London Borough of Sutton,16/01/2022,50208619,"3,408.00",0,Best at Home Domiciliary Care Services Ltd,SOCIAL SERVICES DAY CARE,Peoples Services,Home Care Services
London Borough of Sutton,23/01/2022,50208621,"3,456.00",0,Best at Home Domiciliary Care Services Ltd,SOCIAL SERVICES DAY CARE,Peoples Services,Home Care Services
London Borough of Sutton,03/04/2022,50208655,"2,011.49",0,Best at Home Domiciliary Care Services Ltd,SOCIAL SERVICES DAY CARE,Peoples Services,Home Care Services
London Borough of Sutton,29/05/2022,50208660,"1,052.00",0,Best at Home Domiciliary Care Services Ltd,SOCIAL SERVICES DAY CARE,Peoples Services,Home Care Services
London Borough of Sutton,06/10/2020,50208665,528.01,0,Best at Home Domiciliary Care Services Ltd,SOCIAL SERVICES DAY CARE,Peoples Services,Home Care Services
London Borough of Sutton,08/02/2021,50208666,714,0,Best at Home Domiciliary Care Services Ltd,SOCIAL SERVICES DAY CARE,Peoples Services,Home Care Services
London Borough of Sutton,27/01/2021,50208668,366,0,Best at Home Domiciliary Care Services Ltd,SOCIAL SERVICES DAY CARE,Peoples Services,Home Care Services
London Borough of Sutton,27/01/2021,50208668,220,0,Best at Home Domiciliary Care Services Ltd,SOCIAL SERVICES DAY CARE,Peoples Services,Home Care Services
London Borough of Sutton,08/02/2021,50208669,418,0,Best at Home Domiciliary Care Services Ltd,SOCIAL SERVICES DAY CARE,Peoples Services,Home Care Services
London Borough of Sutton,08/02/2021,50208669,382,0,Best at Home Domiciliary Care Services Ltd,SOCIAL SERVICES DAY CARE,Peoples Services,Home Care Services
London Borough of Sutton,05/06/2022,50208697,547,0,Best at Home Domiciliary Care Services Ltd,SOCIAL SERVICES DAY CARE,Peoples Services,Home Care Services
London Borough of Sutton,19/06/2022,50212710,981.94,0,Best at Home Domiciliary Care Services Ltd,SOCIAL SERVICES DAY CARE,Peoples Services,Home Care Services
London Borough of Sutton,19/06/2022,50212722,542.5,0,Best at Home Domiciliary Care Services Ltd,SOCIAL SERVICES DAY CARE,Peoples Services,Home Care Services
London Borough of Sutton,19/06/2022,50212723,827.97,0,Best at Home Domiciliary Care Services Ltd,SOCIAL SERVICES DAY CARE,Peoples Services,Home Care Services
London Borough of Sutton,19/06/2022,50212739,827.97,0,Best at Home Domiciliary Care Services Ltd,SOCIAL SERVICES DAY CARE,Peoples Services,Home Care Services
London Borough of Sutton,19/06/2022,50212752,827.97,0,Best at Home Domiciliary Care Services Ltd,SOCIAL SERVICES DAY CARE,Peoples Services,Home Care Services
London Borough of Sutton,19/06/2022,50212752,150,0,Best at Home Domiciliary Care Services Ltd,SOCIAL SERVICES DAY CARE,Peoples Services,Home Care Services
London Borough of Sutton,19/06/2022,50212756,"3,156.00",0,Best at Home Domiciliary Care Services Ltd,SOCIAL SERVICES DAY CARE,Peoples Services,Home Care Services
London Borough of Sutton,19/06/2022,50212757,"3,156.00",0,Best at Home Domiciliary Care Services Ltd,SOCIAL SERVICES DAY CARE,Peoples Services,Home Care Services
London Borough of Sutton,19/06/2022,50212761,827.97,0,Best at Home Domiciliary Care Services Ltd,SOCIAL SERVICES DAY CARE,Peoples Services,Home Care Services
London Borough of Sutton,31/05/2022,20025769,"6,526.00",0,Bestcourt UK Ltd,ACCOMMODATION BED & BREAKFAST,Environment Housing and Neighbourhoods,Bed & Breakfast
London Borough of Sutton,30/05/2022,20025659,"7,596.90",0,Bevan Brittan LLP,LEGAL & PROFESSIONAL SERVICES,Environment Housing and Neighbourhoods,External Legal Fees
London Borough of Sutton,11/06/2022,50206055,"22,667.00",0,BIG BEAR BESPOKE EDUCATION,CHILDREN'S SERVICES - SEN SERVICES,Peoples Services,Independent School Fees
London Borough of Sutton,07/06/2022,50199509,"5,696.98",0,Bizzy Bees Day Nursery,GRANTS & EX GRATIA PAYMENTS,Peoples Services,Place Funding
London Borough of Sutton,01/06/2022,20025681,"10,000.00",0,Bloom Procurement Services Ltd,TEMP STAFF & CONSULTANCY,Resources,Professional Fees
London Borough of Sutton,01/06/2022,20025682,"5,000.00",0,Bloom Procurement Services Ltd,TEMP STAFF & CONSULTANCY,Resources,Professional Fees
London Borough of Sutton,14/06/2022,20026436,"125,000.00",0,Bloom Procurement Services Ltd,TEMP STAFF & CONSULTANCY,Resources,Professional Fees
London Borough of Sutton,14/06/2022,20026437,"10,000.00",0,Bloom Procurement Services Ltd,TEMP STAFF & CONSULTANCY,Resources,Professional Fees
London Borough of Sutton,10/06/2022,50204731,"2,127.08",0,BNP Care Ltd,SOCIAL SERVICES RESIDENTIAL,Peoples Services,Residential Care - Ext Provider
London Borough of Sutton,10/06/2022,50204822,"-1,245.12",0,BNP Care Ltd,SOCIAL SERVICES RESIDENTIAL,Peoples Services,Residential Care - Ext Provider
London Borough of Sutton,10/06/2022,50204874,"3,942.88",0,BNP Care Ltd,SOCIAL SERVICES RESIDENTIAL,Peoples Services,Residential Care - Ext Provider
London Borough of Sutton,07/06/2022,50199490,724.95,0,Billy Bears Playdays,GRANTS & EX GRATIA PAYMENTS,Peoples Services,Place Funding
London Borough of Sutton,30/04/2022,20025996,"1,121.10",0,Bottomline Technologies Ltd,OFFICE SERVICES,Resources,IT Software Maintenance
London Borough of Sutton,24/05/2022,20025217,"30,722.02",0,Bow Tie Construction Ltd,CONSTRUCTION INDUSTRY,Environment Housing and Neighbourhoods,Payments to Contractors
London Borough of Sutton,30/05/2022,20025679,"3,829.47",0,Bow Tie Construction Ltd,CONSTRUCTION INDUSTRY,Environment Housing and Neighbourhoods,Payments to Contractors
London Borough of Sutton,10/06/2022,50204648,-750.4,0,Bridge House Care Centre,SOCIAL SERVICES RESIDENTIAL,Peoples Services,Nursing Care - 3rd party top up payment
London Borough of Sutton,10/06/2022,50204648,"3,848.24",0,Bridge House Care Centre,SOCIAL SERVICES RESIDENTIAL,Peoples Services,Nursing Care - Ext Provider
London Borough of Sutton,10/06/2022,50204652,"3,719.80",0,Bridge House Care Centre,SOCIAL SERVICES RESIDENTIAL,Peoples Services,Nursing Care - Ext Provider
London Borough of Sutton,10/06/2022,50204652,-735.68,0,Bridge House Care Centre,SOCIAL SERVICES RESIDENTIAL,Peoples Services,Nursing Care - 3rd party top up payment
London Borough of Sutton,10/06/2022,50204653,"3,609.04",0,Bridge House Care Centre,SOCIAL SERVICES RESIDENTIAL,Peoples Services,Nursing Care - Ext Provider
London Borough of Sutton,10/06/2022,50204653,-662.24,0,Bridge House Care Centre,SOCIAL SERVICES RESIDENTIAL,Peoples Services,Nursing Care - 3rd party top up payment
London Borough of Sutton,10/06/2022,50204688,-750.4,0,Bridge House Care Centre,SOCIAL SERVICES RESIDENTIAL,Peoples Services,Nursing Care - 3rd party top up payment
London Borough of Sutton,10/06/2022,50204689,"3,734.88",0,Bridge House Care Centre,SOCIAL SERVICES RESIDENTIAL,Peoples Services,Nursing Care - Ext Provider
London Borough of Sutton,10/06/2022,50204690,"3,848.24",0,Bridge House Care Centre,SOCIAL SERVICES RESIDENTIAL,Peoples Services,Nursing Care - Ext Provider
London Borough of Sutton,10/06/2022,50204690,-750.4,0,Bridge House Care Centre,SOCIAL SERVICES RESIDENTIAL,Peoples Services,Nursing Care - 3rd party top up payment
London Borough of Sutton,10/06/2022,50204716,"-13,255.93",0,Bridge House Care Centre,SOCIAL SERVICES RESIDENTIAL,Peoples Services,Nursing Care - Ext Provider
London Borough of Sutton,10/06/2022,50204716,"3,220.42",0,Bridge House Care Centre,SOCIAL SERVICES RESIDENTIAL,Peoples Services,Nursing Care - 3rd party top up payment
London Borough of Sutton,10/06/2022,50204717,"3,736.00",0,Bridge House Care Centre,SOCIAL SERVICES RESIDENTIAL,Peoples Services,Nursing Care - Ext Provider
London Borough of Sutton,10/06/2022,50204717,-750.4,0,Bridge House Care Centre,SOCIAL SERVICES RESIDENTIAL,Peoples Services,Nursing Care - 3rd party top up payment
London Borough of Sutton,10/06/2022,50204718,"3,734.88",0,Bridge House Care Centre,SOCIAL SERVICES RESIDENTIAL,Peoples Services,Nursing Care Short Term
London Borough of Sutton,10/06/2022,50204718,-750.4,0,Bridge House Care Centre,SOCIAL SERVICES RESIDENTIAL,Peoples Services,Nursing Care - 3rd party top up payment
London Borough of Sutton,10/06/2022,50204772,"3,665.20",0,Bridge House Care Centre,SOCIAL SERVICES RESIDENTIAL,Peoples Services,Nursing Care - Ext Provider
London Borough of Sutton,10/06/2022,50204772,-632.64,0,Bridge House Care Centre,SOCIAL SERVICES RESIDENTIAL,Peoples Services,Nursing Care - 3rd party top up payment
London Borough of Sutton,10/06/2022,50204813,"3,848.24",0,Bridge House Care Centre,SOCIAL SERVICES RESIDENTIAL,Peoples Services,Nursing Care - Ext Provider
London Borough of Sutton,10/06/2022,50204813,-750.4,0,Bridge House Care Centre,SOCIAL SERVICES RESIDENTIAL,Peoples Services,Nursing Care - 3rd party top up payment
London Borough of Sutton,10/06/2022,50204814,"3,720.16",0,Bridge House Care Centre,SOCIAL SERVICES RESIDENTIAL,Peoples Services,Nursing Care - Ext Provider
London Borough of Sutton,10/06/2022,50204814,-735.68,0,Bridge House Care Centre,SOCIAL SERVICES RESIDENTIAL,Peoples Services,Nursing Care - 3rd party top up payment
London Borough of Sutton,10/06/2022,50204856,"3,734.88",0,Bridge House Care Centre,SOCIAL SERVICES RESIDENTIAL,Peoples Services,Nursing Care - Ext Provider
London Borough of Sutton,10/06/2022,50204856,-750.4,0,Bridge House Care Centre,SOCIAL SERVICES RESIDENTIAL,Peoples Services,Nursing Care - 3rd party top up payment
London Borough of Sutton,10/06/2022,50204857,"9,962.52",0,Bridge House Care Centre,SOCIAL SERVICES RESIDENTIAL,Peoples Services,Nursing Care - Ext Provider
London Borough of Sutton,10/06/2022,50204857,"-2,181.55",0,Bridge House Care Centre,SOCIAL SERVICES RESIDENTIAL,Peoples Services,Nursing Care - 3rd party top up payment
London Borough of Sutton,10/06/2022,50204896,"3,734.88",0,Bridge House Care Centre,SOCIAL SERVICES RESIDENTIAL,Peoples Services,Nursing Care Short Term
London Borough of Sutton,10/06/2022,50204896,-750.4,0,Bridge House Care Centre,SOCIAL SERVICES RESIDENTIAL,Peoples Services,Nursing Care - 3rd party top up payment
London Borough of Sutton,10/06/2022,50204897,"3,579.44",0,Bridge House Care Centre,SOCIAL SERVICES RESIDENTIAL,Peoples Services,Nursing Care - Ext Provider
London Borough of Sutton,10/06/2022,50204897,-632.64,0,Bridge House Care Centre,SOCIAL SERVICES RESIDENTIAL,Peoples Services,Nursing Care - 3rd party top up payment
London Borough of Sutton,10/06/2022,50204898,"3,848.24",0,Bridge House Care Centre,SOCIAL SERVICES RESIDENTIAL,Peoples Services,Nursing Care Short Term
London Borough of Sutton,10/06/2022,50204898,-750.4,0,Bridge House Care Centre,SOCIAL SERVICES RESIDENTIAL,Peoples Services,Nursing Care - 3rd party top up payment
London Borough of Sutton,10/06/2022,50204967,"3,848.24",0,Bridge House Care Centre,SOCIAL SERVICES RESIDENTIAL,Peoples Services,Nursing Care - Ext Provider
London Borough of Sutton,10/06/2022,50204967,-750.4,0,Bridge House Care Centre,SOCIAL SERVICES RESIDENTIAL,Peoples Services,Nursing Care - 3rd party top up payment
London Borough of Sutton,10/06/2022,50204978,"2,153.12",0,Bridge House Care Centre,SOCIAL SERVICES RESIDENTIAL,Peoples Services,Nursing Care - Ext Provider
London Borough of Sutton,10/06/2022,50204992,-750.4,0,Bridge House Care Centre,SOCIAL SERVICES RESIDENTIAL,Peoples Services,Nursing Care - 3rd party top up payment
London Borough of Sutton,10/06/2022,50204992,"-1,492.80",0,Bridge House Care Centre,SOCIAL SERVICES RESIDENTIAL,Peoples Services,Nursing Care - 3rd party top up payment
London Borough of Sutton,10/06/2022,50204992,"3,736.00",0,Bridge House Care Centre,SOCIAL SERVICES RESIDENTIAL,Peoples Services,Nursing Care - Ext Provider
London Borough of Sutton,10/06/2022,50204994,-750.4,0,Bridge House Care Centre,SOCIAL SERVICES RESIDENTIAL,Peoples Services,Nursing Care - 3rd party top up payment
London Borough of Sutton,10/06/2022,50204994,"3,736.00",0,Bridge House Care Centre,SOCIAL SERVICES RESIDENTIAL,Peoples Services,Nursing Care Short Term
London Borough of Sutton,10/06/2022,50204995,"4,367.13",0,Bridge House Care Centre,SOCIAL SERVICES RESIDENTIAL,Peoples Services,Nursing Care - Ext Provider
London Borough of Sutton,10/06/2022,50204995,-956.3,0,Bridge House Care Centre,SOCIAL SERVICES RESIDENTIAL,Peoples Services,Nursing Care - 3rd party top up payment
London Borough of Sutton,01/05/2022,50204364,"3,498.57",0,Bridging Gaps Limited,CHILDREN'S SERVICES - FOSTERING & ADOPTION SERVICES,Peoples Services,Foster Parents Support
London Borough of Sutton,01/06/2022,50200317,"3,588.08",0,Bright Futures Care Ltd,CHILDREN'S SERVICES - FOSTERING & ADOPTION SERVICES,Peoples Services,Independent School Fees
London Borough of Sutton,01/05/2022,50204392,"13,783.44",0,Bright Futures Care Ltd,CHILDREN'S SERVICES - FOSTERING & ADOPTION SERVICES,Peoples Services,Residential Care-Children
London Borough of Sutton,01/05/2022,50204379,"2,745.67",0,Brighter Futures Foster Care Ltd,CHILDREN'S SERVICES - FOSTERING & ADOPTION SERVICES,Peoples Services,Foster Parents Support
London Borough of Sutton,01/05/2022,50204394,"3,321.34",0,Brighter Futures Foster Care Ltd,CHILDREN'S SERVICES - FOSTERING & ADOPTION SERVICES,Peoples Services,Foster Parents Support
London Borough of Sutton,01/05/2022,50204395,"3,321.38",0,Brighter Futures Foster Care Ltd,CHILDREN'S SERVICES - FOSTERING & ADOPTION SERVICES,Peoples Services,Foster Parents Support
London Borough of Sutton,11/02/2022,20025255,771.65,0,British Gas,UTILITIES,Peoples Services,Electricity
London Borough of Sutton,23/05/2022,20025510,539.03,0,British Gas,UTILITIES,HRA,Electricity
London Borough of Sutton,06/06/2022,20026064,"1,305.44",0,British Gas,UTILITIES,Health and Wellbeing,Electricity
London Borough of Sutton,07/06/2022,20026499,501.44,0,British Gas,UTILITIES,Resources,Electricity
London Borough of Sutton,27/05/2022,20026921,517.68,0,British Gas,UTILITIES,Resources,Electricity
London Borough of Sutton,30/03/2022,20026922,"2,234.48",0,British Gas,UTILITIES,Resources,Electricity
London Borough of Sutton,31/05/2022,20026927,541.16,0,British Gas,UTILITIES,Resources,Electricity
London Borough of Sutton,15/06/2022,20027264,538.37,0,British Gas,UTILITIES,Resources,Electricity
London Borough of Sutton,10/06/2022,50204537,-766.48,0,British Home & Hospital For Incurables,SOCIAL SERVICES RESIDENTIAL,Peoples Services,Nursing Care - Client Cont ( Net paymt )
London Borough of Sutton,10/06/2022,50204537,"2,591.80",0,British Home & Hospital For Incurables,SOCIAL SERVICES RESIDENTIAL,Peoples Services,Nursing Care - Ext Provider
London Borough of Sutton,27/05/2022,20025710,"19,173.61",0,British Telecommunications Plc,UTILITIES,Resources,Telephones
London Borough of Sutton,28/06/2022,50212874,"1,833.29",0,Brunel SEN Multi Academy Trust,CHILDREN'S SERVICES - SEN SERVICES,Peoples Services,Top-up Funding
London Borough of Sutton,07/06/2022,50199340,"3,586.05",0,Bumpsa Daisies Nurserys,GRANTS & EX GRATIA PAYMENTS,Peoples Services,Place Funding
London Borough of Sutton,07/06/2022,50199410,"8,524.80",0,Bumpsa Daisies Nurserys,GRANTS & EX GRATIA PAYMENTS,Peoples Services,Place Funding
London Borough of Sutton,07/06/2022,50199343,551.7,0,Busy Bees Day Nurseries Ltd,GRANTS & EX GRATIA PAYMENTS,Peoples Services,Place Funding
London Borough of Sutton,07/06/2022,50199413,"10,659.84",0,Busy Bees Day Nurseries Ltd,GRANTS & EX GRATIA PAYMENTS,Peoples Services,Place Funding
London Borough of Sutton,07/06/2022,50199412,"1,966.08",0,Busy Bees Day Nurseries Ltd,GRANTS & EX GRATIA PAYMENTS,Peoples Services,Place Funding
London Borough of Sutton,22/06/2022,50210866,650,0,Busy Bees Day Nurseries Ltd,GRANTS & EX GRATIA PAYMENTS,Peoples Services,SEND Inclusion funding
London Borough of Sutton,22/06/2022,50210876,975,0,Busy Bees Day Nurseries Ltd,GRANTS & EX GRATIA PAYMENTS,Peoples Services,SEND Inclusion funding
London Borough of Sutton,10/06/2022,50204554,"8,118.48",0,Butterfly's Care Homes Ltd,SOCIAL SERVICES RESIDENTIAL,Peoples Services,Residential Care - Ext Provider
London Borough of Sutton,06/06/2022,20025869,"534,965.74",0,Buxton Building Contractors Ltd,CONSTRUCTION INDUSTRY,Environment Housing and Neighbourhoods,Payments to Contractors
London Borough of Sutton,01/06/2022,50204358,"4,667.05",0,By The Bridge Ltd,CHILDREN'S SERVICES - FOSTERING & ADOPTION SERVICES,Peoples Services,Foster Parents Support
London Borough of Sutton,01/06/2022,50204447,"2,975.69",0,By The Bridge Ltd,CHILDREN'S SERVICES - FOSTERING & ADOPTION SERVICES,Peoples Services,Foster Parents Support
London Borough of Sutton,01/06/2022,50204450,"2,975.69",0,By The Bridge Ltd,CHILDREN'S SERVICES - FOSTERING & ADOPTION SERVICES,Peoples Services,Foster Parents Support
London Borough of Sutton,09/06/2022,20026230,872.6,0,C&L Properties,SUNDRY SUPPLIER - HOUSING,Environment Housing and Neighbourhoods,Rent Deposit Scheme
London Borough of Sutton,09/06/2022,20026232,872.6,0,C&L Properties,SUNDRY SUPPLIER - HOUSING,Environment Housing and Neighbourhoods,Rent Deposit Scheme
London Borough of Sutton,11/05/2022,50204396,"16,511.88",0,Calcot Services for Children Ltd,CHILDREN'S SERVICES - FOSTERING & ADOPTION SERVICES,Peoples Services,Residential Care-Children
London Borough of Sutton,11/05/2022,50204397,"2,730.00",0,Calcot Services for Children Ltd,CHILDREN'S SERVICES - FOSTERING & ADOPTION SERVICES,Peoples Services,Residential Care-Children
London Borough of Sutton,26/04/2022,50204376,"20,105.67",0,Cambian Childcare Ltd,CHILDREN'S SERVICES - FOSTERING & ADOPTION SERVICES,Peoples Services,Residential Care-Children
London Borough of Sutton,26/04/2022,50204386,"32,284.29",0,Cambian Childcare Ltd,CHILDREN'S SERVICES - FOSTERING & ADOPTION SERVICES,Peoples Services,Residential Care-Children
London Borough of Sutton,31/12/2021,20026250,"29,600.00",0,Cambridge Maintenance Services Ltd.,SOCIAL SERVICES RESIDENTIAL,Resources,Payments to Contractors
London Borough of Sutton,31/03/2022,20026255,"22,397.87",0,Cambridge Maintenance Services Ltd.,SOCIAL SERVICES RESIDENTIAL,Resources,Payments to Contractors
London Borough of Sutton,14/06/2022,20026522,"1,346.00",0,Cocktail Events,SUNDRY SUPPLIER - EDUCATION,Peoples Services,Equipment And Materials Purchase
London Borough of Sutton,10/06/2022,50204557,-938.08,0,Canterbury Oast Trust,SOCIAL SERVICES RESIDENTIAL,Peoples Services,Residential Care - Client Cont ( Net Paymt )
London Borough of Sutton,10/06/2022,50204557,204.72,0,Canterbury Oast Trust,SOCIAL SERVICES RESIDENTIAL,Peoples Services,One to One Care
London Borough of Sutton,10/06/2022,50204557,"4,060.72",0,Canterbury Oast Trust,SOCIAL SERVICES RESIDENTIAL,Peoples Services,Residential Care - Ext Provider
London Borough of Sutton,31/05/2022,20025618,845,0,Capital Road Safety Ltd,SUNDRY SUPPLIER - ENV SERVICES,Environment Housing and Neighbourhoods,Payments to Contractors
London Borough of Sutton,31/05/2022,50204404,"5,695.32",0,Capstone Foster Care (South East) Ltd,CHILDREN'S SERVICES - FOSTERING & ADOPTION SERVICES,Peoples Services,Foster Parents Support
London Borough of Sutton,31/05/2022,50204444,"5,690.98",0,Capstone Foster Care (South East) Ltd,CHILDREN'S SERVICES - FOSTERING & ADOPTION SERVICES,Peoples Services,Foster Parents Support
London Borough of Sutton,16/05/2022,50199104,"9,116.17",0,Care Advocates Ltd,MANAGEMENT & TRAINING SERVICES,Peoples Services,Supported Living
London Borough of Sutton,16/05/2022,50199105,"6,591.84",0,Care Advocates Ltd,MANAGEMENT & TRAINING SERVICES,Peoples Services,Supported Living
London Borough of Sutton,10/06/2022,50204769,"3,320.32",0,Care Concern Group ,SOCIAL SERVICES RESIDENTIAL,Peoples Services,Residential Care - Ext Provider
London Borough of Sutton,10/06/2022,50204808,"-3,000.00",0,Care Concern Group ,SOCIAL SERVICES RESIDENTIAL,Peoples Services,Nursing Care - 3rd party top up payment
London Borough of Sutton,10/06/2022,50204808,-750.4,0,Care Concern Group ,SOCIAL SERVICES RESIDENTIAL,Peoples Services,Nursing Care - 3rd party top up payment
London Borough of Sutton,10/06/2022,50204808,"6,750.40",0,Care Concern Group ,SOCIAL SERVICES RESIDENTIAL,Peoples Services,Nursing Care - Ext Provider
London Borough of Sutton,10/06/2022,50204809,"-3,482.14",0,Care Concern Group ,SOCIAL SERVICES RESIDENTIAL,Peoples Services,Nursing Care - 3rd party top up payment
London Borough of Sutton,10/06/2022,50204809,"-1,165.49",0,Care Concern Group ,SOCIAL SERVICES RESIDENTIAL,Peoples Services,Nursing Care - 3rd party top up payment
London Borough of Sutton,10/06/2022,50204809,"8,129.77",0,Care Concern Group ,SOCIAL SERVICES RESIDENTIAL,Peoples Services,Nursing Care - Ext Provider
London Borough of Sutton,10/06/2022,50204507,"3,768.36",0,Care Direct Uk Ltd ,SOCIAL SERVICES RESIDENTIAL,Peoples Services,Residential Care - Ext Provider
London Borough of Sutton,31/05/2022,50198722,565.5,0,Care More Ltd,SOCIAL SERVICES RESIDENTIAL,Peoples Services,Home Care Services
London Borough of Sutton,31/05/2022,50198727,564,0,Care More Ltd,SOCIAL SERVICES RESIDENTIAL,Peoples Services,Home Care Services
London Borough of Sutton,31/05/2022,50198741,"1,428.00",0,Care More Ltd,SOCIAL SERVICES RESIDENTIAL,Peoples Services,Home Care Services
London Borough of Sutton,31/05/2022,50198758,679.5,0,Care More Ltd,SOCIAL SERVICES RESIDENTIAL,Peoples Services,Home Care Services
London Borough of Sutton,31/05/2022,50198764,820,0,Care More Ltd,SOCIAL SERVICES RESIDENTIAL,Peoples Services,Home Care Services
London Borough of Sutton,31/05/2022,50198804,813,0,Care More Ltd,SOCIAL SERVICES RESIDENTIAL,Peoples Services,Home Care Services
London Borough of Sutton,13/06/2022,50205399,578,0,Care More Ltd,SOCIAL SERVICES RESIDENTIAL,Peoples Services,Home Care Services
London Borough of Sutton,13/06/2022,50205407,773,0,Care More Ltd,SOCIAL SERVICES RESIDENTIAL,Peoples Services,Home Care Services
London Borough of Sutton,13/06/2022,50205420,835.5,0,Care More Ltd,SOCIAL SERVICES RESIDENTIAL,Peoples Services,Home Care Services
London Borough of Sutton,13/06/2022,50205434,"1,484.00",0,Care More Ltd,SOCIAL SERVICES RESIDENTIAL,Peoples Services,Home Care Services
London Borough of Sutton,13/06/2022,50205441,"1,400.00",0,Care More Ltd,SOCIAL SERVICES RESIDENTIAL,Peoples Services,Home Care Services
London Borough of Sutton,13/06/2022,50205442,"1,400.00",0,Care More Ltd,SOCIAL SERVICES RESIDENTIAL,Peoples Services,Home Care Services
London Borough of Sutton,13/06/2022,50205443,505,0,Care More Ltd,SOCIAL SERVICES RESIDENTIAL,Peoples Services,Home Care Services
London Borough of Sutton,13/06/2022,50205446,800.5,0,Care More Ltd,SOCIAL SERVICES RESIDENTIAL,Peoples Services,Home Care Services
London Borough of Sutton,13/06/2022,50205448,"1,596.00",0,Care More Ltd,SOCIAL SERVICES RESIDENTIAL,Peoples Services,Home Care Services
London Borough of Sutton,13/06/2022,50205449,742,0,Care More Ltd,SOCIAL SERVICES RESIDENTIAL,Peoples Services,Home Care Services
London Borough of Sutton,13/06/2022,50205450,723,0,Care More Ltd,SOCIAL SERVICES RESIDENTIAL,Peoples Services,Home Care Services
London Borough of Sutton,13/06/2022,50205487,"1,526.00",0,Care More Ltd,SOCIAL SERVICES RESIDENTIAL,Peoples Services,Home Care Services
London Borough of Sutton,13/06/2022,50205488,625.5,0,Care More Ltd,SOCIAL SERVICES RESIDENTIAL,Peoples Services,Home Care Services
London Borough of Sutton,13/06/2022,50205495,742,0,Care More Ltd,SOCIAL SERVICES RESIDENTIAL,Peoples Services,Home Care Services
London Borough of Sutton,13/06/2022,50205499,645,0,Care More Ltd,SOCIAL SERVICES RESIDENTIAL,Peoples Services,Home Care Services
London Borough of Sutton,13/06/2022,50205506,564,0,Care More Ltd,SOCIAL SERVICES RESIDENTIAL,Peoples Services,Home Care Services
London Borough of Sutton,13/06/2022,50205509,"1,400.00",0,Care More Ltd,SOCIAL SERVICES RESIDENTIAL,Peoples Services,Home Care Services
London Borough of Sutton,13/06/2022,50205510,51.5,0,Care More Ltd,SOCIAL SERVICES RESIDENTIAL,Peoples Services,Home Care Services
London Borough of Sutton,13/06/2022,50205510,"1,761.25",0,Care More Ltd,SOCIAL SERVICES RESIDENTIAL,Peoples Services,Home Care Services
London Borough of Sutton,13/06/2022,50205511,567,0,Care More Ltd,SOCIAL SERVICES RESIDENTIAL,Peoples Services,Home Care Services
London Borough of Sutton,13/06/2022,50205512,960,0,Care More Ltd,SOCIAL SERVICES RESIDENTIAL,Peoples Services,Home Care Services
London Borough of Sutton,13/06/2022,50205516,"1,134.00",0,Care More Ltd,SOCIAL SERVICES RESIDENTIAL,Peoples Services,Home Care Services
London Borough of Sutton,13/06/2022,50205517,721,0,Care More Ltd,SOCIAL SERVICES RESIDENTIAL,Peoples Services,Home Care Services
London Borough of Sutton,13/06/2022,50205518,"1,089.63",0,Care More Ltd,SOCIAL SERVICES RESIDENTIAL,Peoples Services,Home Care Services
London Borough of Sutton,13/06/2022,50205520,609,0,Care More Ltd,SOCIAL SERVICES RESIDENTIAL,Peoples Services,Home Care Services
London Borough of Sutton,10/06/2022,50204591,-425.6,0,Care UK Homecare Ltd,SOCIAL SERVICES RESIDENTIAL,Peoples Services,Residential Care - Client Cont ( Net Paymt )
London Borough of Sutton,10/06/2022,50204591,"4,772.96",0,Care UK Homecare Ltd,SOCIAL SERVICES RESIDENTIAL,Peoples Services,Residential Care - Ext Provider
London Borough of Sutton,10/06/2022,50204622,"-9,565.30",0,Care UK Homecare Ltd,SOCIAL SERVICES RESIDENTIAL,Peoples Services,Nursing Care - 3rd party top up payment
London Borough of Sutton,10/06/2022,50204622,"47,859.30",0,Care UK Homecare Ltd,SOCIAL SERVICES RESIDENTIAL,Peoples Services,Nursing Care Short Term
London Borough of Sutton,10/06/2022,50204622,"-7,691.60",0,Care UK Homecare Ltd,SOCIAL SERVICES RESIDENTIAL,Peoples Services,Nursing Care - 3rd party top up payment
London Borough of Sutton,10/06/2022,50204705,"4,950.00",0,Care UK Homecare Ltd,SOCIAL SERVICES RESIDENTIAL,Peoples Services,Nursing Care Short Term
London Borough of Sutton,10/06/2022,50204705,"-1,045.95",0,Care UK Homecare Ltd,SOCIAL SERVICES RESIDENTIAL,Peoples Services,Nursing Care - 3rd party top up payment
London Borough of Sutton,10/06/2022,50204893,-662.24,0,Care UK Homecare Ltd,SOCIAL SERVICES RESIDENTIAL,Peoples Services,Nursing Care - 3rd party top up payment
London Borough of Sutton,10/06/2022,50204893,"3,696.24",0,Care UK Homecare Ltd,SOCIAL SERVICES RESIDENTIAL,Peoples Services,Nursing Care - Ext Provider
London Borough of Sutton,26/05/2022,50212651,"4,732.00",0,Care Unlimited Domcare Ltd,SOCIAL SERVICES DAY CARE,Peoples Services,Supported Living
London Borough of Sutton,02/06/2022,50199686,"4,040.00",0,Care4Care Services Ltd,SOCIAL SERVICES DAY CARE,Peoples Services,Home Care Services
London Borough of Sutton,02/06/2022,50199687,"1,756.50",0,Care4Care Services Ltd,SOCIAL SERVICES DAY CARE,Peoples Services,Home Care Services
London Borough of Sutton,02/06/2022,50199689,854.5,0,Care4Care Services Ltd,SOCIAL SERVICES DAY CARE,Peoples Services,Home Care Services
London Borough of Sutton,02/06/2022,50199691,"1,756.50",0,Care4Care Services Ltd,SOCIAL SERVICES DAY CARE,Peoples Services,Home Care Services
London Borough of Sutton,02/06/2022,50199696,622.5,0,Care4Care Services Ltd,SOCIAL SERVICES DAY CARE,Peoples Services,Home Care Services
London Borough of Sutton,02/06/2022,50199697,"4,040.00",0,Care4Care Services Ltd,SOCIAL SERVICES DAY CARE,Peoples Services,Home Care Services
London Borough of Sutton,02/06/2022,50199703,"1,756.50",0,Care4Care Services Ltd,SOCIAL SERVICES DAY CARE,Peoples Services,Home Care Services
London Borough of Sutton,02/06/2022,50199704,909.5,0,Care4Care Services Ltd,SOCIAL SERVICES DAY CARE,Peoples Services,Home Care Services
London Borough of Sutton,02/06/2022,50199706,"3,638.00",0,Care4Care Services Ltd,SOCIAL SERVICES DAY CARE,Peoples Services,Home Care Services
London Borough of Sutton,02/06/2022,50199707,"1,333.00",0,Care4Care Services Ltd,SOCIAL SERVICES DAY CARE,Peoples Services,Home Care Services
London Borough of Sutton,02/06/2022,50199708,"1,090.00",0,Care4Care Services Ltd,SOCIAL SERVICES DAY CARE,Peoples Services,Home Care Services
London Borough of Sutton,02/06/2022,50199709,"1,055.10",0,Care4Care Services Ltd,SOCIAL SERVICES DAY CARE,Peoples Services,Home Care Services
London Borough of Sutton,02/06/2022,50199710,909.5,0,Care4Care Services Ltd,SOCIAL SERVICES DAY CARE,Peoples Services,Home Care Services
London Borough of Sutton,30/04/2022,20025244,"5,809.08",0,Careium UK Limited,ACCOMMODATION - OTHER,Peoples Services,Other Agencies - Third Party
London Borough of Sutton,30/04/2022,20025554,"13,830.66",0,Careium UK Limited,ACCOMMODATION - OTHER,Peoples Services,Equipment
London Borough of Sutton,31/05/2022,20026169,"28,224.67",0,Careium UK Limited,ACCOMMODATION - OTHER,Peoples Services,Other Agencies - Third Party
London Borough of Sutton,31/05/2022,20026397,"5,809.08",0,Careium UK Limited,ACCOMMODATION - OTHER,Peoples Services,Other Agencies - Third Party
London Borough of Sutton,30/04/2022,20026693,"26,948.16",0,Careium UK Limited,ACCOMMODATION - OTHER,Peoples Services,Other Agencies - Third Party
London Borough of Sutton,31/05/2022,20026694,"12,688.50",0,Careium UK Limited,ACCOMMODATION - OTHER,Peoples Services,Equipment
London Borough of Sutton,22/05/2022,50198903,846.4,0,Caremark (Sutton),SOCIAL SERVICES DAY CARE,Peoples Services,Home Care Services
London Borough of Sutton,22/05/2022,50198904,507.4,0,Caremark (Sutton),SOCIAL SERVICES DAY CARE,Peoples Services,Home Care Services
London Borough of Sutton,29/05/2022,50200570,540.75,0,Caremark (Sutton),SOCIAL SERVICES DAY CARE,Peoples Services,Home Care Services
London Borough of Sutton,29/05/2022,50200577,818.44,0,Caremark (Sutton),SOCIAL SERVICES DAY CARE,Peoples Services,Home Care Services
London Borough of Sutton,29/05/2022,50200577,34.41,0,Caremark (Sutton),SOCIAL SERVICES DAY CARE,Peoples Services,Home Care Services
London Borough of Sutton,29/05/2022,50200582,"1,918.50",0,Caremark (Sutton),SOCIAL SERVICES DAY CARE,Peoples Services,Home Care Services
London Borough of Sutton,29/05/2022,50200591,907.09,0,Caremark (Sutton),SOCIAL SERVICES DAY CARE,Peoples Services,Home Care Services
London Borough of Sutton,29/05/2022,50200591,140.23,0,Caremark (Sutton),SOCIAL SERVICES DAY CARE,Peoples Services,Home Care Services
London Borough of Sutton,29/05/2022,50200597,500.41,0,Caremark (Sutton),SOCIAL SERVICES DAY CARE,Peoples Services,Home Care Services
London Borough of Sutton,29/05/2022,50200615,580.36,0,Caremark (Sutton),SOCIAL SERVICES DAY CARE,Peoples Services,Home Care Services
London Borough of Sutton,29/05/2022,50200627,865.2,0,Caremark (Sutton),SOCIAL SERVICES DAY CARE,Peoples Services,Home Care Services
London Borough of Sutton,29/05/2022,50205526,846.4,0,Caremark (Sutton),SOCIAL SERVICES DAY CARE,Peoples Services,Home Care Services
London Borough of Sutton,12/06/2022,50208844,540.75,0,Caremark (Sutton),SOCIAL SERVICES DAY CARE,Peoples Services,Home Care Services
London Borough of Sutton,12/06/2022,50208851,251.92,0,Caremark (Sutton),SOCIAL SERVICES DAY CARE,Peoples Services,Home Care Services
London Borough of Sutton,12/06/2022,50208851,284.18,0,Caremark (Sutton),SOCIAL SERVICES DAY CARE,Peoples Services,Home Care Services
London Borough of Sutton,12/06/2022,50208852,801.93,0,Caremark (Sutton),SOCIAL SERVICES DAY CARE,Peoples Services,Home Care Services
London Borough of Sutton,12/06/2022,50208852,33.72,0,Caremark (Sutton),SOCIAL SERVICES DAY CARE,Peoples Services,Home Care Services
London Borough of Sutton,12/06/2022,50208855,"1,913.13",0,Caremark (Sutton),SOCIAL SERVICES DAY CARE,Peoples Services,Home Care Services
London Borough of Sutton,12/06/2022,50208860,965.62,0,Caremark (Sutton),SOCIAL SERVICES DAY CARE,Peoples Services,Home Care Services
London Borough of Sutton,12/06/2022,50208860,150.5,0,Caremark (Sutton),SOCIAL SERVICES DAY CARE,Peoples Services,Home Care Services
London Borough of Sutton,12/06/2022,50208867,580.36,0,Caremark (Sutton),SOCIAL SERVICES DAY CARE,Peoples Services,Home Care Services
London Borough of Sutton,12/06/2022,50208876,897.45,0,Caremark (Sutton),SOCIAL SERVICES DAY CARE,Peoples Services,Home Care Services
London Borough of Sutton,27/06/2022,50212890,750,0,Caremark (Sutton),SOCIAL SERVICES DAY CARE,Peoples Services,Miscellaneous Expenses
London Borough of Sutton,07/06/2022,50204407,"9,997.50",0,Caremore Group Ltd,CHILDREN'S SERVICES - FOSTERING & ADOPTION SERVICES,Peoples Services,Approved Lodgings
London Borough of Sutton,10/06/2022,50204623,"5,742.08",0,Caretech Community Services Ltd,SOCIAL SERVICES RESIDENTIAL,Peoples Services,Residential Care - Ext Provider
London Borough of Sutton,10/06/2022,50204623,-710,0,Caretech Community Services Ltd,SOCIAL SERVICES RESIDENTIAL,Peoples Services,Residential Care - Client Cont ( Net Paymt )
London Borough of Sutton,10/06/2022,50204624,"5,742.08",0,Caretech Community Services Ltd,SOCIAL SERVICES RESIDENTIAL,Peoples Services,Residential Care - Ext Provider
London Borough of Sutton,10/06/2022,50204624,-455.3,0,Caretech Community Services Ltd,SOCIAL SERVICES RESIDENTIAL,Peoples Services,Residential Care - Client Cont ( Net Paymt )
London Borough of Sutton,10/06/2022,50204783,"5,889.60",0,Caretech Community Services Ltd,SOCIAL SERVICES RESIDENTIAL,Peoples Services,Residential Care - Ext Provider
London Borough of Sutton,10/06/2022,50204783,-627.8,0,Caretech Community Services Ltd,SOCIAL SERVICES RESIDENTIAL,Peoples Services,Residential Care - Client Cont ( Net Paymt )
London Borough of Sutton,10/06/2022,50204942,"5,739.60",0,Caretech Community Services Ltd,SOCIAL SERVICES RESIDENTIAL,Peoples Services,Residential Care - Ext Provider
London Borough of Sutton,14/02/2022,50212882,"7,800.00",0,CareTrade Charitable Trust,CHILDREN'S SERVICES - SEN SERVICES,Peoples Services,Independent School Fees
London Borough of Sutton,29/10/2021,50212883,"7,800.00",0,CareTrade Charitable Trust,CHILDREN'S SERVICES - SEN SERVICES,Peoples Services,Independent School Fees
London Borough of Sutton,14/04/2022,50212884,"7,800.00",0,CareTrade Charitable Trust,CHILDREN'S SERVICES - SEN SERVICES,Peoples Services,Independent School Fees
London Borough of Sutton,31/05/2022,50204463,"5,369.65",0,Caridon Young Living Ltd,CHILDREN'S SERVICES - RESIDENTIAL,Peoples Services,Approved Lodgings
London Borough of Sutton,01/03/2022,50204465,619.64,0,Caridon Young Living Ltd,CHILDREN'S SERVICES - RESIDENTIAL,Peoples Services,Approved Lodgings
London Borough of Sutton,31/05/2022,50204477,"4,816.08",0,Caridon Young Living Ltd,CHILDREN'S SERVICES - RESIDENTIAL,Peoples Services,Approved Lodgings
London Borough of Sutton,22/06/2022,50211005,"3,073.58",0,Care Support Partners Ltd,SOCIAL SERVICES RESIDENTIAL,Peoples Services,Supported Living
London Borough of Sutton,07/06/2022,50199699,"1,075.10",0,Carlene House,SOCIAL SERVICES RESIDENTIAL,Peoples Services,Supported Living
London Borough of Sutton,07/06/2022,50199705,578.9,0,Carlene House,SOCIAL SERVICES RESIDENTIAL,Peoples Services,Supported Living
London Borough of Sutton,10/06/2022,50204606,"5,684.08",0,Carlene House,SOCIAL SERVICES RESIDENTIAL,Peoples Services,Residential Care - Ext Provider
London Borough of Sutton,10/06/2022,50204673,"5,684.08",0,Carlene House,SOCIAL SERVICES RESIDENTIAL,Peoples Services,Residential Care - Ext Provider
London Borough of Sutton,10/06/2022,50204794,"5,684.08",0,Carlene House,SOCIAL SERVICES RESIDENTIAL,Peoples Services,Residential Care - Ext Provider
London Borough of Sutton,10/06/2022,50204795,"5,684.08",0,Carlene House,SOCIAL SERVICES RESIDENTIAL,Peoples Services,Residential Care - Ext Provider
London Borough of Sutton,10/06/2022,50204796,"5,684.08",0,Carlene House,SOCIAL SERVICES RESIDENTIAL,Peoples Services,Residential Care - Ext Provider
London Borough of Sutton,10/06/2022,50204797,"5,684.08",0,Carlene House,SOCIAL SERVICES RESIDENTIAL,Peoples Services,Residential Care - Ext Provider
London Borough of Sutton,10/06/2022,50204884,"5,684.08",0,Carlene House,SOCIAL SERVICES RESIDENTIAL,Peoples Services,Residential Care - Ext Provider
London Borough of Sutton,07/06/2022,50199457,724.95,0,REDACTED - PERSONAL DATA,GRANTS & EX GRATIA PAYMENTS,Peoples Services,Place Funding
London Borough of Sutton,07/06/2022,50199408,"1,611.00",0,REDACTED - PERSONAL DATA,GRANTS & EX GRATIA PAYMENTS,Peoples Services,Place Funding
London Borough of Sutton,24/05/2022,20026704,"8,693.70",0,Castle Water Ltd ,UTILITIES,Health and Wellbeing,Water Services
London Borough of Sutton,01/06/2022,20025751,"34,508.60",0,Caysh Housing Project,SOCIAL SERVICES RESIDENTIAL,Peoples Services,Approved Lodgings
London Borough of Sutton,23/06/2022,20027211,"1,345.96",0,Caysh Housing Project,SOCIAL SERVICES RESIDENTIAL,Peoples Services,Approved Lodgings
London Borough of Sutton,23/06/2022,20027213,"1,375.64",0,Caysh Housing Project,SOCIAL SERVICES RESIDENTIAL,Peoples Services,Miscellaneous Expenses
London Borough of Sutton,01/05/2022,50204425,"5,804.44",0,Channels & Choices Theraputic Fostering Ltd,CHILDREN'S SERVICES - FOSTERING & ADOPTION SERVICES,Peoples Services,Foster Parents Support
London Borough of Sutton,10/06/2022,50204592,"2,042.86",0,CHD Living Ltd,SOCIAL SERVICES RESIDENTIAL,Peoples Services,Residential Care - Ext Provider
London Borough of Sutton,07/06/2022,50199418,"8,725.17",0,Cheam Baptist Church Pre-School,GRANTS & EX GRATIA PAYMENTS,Peoples Services,Place Funding
London Borough of Sutton,15/06/2022,20026612,"1,157.30",0,Cheam Charter Fair Committee,SUNDRY SUPPLIER - ENV SERVICES,Resources,"Grants, Contributions & Donations"
London Borough of Sutton,07/06/2022,50199188,"23,681.70",0,Cheam Common Infants School -ACADEMY,GRANTS & EX GRATIA PAYMENTS,Peoples Services,Place Funding
London Borough of Sutton,17/06/2022,20026803,540,0,Cheam Common Junior Academy,GRANTS & EX GRATIA PAYMENTS,Peoples Services,Play Groups
London Borough of Sutton,07/06/2022,50199162,"3,211.20",0,Cheam High School (Academy),GRANTS & EX GRATIA PAYMENTS,Peoples Services,Pupil Growth
London Borough of Sutton,07/06/2022,50199213,"2,329.05",0,Cheam High School (Academy),GRANTS & EX GRATIA PAYMENTS,Peoples Services,Payments to Schools
London Borough of Sutton,07/06/2022,50199222,"2,400.00",0,Cheam High School (Academy),GRANTS & EX GRATIA PAYMENTS,Peoples Services,Payments to Schools
London Borough of Sutton,16/06/2022,50209050,"3,247.50",0,Cheam High School (Academy),GRANTS & EX GRATIA PAYMENTS,Peoples Services,Special Educational Needs
London Borough of Sutton,07/06/2022,50199190,"11,980.80",0,Cheam Park Farm Primary School ,GRANTS & EX GRATIA PAYMENTS,Peoples Services,Place Funding
London Borough of Sutton,10/06/2022,50204604,"4,150.40",0,Chegworth Nursing Home Bayswift Ltd,SOCIAL SERVICES RESIDENTIAL,Peoples Services,Nursing Care - Ext Provider
London Borough of Sutton,10/06/2022,50204629,-662.24,0,Chegworth Nursing Home Bayswift Ltd,SOCIAL SERVICES RESIDENTIAL,Peoples Services,Nursing Care - 3rd party top up payment
London Borough of Sutton,10/06/2022,50204629,"4,955.56",0,Chegworth Nursing Home Bayswift Ltd,SOCIAL SERVICES RESIDENTIAL,Peoples Services,Nursing Care Short Term
London Borough of Sutton,10/06/2022,50204636,"2,235.93",0,Chegworth Nursing Home Bayswift Ltd,SOCIAL SERVICES RESIDENTIAL,Peoples Services,Nursing Care - Ext Provider
London Borough of Sutton,10/06/2022,50204636,-341.57,0,Chegworth Nursing Home Bayswift Ltd,SOCIAL SERVICES RESIDENTIAL,Peoples Services,Nursing Care - 3rd party top up payment
London Borough of Sutton,10/06/2022,50204656,"3,753.20",0,Chegworth Nursing Home Bayswift Ltd,SOCIAL SERVICES RESIDENTIAL,Peoples Services,Nursing Care - Ext Provider
London Borough of Sutton,10/06/2022,50204656,-735.68,0,Chegworth Nursing Home Bayswift Ltd,SOCIAL SERVICES RESIDENTIAL,Peoples Services,Nursing Care - 3rd party top up payment
London Borough of Sutton,10/06/2022,50204708,"3,734.88",0,Chegworth Nursing Home Bayswift Ltd,SOCIAL SERVICES RESIDENTIAL,Peoples Services,Nursing Care Short Term
London Borough of Sutton,10/06/2022,50204708,-750.4,0,Chegworth Nursing Home Bayswift Ltd,SOCIAL SERVICES RESIDENTIAL,Peoples Services,Nursing Care - 3rd party top up payment
London Borough of Sutton,10/06/2022,50204751,"2,905.28",0,Chegworth Nursing Home Bayswift Ltd,SOCIAL SERVICES RESIDENTIAL,Peoples Services,Nursing Care Short Term
London Borough of Sutton,10/06/2022,50204785,"3,665.20",0,Chegworth Nursing Home Bayswift Ltd,SOCIAL SERVICES RESIDENTIAL,Peoples Services,Nursing Care - Ext Provider
London Borough of Sutton,10/06/2022,50204785,-632.64,0,Chegworth Nursing Home Bayswift Ltd,SOCIAL SERVICES RESIDENTIAL,Peoples Services,Nursing Care - 3rd party top up payment
London Borough of Sutton,10/06/2022,50204819,"3,848.24",0,Chegworth Nursing Home Bayswift Ltd,SOCIAL SERVICES RESIDENTIAL,Peoples Services,Nursing Care - Ext Provider
London Borough of Sutton,10/06/2022,50204819,-750.4,0,Chegworth Nursing Home Bayswift Ltd,SOCIAL SERVICES RESIDENTIAL,Peoples Services,Nursing Care - 3rd party top up payment
London Borough of Sutton,10/06/2022,50204821,-632.64,0,Chegworth Nursing Home Bayswift Ltd,SOCIAL SERVICES RESIDENTIAL,Peoples Services,Nursing Care - 3rd party top up payment
London Borough of Sutton,10/06/2022,50204821,"3,919.08",0,Chegworth Nursing Home Bayswift Ltd,SOCIAL SERVICES RESIDENTIAL,Peoples Services,Nursing Care - Ext Provider
London Borough of Sutton,10/06/2022,50204824,"3,848.24",0,Chegworth Nursing Home Bayswift Ltd,SOCIAL SERVICES RESIDENTIAL,Peoples Services,Nursing Care - Ext Provider
London Borough of Sutton,10/06/2022,50204824,-750.4,0,Chegworth Nursing Home Bayswift Ltd,SOCIAL SERVICES RESIDENTIAL,Peoples Services,Nursing Care - 3rd party top up payment
London Borough of Sutton,10/06/2022,50204826,"4,149.92",0,Chegworth Nursing Home Bayswift Ltd,SOCIAL SERVICES RESIDENTIAL,Peoples Services,Nursing Care - Ext Provider
London Borough of Sutton,10/06/2022,50204826,-750.4,0,Chegworth Nursing Home Bayswift Ltd,SOCIAL SERVICES RESIDENTIAL,Peoples Services,Nursing Care - 3rd party top up payment
London Borough of Sutton,10/06/2022,50204859,"-27,753.14",0,Chegworth Nursing Home Bayswift Ltd,SOCIAL SERVICES RESIDENTIAL,Peoples Services,Respite Care
London Borough of Sutton,10/06/2022,50204859,"5,574.40",0,Chegworth Nursing Home Bayswift Ltd,SOCIAL SERVICES RESIDENTIAL,Peoples Services,Nursing Care - 3rd party top up payment
London Borough of Sutton,10/06/2022,50204860,"11,208.00",0,Chegworth Nursing Home Bayswift Ltd,SOCIAL SERVICES RESIDENTIAL,Peoples Services,Nursing Care - Ext Provider
London Borough of Sutton,10/06/2022,50204860,"-2,251.20",0,Chegworth Nursing Home Bayswift Ltd,SOCIAL SERVICES RESIDENTIAL,Peoples Services,Nursing Care - 3rd party top up payment
London Borough of Sutton,10/06/2022,50204861,"3,665.20",0,Chegworth Nursing Home Bayswift Ltd,SOCIAL SERVICES RESIDENTIAL,Peoples Services,Nursing Care - Ext Provider
London Borough of Sutton,10/06/2022,50204861,-632.64,0,Chegworth Nursing Home Bayswift Ltd,SOCIAL SERVICES RESIDENTIAL,Peoples Services,Nursing Care - 3rd party top up payment
London Borough of Sutton,10/06/2022,50204889,"2,865.93",0,Chegworth Nursing Home Bayswift Ltd,SOCIAL SERVICES RESIDENTIAL,Peoples Services,Nursing Care Short Term
London Borough of Sutton,10/06/2022,50204889,-627.57,0,Chegworth Nursing Home Bayswift Ltd,SOCIAL SERVICES RESIDENTIAL,Peoples Services,Nursing Care - 3rd party top up payment
London Borough of Sutton,10/06/2022,50204900,"3,848.24",0,Chegworth Nursing Home Bayswift Ltd,SOCIAL SERVICES RESIDENTIAL,Peoples Services,Nursing Care - Ext Provider
London Borough of Sutton,10/06/2022,50204900,-750.4,0,Chegworth Nursing Home Bayswift Ltd,SOCIAL SERVICES RESIDENTIAL,Peoples Services,Nursing Care - 3rd party top up payment
London Borough of Sutton,10/06/2022,50204986,"3,734.88",0,Chegworth Nursing Home Bayswift Ltd,SOCIAL SERVICES RESIDENTIAL,Peoples Services,Nursing Care Short Term
London Borough of Sutton,10/06/2022,50204986,-750.4,0,Chegworth Nursing Home Bayswift Ltd,SOCIAL SERVICES RESIDENTIAL,Peoples Services,Nursing Care - 3rd party top up payment
London Borough of Sutton,10/06/2022,50204996,-735.68,0,Chegworth Nursing Home Bayswift Ltd,SOCIAL SERVICES RESIDENTIAL,Peoples Services,Nursing Care - 3rd party top up payment
London Borough of Sutton,10/06/2022,50204996,"3,720.16",0,Chegworth Nursing Home Bayswift Ltd,SOCIAL SERVICES RESIDENTIAL,Peoples Services,Nursing Care - Ext Provider
London Borough of Sutton,10/06/2022,50204700,"3,486.32",0,Cherry Lodge,SOCIAL SERVICES RESIDENTIAL,Peoples Services,Residential Care - Ext Provider
London Borough of Sutton,10/06/2022,50204958,"2,895.32",0,Cherry Lodge,SOCIAL SERVICES RESIDENTIAL,Peoples Services,Residential Care - Ext Provider
London Borough of Sutton,10/06/2022,50204958,-457.24,0,Cherry Lodge,SOCIAL SERVICES RESIDENTIAL,Peoples Services,Residential Care - Client Cont ( Net Paymt )
London Borough of Sutton,10/06/2022,50204817,"6,923.72",0,CHHG Ltd,SOCIAL SERVICES RESIDENTIAL,Peoples Services,Nursing Care - Ext Provider
London Borough of Sutton,10/06/2022,50204817,-750.4,0,CHHG Ltd,SOCIAL SERVICES RESIDENTIAL,Peoples Services,Nursing Care - 3rd party top up payment
London Borough of Sutton,10/06/2022,50204877,-735.68,0,CHHG Ltd,SOCIAL SERVICES RESIDENTIAL,Peoples Services,Nursing Care - 3rd party top up payment
London Borough of Sutton,10/06/2022,50204877,"3,927.68",0,CHHG Ltd,SOCIAL SERVICES RESIDENTIAL,Peoples Services,Nursing Care - Ext Provider
London Borough of Sutton,19/05/2022,20025205,"1,486.20",0,Childcare and Learning (Cranbrook) Limited,CHILDREN'S SERVICES - DAY CARE,Peoples Services,C.C.A Daycare & Playschemes
London Borough of Sutton,01/06/2022,20025484,"1,272.00",0,Childcare and Learning (Cranbrook) Limited,CHILDREN'S SERVICES - DAY CARE,Peoples Services,C.C.A Daycare & Playschemes
London Borough of Sutton,28/05/2022,20025621,"2,314.00",0,Children's Trust,CHILDREN'S SERVICES - DAY CARE,Peoples Services,Respite Care
London Borough of Sutton,09/06/2022,50206057,"4,410.60",0,Children's Trust,CHILDREN'S SERVICES - DAY CARE,Peoples Services,Independent School Fees
London Borough of Sutton,09/06/2022,50206058,"5,344.80",0,Children's Trust,CHILDREN'S SERVICES - DAY CARE,Peoples Services,Independent School Fees
London Borough of Sutton,09/06/2022,50206059,"5,253.60",0,Children's Trust,CHILDREN'S SERVICES - DAY CARE,Peoples Services,Independent School Fees
London Borough of Sutton,07/06/2022,50199419,"3,624.75",0,Chiltern Day Nursery,GRANTS & EX GRATIA PAYMENTS,Peoples Services,Place Funding
London Borough of Sutton,10/06/2022,50204832,"7,793.40",0,Choice Care Group (Surrey) Ltd,SOCIAL SERVICES RESIDENTIAL,Peoples Services,Residential Care - Ext Provider
London Borough of Sutton,10/06/2022,50204832,-381.55,0,Choice Care Group (Surrey) Ltd,SOCIAL SERVICES RESIDENTIAL,Peoples Services,Residential Care - Client Cont ( Net Paymt )
London Borough of Sutton,10/06/2022,50204848,"7,809.32",0,Choice Care Group (Surrey) Ltd,SOCIAL SERVICES RESIDENTIAL,Peoples Services,Residential Care - Ext Provider
London Borough of Sutton,10/06/2022,50204930,"7,512.24",0,Choice Care Group (Surrey) Ltd,SOCIAL SERVICES RESIDENTIAL,Peoples Services,Residential Care - Ext Provider
London Borough of Sutton,10/06/2022,50204933,"8,682.92",0,Choice Care Group (Surrey) Ltd,SOCIAL SERVICES RESIDENTIAL,Peoples Services,Residential Care - Ext Provider
London Borough of Sutton,16/06/2022,20026732,"2,400.00",0,Choice DSS Lettings Ltd,SUNDRY SUPPLIER - HOUSING,Environment Housing and Neighbourhoods,PSL Payments To Landlords
London Borough of Sutton,01/06/2022,50199094,"6,350.26",0,Choice Support,GRANTS & EX GRATIA PAYMENTS,Peoples Services,Supported Living
London Borough of Sutton,01/06/2022,50199094,244.5,0,Choice Support,GRANTS & EX GRATIA PAYMENTS,Peoples Services,Supported Living
London Borough of Sutton,01/06/2022,50199094,633.82,0,Choice Support,GRANTS & EX GRATIA PAYMENTS,Peoples Services,Supported Living
London Borough of Sutton,01/06/2022,50199095,"3,578.95",0,Choice Support,GRANTS & EX GRATIA PAYMENTS,Peoples Services,Supported Living
London Borough of Sutton,01/06/2022,50199095,"3,156.33",0,Choice Support,GRANTS & EX GRATIA PAYMENTS,Peoples Services,Supported Living
London Borough of Sutton,01/06/2022,50199095,244.5,0,Choice Support,GRANTS & EX GRATIA PAYMENTS,Peoples Services,Supported Living
London Borough of Sutton,01/06/2022,50199095,633.82,0,Choice Support,GRANTS & EX GRATIA PAYMENTS,Peoples Services,Supported Living
London Borough of Sutton,01/06/2022,50199096,887.35,0,Choice Support,GRANTS & EX GRATIA PAYMENTS,Peoples Services,Supported Living
London Borough of Sutton,01/06/2022,50199096,"5,015.36",0,Choice Support,GRANTS & EX GRATIA PAYMENTS,Peoples Services,Supported Living
London Borough of Sutton,01/06/2022,50199098,"6,920.93",0,Choice Support,GRANTS & EX GRATIA PAYMENTS,Peoples Services,Supported Living
London Borough of Sutton,01/06/2022,50199098,887.35,0,Choice Support,GRANTS & EX GRATIA PAYMENTS,Peoples Services,Supported Living
London Borough of Sutton,01/06/2022,50199099,"5,866.31",0,Choice Support,GRANTS & EX GRATIA PAYMENTS,Peoples Services,Supported Living
London Borough of Sutton,01/06/2022,50199099,887.35,0,Choice Support,GRANTS & EX GRATIA PAYMENTS,Peoples Services,Supported Living
London Borough of Sutton,01/06/2022,50199107,"1,694.95",0,Choice Support,GRANTS & EX GRATIA PAYMENTS,Peoples Services,Supported Living
London Borough of Sutton,01/06/2022,50199107,"1,793.39",0,Choice Support,GRANTS & EX GRATIA PAYMENTS,Peoples Services,Supported Living
London Borough of Sutton,01/06/2022,50199107,244.5,0,Choice Support,GRANTS & EX GRATIA PAYMENTS,Peoples Services,Supported Living
London Borough of Sutton,01/06/2022,50199107,633.82,0,Choice Support,GRANTS & EX GRATIA PAYMENTS,Peoples Services,Supported Living
London Borough of Sutton,01/06/2022,50199108,"5,843.99",0,Choice Support,GRANTS & EX GRATIA PAYMENTS,Peoples Services,Supported Living
London Borough of Sutton,01/06/2022,50199108,887.35,0,Choice Support,GRANTS & EX GRATIA PAYMENTS,Peoples Services,Supported Living
London Borough of Sutton,01/06/2022,50199111,"2,812.81",0,Choice Support,GRANTS & EX GRATIA PAYMENTS,Peoples Services,Supported Living
London Borough of Sutton,01/06/2022,50199111,"1,642.42",0,Choice Support,GRANTS & EX GRATIA PAYMENTS,Peoples Services,Supported Living
London Borough of Sutton,01/06/2022,50199111,244.5,0,Choice Support,GRANTS & EX GRATIA PAYMENTS,Peoples Services,Supported Living
London Borough of Sutton,01/06/2022,50199111,633.82,0,Choice Support,GRANTS & EX GRATIA PAYMENTS,Peoples Services,Supported Living
London Borough of Sutton,01/06/2022,50199112,"2,335.23",0,Choice Support,GRANTS & EX GRATIA PAYMENTS,Peoples Services,Supported Living
London Borough of Sutton,01/06/2022,50199112,"1,529.45",0,Choice Support,GRANTS & EX GRATIA PAYMENTS,Peoples Services,Supported Living
London Borough of Sutton,01/06/2022,50199112,244.5,0,Choice Support,GRANTS & EX GRATIA PAYMENTS,Peoples Services,Supported Living
London Borough of Sutton,01/06/2022,50199112,633.82,0,Choice Support,GRANTS & EX GRATIA PAYMENTS,Peoples Services,Supported Living
London Borough of Sutton,10/06/2022,50204575,"5,716.12",0,Choice Support,GRANTS & EX GRATIA PAYMENTS,Peoples Services,Residential Care - Ext Provider
London Borough of Sutton,04/05/2022,50208835,"1,980.12",0,Choice Support,GRANTS & EX GRATIA PAYMENTS,Peoples Services,Supported Living
London Borough of Sutton,04/05/2022,50208835,"1,717.89",0,Choice Support,GRANTS & EX GRATIA PAYMENTS,Peoples Services,Supported Living
London Borough of Sutton,04/05/2022,50208835,278.62,0,Choice Support,GRANTS & EX GRATIA PAYMENTS,Peoples Services,Supported Living
London Borough of Sutton,04/05/2022,50208835,613.37,0,Choice Support,GRANTS & EX GRATIA PAYMENTS,Peoples Services,Supported Living
London Borough of Sutton,04/05/2022,50212008,"5,655.47",0,Choice Support,GRANTS & EX GRATIA PAYMENTS,Peoples Services,Supported Living
London Borough of Sutton,04/05/2022,50212008,858.73,0,Choice Support,GRANTS & EX GRATIA PAYMENTS,Peoples Services,Supported Living
London Borough of Sutton,07/06/2022,50212009,"3,485.36",0,Choice Support,GRANTS & EX GRATIA PAYMENTS,Peoples Services,Supported Living
London Borough of Sutton,07/06/2022,50212009,"3,032.66",0,Choice Support,GRANTS & EX GRATIA PAYMENTS,Peoples Services,Supported Living
London Borough of Sutton,07/06/2022,50212009,236.61,0,Choice Support,GRANTS & EX GRATIA PAYMENTS,Peoples Services,Supported Living
London Borough of Sutton,07/06/2022,50212009,613.37,0,Choice Support,GRANTS & EX GRATIA PAYMENTS,Peoples Services,Supported Living
London Borough of Sutton,04/05/2022,50212010,"1,744.52",0,Choice Support,GRANTS & EX GRATIA PAYMENTS,Peoples Services,Supported Living
London Borough of Sutton,04/05/2022,50212010,"1,636.61",0,Choice Support,GRANTS & EX GRATIA PAYMENTS,Peoples Services,Supported Living
London Borough of Sutton,04/05/2022,50212010,231.3,0,Choice Support,GRANTS & EX GRATIA PAYMENTS,Peoples Services,Supported Living
London Borough of Sutton,04/05/2022,50212010,613.37,0,Choice Support,GRANTS & EX GRATIA PAYMENTS,Peoples Services,Supported Living
London Borough of Sutton,04/05/2022,50212011,"6,697.67",0,Choice Support,GRANTS & EX GRATIA PAYMENTS,Peoples Services,Supported Living
London Borough of Sutton,04/05/2022,50212011,858.73,0,Choice Support,GRANTS & EX GRATIA PAYMENTS,Peoples Services,Supported Living
London Borough of Sutton,04/05/2022,50212012,"5,677.07",0,Choice Support,GRANTS & EX GRATIA PAYMENTS,Peoples Services,Supported Living
London Borough of Sutton,04/05/2022,50212012,858.73,0,Choice Support,GRANTS & EX GRATIA PAYMENTS,Peoples Services,Supported Living
London Borough of Sutton,04/05/2022,50212013,"2,895.07",0,Choice Support,GRANTS & EX GRATIA PAYMENTS,Peoples Services,Supported Living
London Borough of Sutton,04/05/2022,50212013,"1,421.76",0,Choice Support,GRANTS & EX GRATIA PAYMENTS,Peoples Services,Supported Living
London Borough of Sutton,04/05/2022,50212013,231.3,0,Choice Support,GRANTS & EX GRATIA PAYMENTS,Peoples Services,Supported Living
London Borough of Sutton,04/05/2022,50212013,613.37,0,Choice Support,GRANTS & EX GRATIA PAYMENTS,Peoples Services,Supported Living
London Borough of Sutton,04/05/2022,50212014,"6,150.73",0,Choice Support,GRANTS & EX GRATIA PAYMENTS,Peoples Services,Supported Living
London Borough of Sutton,04/05/2022,50212014,231.3,0,Choice Support,GRANTS & EX GRATIA PAYMENTS,Peoples Services,Supported Living
London Borough of Sutton,04/05/2022,50212014,613.37,0,Choice Support,GRANTS & EX GRATIA PAYMENTS,Peoples Services,Supported Living
London Borough of Sutton,07/06/2022,50199346,"1,103.40",0,Christchurch Fledgelings Pre-School,GRANTS & EX GRATIA PAYMENTS,Peoples Services,Place Funding
London Borough of Sutton,07/06/2022,50199420,"7,974.45",0,Christchurch Fledgelings Pre-School,GRANTS & EX GRATIA PAYMENTS,Peoples Services,Place Funding
London Borough of Sutton,30/03/2022,50207710,"3,954.09",0,Chrysalis Care,SOCIAL SERVICES RESIDENTIAL,Peoples Services,Foster Parents Support
London Borough of Sutton,30/03/2022,50207712,"1,422.90",0,Chrysalis Care,SOCIAL SERVICES RESIDENTIAL,Peoples Services,Foster Parents Support
London Borough of Sutton,30/05/2022,50207713,"5,648.70",0,Chrysalis Care,SOCIAL SERVICES RESIDENTIAL,Peoples Services,Foster Parents Support
London Borough of Sutton,30/04/2022,50207714,"5,648.70",0,Chrysalis Care,SOCIAL SERVICES RESIDENTIAL,Peoples Services,Foster Parents Support
London Borough of Sutton,16/06/2022,20026701,"1,950.00",0,CIPFA Business Limited,CONFERENCES,Resources,Consultancy Services
London Borough of Sutton,07/06/2022,50199184,"13,593.60",0,Barrow Hedges Primary School Academy,GRANTS & EX GRATIA PAYMENTS,Peoples Services,Place Funding
London Borough of Sutton,18/05/2022,20024880,"7,650.00",0,Citizens Advice Bureau,GRANTS & EX GRATIA PAYMENTS,Environment Housing and Neighbourhoods,Payments to Voluntary Organisations
London Borough of Sutton,01/06/2022,20025695,"1,000.00",0,City of London Corporation,CENTRAL & LOCAL GOVERNMENT,Health and Wellbeing,Provider Contract Payments
London Borough of Sutton,20/06/2022,20026911,"5,500.00",0,City Of Westminster,FINANCIAL / INSURANCE INSTNS,Peoples Services,Fees
London Borough of Sutton,10/05/2022,20026077,"6,600.00",0,Civica UK Ltd,BUSINESS & COMPUTER SYSTEMS,Resources,Staff Development And Training
London Borough of Sutton,10/06/2022,50204677,"3,734.88",0,Claremont Care Svs Ltd,SOCIAL SERVICES RESIDENTIAL,Peoples Services,Nursing Care Short Term
London Borough of Sutton,10/06/2022,50204677,-750.4,0,Claremont Care Svs Ltd,SOCIAL SERVICES RESIDENTIAL,Peoples Services,Nursing Care - 3rd party top up payment
London Borough of Sutton,10/06/2022,50204695,"4,525.36",0,Claremont Care Svs Ltd,SOCIAL SERVICES RESIDENTIAL,Peoples Services,Nursing Care - Ext Provider
London Borough of Sutton,10/06/2022,50204695,-750.4,0,Claremont Care Svs Ltd,SOCIAL SERVICES RESIDENTIAL,Peoples Services,Nursing Care - 3rd party top up payment
London Borough of Sutton,10/06/2022,50204773,"3,848.24",0,Claremont Care Svs Ltd,SOCIAL SERVICES RESIDENTIAL,Peoples Services,Nursing Care - Ext Provider
London Borough of Sutton,10/06/2022,50204773,-750.4,0,Claremont Care Svs Ltd,SOCIAL SERVICES RESIDENTIAL,Peoples Services,Nursing Care - 3rd party top up payment
London Borough of Sutton,10/06/2022,50204816,-974,0,Claremont Care Svs Ltd,SOCIAL SERVICES RESIDENTIAL,Peoples Services,Nursing Care - 3rd party top up payment
London Borough of Sutton,10/06/2022,50204816,"4,514.68",0,Claremont Care Svs Ltd,SOCIAL SERVICES RESIDENTIAL,Peoples Services,Nursing Care - Ext Provider
London Borough of Sutton,10/06/2022,50204816,-632.64,0,Claremont Care Svs Ltd,SOCIAL SERVICES RESIDENTIAL,Peoples Services,Nursing Care - 3rd party top up payment
London Borough of Sutton,10/06/2022,50204818,"3,848.24",0,Claremont Care Svs Ltd,SOCIAL SERVICES RESIDENTIAL,Peoples Services,Nursing Care - Ext Provider
London Borough of Sutton,10/06/2022,50204818,-750.4,0,Claremont Care Svs Ltd,SOCIAL SERVICES RESIDENTIAL,Peoples Services,Nursing Care - 3rd party top up payment
London Borough of Sutton,10/06/2022,50204823,"18,267.35",0,Claremont Care Svs Ltd,SOCIAL SERVICES RESIDENTIAL,Peoples Services,Nursing Care - Ext Provider
London Borough of Sutton,10/06/2022,50204823,"-14,280.00",0,Claremont Care Svs Ltd,SOCIAL SERVICES RESIDENTIAL,Peoples Services,Nursing Care - 3rd party top up payment
London Borough of Sutton,10/06/2022,50204835,"6,487.64",0,Claremont Care Svs Ltd,SOCIAL SERVICES RESIDENTIAL,Peoples Services,Nursing Care - Ext Provider
London Borough of Sutton,10/06/2022,50204835,-750.4,0,Claremont Care Svs Ltd,SOCIAL SERVICES RESIDENTIAL,Peoples Services,Nursing Care - 3rd party top up payment
London Borough of Sutton,10/06/2022,50204934,-735.68,0,Claremont Care Svs Ltd,SOCIAL SERVICES RESIDENTIAL,Peoples Services,Nursing Care - 3rd party top up payment
London Borough of Sutton,10/06/2022,50204934,"5,367.84",0,Claremont Care Svs Ltd,SOCIAL SERVICES RESIDENTIAL,Peoples Services,Nursing Care - Ext Provider
London Borough of Sutton,10/06/2022,50204516,-735.68,0,Bondcare (London) Ltd,SOCIAL SERVICES RESIDENTIAL,Peoples Services,Nursing Care - 3rd party top up payment
London Borough of Sutton,10/06/2022,50204516,"3,720.16",0,Bondcare (London) Ltd,SOCIAL SERVICES RESIDENTIAL,Peoples Services,Nursing Care - Ext Provider
London Borough of Sutton,30/05/2022,50200314,"1,518.80",0,Classroom Teachers Ltd,ACADEMIC INSTNS - OTHER,Peoples Services,Independent School Fees
London Borough of Sutton,15/06/2022,50212867,759.4,0,Classroom Teachers Ltd,ACADEMIC INSTNS - OTHER,Peoples Services,Independent School Fees
London Borough of Sutton,22/06/2022,50212868,759.4,0,Classroom Teachers Ltd,ACADEMIC INSTNS - OTHER,Peoples Services,Independent School Fees
London Borough of Sutton,06/06/2022,50200303,"6,333.60",0,Clear Thinking Care Limited,SOCIAL SERVICES RESIDENTIAL,Peoples Services,Supported Living
London Borough of Sutton,06/06/2022,50200304,"6,333.60",0,Clear Thinking Care Limited,SOCIAL SERVICES RESIDENTIAL,Peoples Services,Supported Living
London Borough of Sutton,24/06/2022,50212381,"6,333.60",0,Clear Thinking Care Limited,SOCIAL SERVICES RESIDENTIAL,Peoples Services,Supported Living
London Borough of Sutton,24/06/2022,50212384,"6,333.60",0,Clear Thinking Care Limited,SOCIAL SERVICES RESIDENTIAL,Peoples Services,Supported Living
London Borough of Sutton,24/06/2022,50212385,"6,333.60",0,Clear Thinking Care Limited,SOCIAL SERVICES RESIDENTIAL,Peoples Services,Supported Living
London Borough of Sutton,24/06/2022,50212386,"6,333.60",0,Clear Thinking Care Limited,SOCIAL SERVICES RESIDENTIAL,Peoples Services,Supported Living
London Borough of Sutton,24/06/2022,50212387,"6,333.60",0,Clear Thinking Care Limited,SOCIAL SERVICES RESIDENTIAL,Peoples Services,Supported Living
London Borough of Sutton,24/06/2022,50212388,"6,333.60",0,Clear Thinking Care Limited,SOCIAL SERVICES RESIDENTIAL,Peoples Services,Supported Living
London Borough of Sutton,24/06/2022,50212389,"6,333.60",0,Clear Thinking Care Limited,SOCIAL SERVICES RESIDENTIAL,Peoples Services,Supported Living
London Borough of Sutton,08/04/2022,20025592,541,0,Clemlec Group LTD,BUILDING MNTCE - SERVICES,Environment Housing and Neighbourhoods,Grants Given For Capital Purposes
London Borough of Sutton,24/05/2022,20025216,560,0,Climax Community,SUNDRY SUPPLIER - ENV SERVICES,Environment Housing and Neighbourhoods,Community Initiatives
London Borough of Sutton,22/05/2022,50200205,597,0,Clovecare Ltd,SOCIAL SERVICES RESIDENTIAL,Peoples Services,Home Care Services
London Borough of Sutton,29/05/2022,50200206,597,0,Clovecare Ltd,SOCIAL SERVICES RESIDENTIAL,Peoples Services,Home Care Services
London Borough of Sutton,22/05/2022,50200228,670.52,0,Clovecare Ltd,SOCIAL SERVICES RESIDENTIAL,Peoples Services,Home Care Services
London Borough of Sutton,22/05/2022,50200228,165.13,0,Clovecare Ltd,SOCIAL SERVICES RESIDENTIAL,Peoples Services,Home Care Services
London Borough of Sutton,29/05/2022,50200229,670.52,0,Clovecare Ltd,SOCIAL SERVICES RESIDENTIAL,Peoples Services,Home Care Services
London Borough of Sutton,29/05/2022,50200229,165.13,0,Clovecare Ltd,SOCIAL SERVICES RESIDENTIAL,Peoples Services,Home Care Services
London Borough of Sutton,05/06/2022,50200604,512.76,0,Clovecare Ltd,SOCIAL SERVICES RESIDENTIAL,Peoples Services,Home Care Services
London Borough of Sutton,05/06/2022,50200613,629.6,0,Clovecare Ltd,SOCIAL SERVICES RESIDENTIAL,Peoples Services,Home Care Services
London Borough of Sutton,05/06/2022,50200644,701.62,0,Clovecare Ltd,SOCIAL SERVICES RESIDENTIAL,Peoples Services,Home Care Services
London Borough of Sutton,05/06/2022,50200644,178.63,0,Clovecare Ltd,SOCIAL SERVICES RESIDENTIAL,Peoples Services,Home Care Services
London Borough of Sutton,12/06/2022,50207290,597,0,Clovecare Ltd,SOCIAL SERVICES RESIDENTIAL,Peoples Services,Home Care Services
London Borough of Sutton,12/06/2022,50207324,670.5,0,Clovecare Ltd,SOCIAL SERVICES RESIDENTIAL,Peoples Services,Home Care Services
London Borough of Sutton,12/06/2022,50207324,165.13,0,Clovecare Ltd,SOCIAL SERVICES RESIDENTIAL,Peoples Services,Home Care Services
London Borough of Sutton,19/06/2022,50211894,597,0,Clovecare Ltd,SOCIAL SERVICES RESIDENTIAL,Peoples Services,Home Care Services
London Borough of Sutton,21/02/2022,50211905,935.13,0,Clovecare Ltd,SOCIAL SERVICES RESIDENTIAL,Peoples Services,Home Care Services
London Borough of Sutton,14/03/2022,50211906,935.13,0,Clovecare Ltd,SOCIAL SERVICES RESIDENTIAL,Peoples Services,Home Care Services
London Borough of Sutton,19/06/2022,50211965,670.5,0,Clovecare Ltd,SOCIAL SERVICES RESIDENTIAL,Peoples Services,Home Care Services
London Borough of Sutton,19/06/2022,50211965,165.13,0,Clovecare Ltd,SOCIAL SERVICES RESIDENTIAL,Peoples Services,Home Care Services
London Borough of Sutton,28/02/2022,50211969,935.13,0,Clovecare Ltd,SOCIAL SERVICES RESIDENTIAL,Peoples Services,Home Care Services
London Borough of Sutton,14/02/2022,50211970,935.13,0,Clovecare Ltd,SOCIAL SERVICES RESIDENTIAL,Peoples Services,Home Care Services
London Borough of Sutton,07/03/2022,50211971,935.13,0,Clovecare Ltd,SOCIAL SERVICES RESIDENTIAL,Peoples Services,Home Care Services
London Borough of Sutton,21/03/2022,50211972,935.13,0,Clovecare Ltd,SOCIAL SERVICES RESIDENTIAL,Peoples Services,Home Care Services
London Borough of Sutton,08/05/2022,50211975,760.55,0,Clovecare Ltd,SOCIAL SERVICES RESIDENTIAL,Peoples Services,Home Care Services
London Borough of Sutton,08/05/2022,50211975,181.58,0,Clovecare Ltd,SOCIAL SERVICES RESIDENTIAL,Peoples Services,Home Care Services
London Borough of Sutton,24/04/2022,50211978,"1,060.01",0,Clovecare Ltd,SOCIAL SERVICES RESIDENTIAL,Peoples Services,Home Care Services
London Borough of Sutton,17/04/2022,50211979,"1,087.37",0,Clovecare Ltd,SOCIAL SERVICES RESIDENTIAL,Peoples Services,Home Care Services
London Borough of Sutton,17/05/2022,50211997,-78.66,0,Clovecare Ltd,SOCIAL SERVICES RESIDENTIAL,Peoples Services,Home Care Services
London Borough of Sutton,17/05/2022,50211997,995.25,0,Clovecare Ltd,SOCIAL SERVICES RESIDENTIAL,Peoples Services,Home Care Services
London Borough of Sutton,10/06/2022,50204703,"3,264.80",0,Cloyda Limited,SOCIAL SERVICES RESIDENTIAL,Peoples Services,Residential Care Respite
London Borough of Sutton,10/06/2022,50204543,"4,234.16",0,Coast Care Homes Ltd ,SOCIAL SERVICES RESIDENTIAL,Peoples Services,Residential Care - Ext Provider
London Borough of Sutton,10/06/2022,50204553,"-19,857.23",0,Cognithan Ltd,SOCIAL SERVICES RESIDENTIAL,Peoples Services,Residential Care - Ext Provider
London Borough of Sutton,10/06/2022,50204553,"159,722.19",0,Cognithan Ltd,SOCIAL SERVICES RESIDENTIAL,Peoples Services,Residential Care - Ext Provider
London Borough of Sutton,26/05/2022,50212653,"1,806.99",0,Cognithan Ltd,SOCIAL SERVICES RESIDENTIAL,Peoples Services,Supported Living
London Borough of Sutton,03/05/2022,20025463,"14,404.17",0,Cognus Ltd,LEGAL & PROFESSIONAL SERVICES,Peoples Services,Consultancy Services
London Borough of Sutton,09/05/2022,20025464,"14,404.17",0,Cognus Ltd,LEGAL & PROFESSIONAL SERVICES,Peoples Services,Consultancy Services
London Borough of Sutton,05/05/2022,20025465,"14,404.17",0,Cognus Ltd,LEGAL & PROFESSIONAL SERVICES,Peoples Services,Consultancy Services
London Borough of Sutton,10/06/2022,20026488,"150,275.00",0,Cognus Ltd,LEGAL & PROFESSIONAL SERVICES,Peoples Services,Consultancy Services
London Borough of Sutton,10/06/2022,20026489,"14,404.17",0,Cognus Ltd,LEGAL & PROFESSIONAL SERVICES,Peoples Services,Consultancy Services
London Borough of Sutton,10/06/2022,20026507,"133,895.33",0,Cognus Ltd,LEGAL & PROFESSIONAL SERVICES,Peoples Services,Special Educational Needs
London Borough of Sutton,10/06/2022,20026508,"133,895.33",0,Cognus Ltd,LEGAL & PROFESSIONAL SERVICES,Peoples Services,Special Educational Needs
London Borough of Sutton,10/06/2022,20026509,"42,533.33",0,Cognus Ltd,LEGAL & PROFESSIONAL SERVICES,Peoples Services,Consultancy Services
London Borough of Sutton,07/06/2022,50199421,"9,676.80",0,Collingwood School Ltd,GRANTS & EX GRATIA PAYMENTS,Peoples Services,Place Funding
London Borough of Sutton,23/05/2022,20025046,"50,000.00",0,Community Action Sutton,GRANTS & EX GRATIA PAYMENTS,Environment Housing and Neighbourhoods,Payments to Voluntary Organisations
London Borough of Sutton,31/05/2022,50204351,"3,375.30",0,Compass Fostering London Ltd,CHILDREN'S SERVICES - FOSTERING & ADOPTION SERVICES,Peoples Services,Foster Parents Support
London Borough of Sutton,31/05/2022,50204352,"3,487.81",0,Compass Fostering London Ltd,CHILDREN'S SERVICES - FOSTERING & ADOPTION SERVICES,Peoples Services,Foster Parents Support
London Borough of Sutton,31/05/2022,50204353,"3,232.80",0,Compass Fostering London Ltd,CHILDREN'S SERVICES - FOSTERING & ADOPTION SERVICES,Peoples Services,Foster Parents Support
London Borough of Sutton,31/05/2022,50204354,"3,340.56",0,Compass Fostering London Ltd,CHILDREN'S SERVICES - FOSTERING & ADOPTION SERVICES,Peoples Services,Foster Parents Support
London Borough of Sutton,31/05/2022,50204389,"3,481.20",0,Compass Fostering London Ltd,CHILDREN'S SERVICES - FOSTERING & ADOPTION SERVICES,Peoples Services,Foster Parents Support
London Borough of Sutton,31/05/2022,50207711,"1,740.60",0,Compass Fostering London Ltd,CHILDREN'S SERVICES - FOSTERING & ADOPTION SERVICES,Peoples Services,Foster Parents Support
London Borough of Sutton,31/05/2022,50204431,"4,230.88",0,Compass Fostering South Ltd,CHILDREN'S SERVICES - FOSTERING & ADOPTION SERVICES,Peoples Services,Foster Parents Support
London Borough of Sutton,31/05/2022,50204432,"4,094.40",0,Compass Fostering South Ltd,CHILDREN'S SERVICES - FOSTERING & ADOPTION SERVICES,Peoples Services,Foster Parents Support
London Borough of Sutton,31/05/2022,50204439,"3,273.30",0,Compass Fostering South Ltd,CHILDREN'S SERVICES - FOSTERING & ADOPTION SERVICES,Peoples Services,Foster Parents Support
London Borough of Sutton,31/05/2022,50204440,"3,382.41",0,Compass Fostering South Ltd,CHILDREN'S SERVICES - FOSTERING & ADOPTION SERVICES,Peoples Services,Foster Parents Support
London Borough of Sutton,31/05/2022,50204437,"2,993.67",0,Compass Fostering West Ltd,CHILDREN'S SERVICES - FOSTERING & ADOPTION SERVICES,Peoples Services,Foster Parents Support
London Borough of Sutton,31/05/2022,50204438,"2,897.10",0,Compass Fostering West Ltd,CHILDREN'S SERVICES - FOSTERING & ADOPTION SERVICES,Peoples Services,Foster Parents Support
London Borough of Sutton,05/04/2022,20025854,"7,782.24",0,Complete Care Holdings Ltd,SOCIAL SERVICES DAY CARE,Peoples Services,Home Care Services
London Borough of Sutton,07/06/2022,50199365,"1,930.95",0,Co-operative Childcare,GRANTS & EX GRATIA PAYMENTS,Peoples Services,Place Funding
London Borough of Sutton,07/06/2022,50199462,"15,223.95",0,Co-operative Childcare,GRANTS & EX GRATIA PAYMENTS,Peoples Services,Place Funding
London Borough of Sutton,22/06/2022,50210872,"1,625.00",0,Co-operative Childcare,GRANTS & EX GRATIA PAYMENTS,Peoples Services,SEND Inclusion funding
London Borough of Sutton,10/06/2022,20026902,898.78,0,Corona Energy,CONSULTING ARCHITECTS ENGINEER,Resources,Gas
London Borough of Sutton,31/05/2022,20025645,"1,000.00",0,Coulsdon Athletic Football Club,SUNDRY SUPPLIER - ENV SERVICES,Resources,"Grants, Contributions & Donations"
London Borough of Sutton,06/06/2022,20025818,"9,700.00",0,Countryscape,SUNDRY SUPPLIER - FINANCE,Environment Housing and Neighbourhoods,Wandle Valley Trust Board
London Borough of Sutton,10/06/2022,50204547,"7,107.84",0,Cream 11 Ltd,SOCIAL SERVICES RESIDENTIAL,Peoples Services,Residential Care - Ext Provider
London Borough of Sutton,10/06/2022,50204547,"5,560.52",0,Cream 11 Ltd,SOCIAL SERVICES RESIDENTIAL,Peoples Services,One to One Care
London Borough of Sutton,06/05/2022,50204489,"6,957.29",0,Credo Care Limited,CHILDREN'S SERVICE - OTHER,Peoples Services,Foster Parents Support
London Borough of Sutton,10/06/2022,50204608,"12,000.00",0,CRNH Ltd,SOCIAL SERVICES RESIDENTIAL,Peoples Services,Nursing Care Short Term
London Borough of Sutton,10/06/2022,50204608,"-1,673.52",0,CRNH Ltd,SOCIAL SERVICES RESIDENTIAL,Peoples Services,Nursing Care - 3rd party top up payment
London Borough of Sutton,10/06/2022,50204609,"3,848.24",0,CRNH Ltd,SOCIAL SERVICES RESIDENTIAL,Peoples Services,Nursing Care Short Term
London Borough of Sutton,10/06/2022,50204609,-750.4,0,CRNH Ltd,SOCIAL SERVICES RESIDENTIAL,Peoples Services,Nursing Care - 3rd party top up payment
London Borough of Sutton,10/06/2022,50204696,"4,198.56",0,CRNH Ltd,SOCIAL SERVICES RESIDENTIAL,Peoples Services,Nursing Care - Ext Provider
London Borough of Sutton,10/06/2022,50204696,-662.24,0,CRNH Ltd,SOCIAL SERVICES RESIDENTIAL,Peoples Services,Nursing Care - 3rd party top up payment
London Borough of Sutton,10/06/2022,50204724,"3,848.24",0,CRNH Ltd,SOCIAL SERVICES RESIDENTIAL,Peoples Services,Nursing Care - Ext Provider
London Borough of Sutton,10/06/2022,50204724,-750.4,0,CRNH Ltd,SOCIAL SERVICES RESIDENTIAL,Peoples Services,Nursing Care - 3rd party top up payment
London Borough of Sutton,10/06/2022,50204774,"3,609.96",0,CRNH Ltd,SOCIAL SERVICES RESIDENTIAL,Peoples Services,Nursing Care - Ext Provider
London Borough of Sutton,10/06/2022,50204774,-632.64,0,CRNH Ltd,SOCIAL SERVICES RESIDENTIAL,Peoples Services,Nursing Care - 3rd party top up payment
London Borough of Sutton,10/06/2022,50204846,-735.68,0,CRNH Ltd,SOCIAL SERVICES RESIDENTIAL,Peoples Services,Nursing Care - 3rd party top up payment
London Borough of Sutton,10/06/2022,50204846,"3,720.16",0,CRNH Ltd,SOCIAL SERVICES RESIDENTIAL,Peoples Services,Nursing Care Short Term
London Borough of Sutton,10/06/2022,50204851,"11,889.67",0,CRNH Ltd,SOCIAL SERVICES RESIDENTIAL,Peoples Services,Nursing Care - Ext Provider
London Borough of Sutton,10/06/2022,50204851,"-7,923.91",0,CRNH Ltd,SOCIAL SERVICES RESIDENTIAL,Peoples Services,Nursing Care Short Term
London Borough of Sutton,10/06/2022,50204851,-750.4,0,CRNH Ltd,SOCIAL SERVICES RESIDENTIAL,Peoples Services,Nursing Care - 3rd party top up payment
London Borough of Sutton,10/06/2022,50204865,"3,664.08",0,CRNH Ltd,SOCIAL SERVICES RESIDENTIAL,Peoples Services,Nursing Care - Ext Provider
London Borough of Sutton,10/06/2022,50204865,-662.24,0,CRNH Ltd,SOCIAL SERVICES RESIDENTIAL,Peoples Services,Nursing Care - 3rd party top up payment
London Borough of Sutton,10/06/2022,50204904,"3,720.16",0,CRNH Ltd,SOCIAL SERVICES RESIDENTIAL,Peoples Services,Nursing Care - Ext Provider
London Borough of Sutton,10/06/2022,50204904,-735.68,0,CRNH Ltd,SOCIAL SERVICES RESIDENTIAL,Peoples Services,Nursing Care - 3rd party top up payment
London Borough of Sutton,10/06/2022,50204998,-735.68,0,CRNH Ltd,SOCIAL SERVICES RESIDENTIAL,Peoples Services,Nursing Care - 3rd party top up payment
London Borough of Sutton,10/06/2022,50204998,"3,720.16",0,CRNH Ltd,SOCIAL SERVICES RESIDENTIAL,Peoples Services,Nursing Care - Ext Provider
London Borough of Sutton,10/06/2022,50204605,"3,633.76",0,Cross Care Services Ltd,SOCIAL SERVICES RESIDENTIAL,Peoples Services,Nursing Care - Ext Provider
London Borough of Sutton,10/06/2022,50204709,"3,720.16",0,Cross Care Services Ltd,SOCIAL SERVICES RESIDENTIAL,Peoples Services,Nursing Care - Ext Provider
London Borough of Sutton,10/06/2022,50204709,-735.68,0,Cross Care Services Ltd,SOCIAL SERVICES RESIDENTIAL,Peoples Services,Nursing Care - 3rd party top up payment
London Borough of Sutton,10/06/2022,50204710,"3,720.16",0,Cross Care Services Ltd,SOCIAL SERVICES RESIDENTIAL,Peoples Services,Nursing Care - Ext Provider
London Borough of Sutton,10/06/2022,50204710,-735.68,0,Cross Care Services Ltd,SOCIAL SERVICES RESIDENTIAL,Peoples Services,Nursing Care - 3rd party top up payment
London Borough of Sutton,10/06/2022,50204776,"3,734.88",0,Cross Care Services Ltd,SOCIAL SERVICES RESIDENTIAL,Peoples Services,Nursing Care - Ext Provider
London Borough of Sutton,10/06/2022,50204776,-750.4,0,Cross Care Services Ltd,SOCIAL SERVICES RESIDENTIAL,Peoples Services,Nursing Care - 3rd party top up payment
London Borough of Sutton,10/06/2022,50204960,"3,720.16",0,Cross Care Services Ltd,SOCIAL SERVICES RESIDENTIAL,Peoples Services,Nursing Care - Ext Provider
London Borough of Sutton,10/06/2022,50204960,-735.68,0,Cross Care Services Ltd,SOCIAL SERVICES RESIDENTIAL,Peoples Services,Nursing Care - 3rd party top up payment
London Borough of Sutton,27/04/2022,20024406,"46,207.42",0,LONDON BOROUGH OF CROYDON,CENTRAL & LOCAL GOVERNMENT,Environment Housing and Neighbourhoods,Civic Amenity
London Borough of Sutton,05/01/2022,20025447,"126,382.25",0,LONDON BOROUGH OF CROYDON,CENTRAL & LOCAL GOVERNMENT,Environment Housing and Neighbourhoods,Idverde - Contract Payment
London Borough of Sutton,04/02/2022,20026737,"3,793.43",0,LONDON BOROUGH OF CROYDON,CENTRAL & LOCAL GOVERNMENT,Environment Housing and Neighbourhoods,Idverde - Contract Payment
London Borough of Sutton,20/06/2022,50211281,"3,193.00",0,LONDON BOROUGH OF CROYDON,CENTRAL & LOCAL GOVERNMENT,Peoples Services,Foster Parents Support
London Borough of Sutton,20/06/2022,50211282,"3,090.00",0,LONDON BOROUGH OF CROYDON,CENTRAL & LOCAL GOVERNMENT,Peoples Services,Foster Parents Support
London Borough of Sutton,20/06/2022,50211283,"2,730.00",0,LONDON BOROUGH OF CROYDON,CENTRAL & LOCAL GOVERNMENT,Peoples Services,Foster Parents Support
London Borough of Sutton,20/06/2022,50211284,"2,821.00",0,LONDON BOROUGH OF CROYDON,CENTRAL & LOCAL GOVERNMENT,Peoples Services,Foster Parents Support
London Borough of Sutton,31/05/2022,20025670,"1,085.00",0,Croydon Court Ltd,ACCOMMODATION BED & BREAKFAST,Peoples Services,Temporary Residential Accommodation
London Borough of Sutton,31/05/2022,20025671,"6,140.00",0,Croydon Court Ltd,ACCOMMODATION BED & BREAKFAST,Environment Housing and Neighbourhoods,Bed & Breakfast
London Borough of Sutton,18/03/2022,20025987,"48,454.00",0,Croydon Health Service NHST,SOCIAL SERVICES - OTHER,Health and Wellbeing,Provider Contract Payments
London Borough of Sutton,18/03/2022,20025988,"20,669.00",0,Croydon Health Service NHST,SOCIAL SERVICES - OTHER,Health and Wellbeing,Provider Contract Payments
London Borough of Sutton,07/06/2022,50199461,724.95,0,REDACTED - PERSONAL DATA,GRANTS & EX GRATIA PAYMENTS,Peoples Services,Place Funding
London Borough of Sutton,10/06/2022,50204561,"8,118.44",0,CSS Ltd,SOCIAL SERVICES RESIDENTIAL,Peoples Services,Residential Care - Ext Provider
London Borough of Sutton,07/06/2022,50199141,"174,548.46",0,Culvers House Primary School,GRANTS & EX GRATIA PAYMENTS,Peoples Services,Payments to Schools
London Borough of Sutton,07/06/2022,50199191,"10,137.60",0,Culvers House Primary School,GRANTS & EX GRATIA PAYMENTS,Peoples Services,Place Funding
London Borough of Sutton,10/06/2022,50204546,"5,810.56",0,Curado Limited,GRANTS & EX GRATIA PAYMENTS,Peoples Services,Interim Placements - Ext Provider
London Borough of Sutton,10/06/2022,50204562,-758,0,Cygnet Learning Disabilities Midlands Ltd,SOCIAL SERVICES RESIDENTIAL,Peoples Services,Residential Care - Client Cont ( Net Paymt )
London Borough of Sutton,10/06/2022,50204562,"6,827.40",0,Cygnet Learning Disabilities Midlands Ltd,SOCIAL SERVICES RESIDENTIAL,Peoples Services,Residential Care - Ext Provider
London Borough of Sutton,01/06/2022,20025873,"1,571.46",0,Angel Lettings,ACCOMMODATION BED & BREAKFAST,Environment Housing and Neighbourhoods,Temporary Protection - Homeless Persons
London Borough of Sutton,29/05/2022,50198384,560,0,Day and Nite Services,SOCIAL SERVICES DAY CARE,Peoples Services,Home Care Services
London Borough of Sutton,29/05/2022,50198423,504,0,Day and Nite Services,SOCIAL SERVICES DAY CARE,Peoples Services,Home Care Services
London Borough of Sutton,05/06/2022,50200593,720,0,Day and Nite Services,SOCIAL SERVICES DAY CARE,Peoples Services,Home Care Services
London Borough of Sutton,05/06/2022,50200631,648,0,Day and Nite Services,SOCIAL SERVICES DAY CARE,Peoples Services,Home Care Services
London Borough of Sutton,12/06/2022,50207248,560,0,Day and Nite Services,SOCIAL SERVICES DAY CARE,Peoples Services,Home Care Services
London Borough of Sutton,12/06/2022,50207308,504,0,Day and Nite Services,SOCIAL SERVICES DAY CARE,Peoples Services,Home Care Services
London Borough of Sutton,19/06/2022,50212594,560,0,Day and Nite Services,SOCIAL SERVICES DAY CARE,Peoples Services,Home Care Services
London Borough of Sutton,19/06/2022,50212628,504,0,Day and Nite Services,SOCIAL SERVICES DAY CARE,Peoples Services,Home Care Services
London Borough of Sutton,30/06/2022,50212848,"2,137.12",0,Worth Primary,SCHOOLS ONLY,Peoples Services,Payments to Schools
London Borough of Sutton,30/06/2022,50212849,"2,137.12",0,Worth Primary,SCHOOLS ONLY,Peoples Services,Payments to Schools
London Borough of Sutton,30/06/2022,50212850,"1,293.52",0,Worth Primary,SCHOOLS ONLY,Peoples Services,Payments to Schools
London Borough of Sutton,30/06/2022,50212851,"1,293.52",0,Worth Primary,SCHOOLS ONLY,Peoples Services,Payments to Schools
London Borough of Sutton,31/05/2022,20026018,"2,100.00",0,Delta Wise Limited,ACCOMMODATION BED & BREAKFAST,Environment Housing and Neighbourhoods,Bed & Breakfast
London Borough of Sutton,31/05/2022,20026019,"1,085.00",0,Delta Wise Limited,ACCOMMODATION BED & BREAKFAST,Environment Housing and Neighbourhoods,Bed & Breakfast
London Borough of Sutton,31/05/2022,20026021,"2,170.00",0,Delta Wise Limited,ACCOMMODATION BED & BREAKFAST,Environment Housing and Neighbourhoods,Bed & Breakfast
London Borough of Sutton,31/05/2022,20026023,660,0,Delta Wise Limited,ACCOMMODATION BED & BREAKFAST,Environment Housing and Neighbourhoods,Bed & Breakfast
London Borough of Sutton,01/06/2022,20025752,"1,085.00",0,Denhan Property Services,ACCOMMODATION BED & BREAKFAST,Environment Housing and Neighbourhoods,Bed & Breakfast
London Borough of Sutton,01/06/2022,20025753,864,0,Denhan Property Services,ACCOMMODATION BED & BREAKFAST,Environment Housing and Neighbourhoods,Bed & Breakfast
London Borough of Sutton,01/06/2022,20025754,"1,619.75",0,Denhan Property Services,ACCOMMODATION BED & BREAKFAST,Environment Housing and Neighbourhoods,Bed & Breakfast
London Borough of Sutton,10/06/2022,50204825,"3,505.00",0,Denville Hall 2012,SOCIAL SERVICES RESIDENTIAL,Peoples Services,Residential Care - Ext Provider
London Borough of Sutton,19/04/2022,20024958,"18,092.46",0,Department of Health and Social Care,SUNDRY SUPPLIER - ASC,Peoples Services,COVID-19 Infection Control Funding
London Borough of Sutton,22/04/2022,20025346,"2,195.14",0,Design JD Ltd,AGRICULTURAL & ESTATE SERVICES,Development Growth and Regeneration,Notices And Signs
London Borough of Sutton,17/06/2022,20027044,"10,508.58",0,Design JD Ltd,AGRICULTURAL & ESTATE SERVICES,Development Growth and Regeneration,Notices And Signs
London Borough of Sutton,10/06/2022,50204563,"3,175.04",0,Devaglade Trading Limited,SOCIAL SERVICES RESIDENTIAL,Peoples Services,Residential Care - Ext Provider
London Borough of Sutton,31/05/2022,20025617,773.7,0,Devon Advocacy Consortium,SUNDRY SUPPLIER - ASC,Peoples Services,Client Care/Assistance
London Borough of Sutton,07/06/2022,50199134,"254,143.43",0,Devonshire Primary School,GRANTS & EX GRATIA PAYMENTS,Peoples Services,Payments to Schools
London Borough of Sutton,07/06/2022,50199192,"12,082.50",0,Devonshire Primary School,GRANTS & EX GRATIA PAYMENTS,Peoples Services,Place Funding
London Borough of Sutton,20/05/2022,50198790,"4,638.61",0,Direct Care And Support Services,ACCOMMODATION - OTHER,Peoples Services,Supported Living
London Borough of Sutton,06/06/2022,50200046,"3,472.00",0,Direct Care And Support Services,ACCOMMODATION - OTHER,Peoples Services,Supported Living
London Borough of Sutton,12/06/2022,50211796,"5,514.48",0,Direct Care And Support Services,ACCOMMODATION - OTHER,Peoples Services,Supported Living
London Borough of Sutton,10/05/2022,50211797,"4,462.08",0,Direct Care And Support Services,ACCOMMODATION - OTHER,Peoples Services,Supported Living
London Borough of Sutton,20/06/2022,50211805,"4,638.61",0,Direct Care And Support Services,ACCOMMODATION - OTHER,Peoples Services,Supported Living
London Borough of Sutton,10/05/2022,50211807,"3,296.00",0,Direct Care And Support Services,ACCOMMODATION - OTHER,Peoples Services,Home Care Services
London Borough of Sutton,28/04/2022,50211808,"3,296.00",0,Direct Care And Support Services,ACCOMMODATION - OTHER,Peoples Services,Home Care Services
London Borough of Sutton,12/02/2022,50212000,"4,922.88",0,Direct Care And Support Services,ACCOMMODATION - OTHER,Peoples Services,Supported Living
London Borough of Sutton,17/02/2022,50212001,"1,666.16",0,Direct Care And Support Services,ACCOMMODATION - OTHER,Peoples Services,Supported Living
London Borough of Sutton,13/02/2022,50212002,"4,922.88",0,Direct Care And Support Services,ACCOMMODATION - OTHER,Peoples Services,Supported Living
London Borough of Sutton,04/03/2022,50212003,"1,952.64",0,Direct Care And Support Services,ACCOMMODATION - OTHER,Peoples Services,Supported Living
London Borough of Sutton,06/04/2022,50212007,"1,952.64",0,Direct Care And Support Services,ACCOMMODATION - OTHER,Peoples Services,Supported Living
London Borough of Sutton,10/02/2022,50212015,"4,568.32",0,Direct Care And Support Services,ACCOMMODATION - OTHER,Peoples Services,Supported Living
London Borough of Sutton,10/03/2022,50212016,"4,568.32",0,Direct Care And Support Services,ACCOMMODATION - OTHER,Peoples Services,Supported Living
London Borough of Sutton,10/04/2022,50212017,"4,568.32",0,Direct Care And Support Services,ACCOMMODATION - OTHER,Peoples Services,Supported Living
London Borough of Sutton,13/04/2022,50212018,"4,922.88",0,Direct Care And Support Services,ACCOMMODATION - OTHER,Peoples Services,Supported Living
London Borough of Sutton,07/06/2022,50199347,551.7,0,Dolphin Day Nursery,GRANTS & EX GRATIA PAYMENTS,Peoples Services,Place Funding
London Borough of Sutton,07/06/2022,50199425,"1,449.90",0,Dolphin Day Nursery,GRANTS & EX GRATIA PAYMENTS,Peoples Services,Place Funding
London Borough of Sutton,07/06/2022,50199426,"1,208.25",0,REDACTED - PERSONAL DATA,GRANTS & EX GRATIA PAYMENTS,Peoples Services,Place Funding
London Borough of Sutton,07/06/2022,50199136,"197,787.27",0,Dorchester Primary School,GRANTS & EX GRATIA PAYMENTS,Peoples Services,Payments to Schools
London Borough of Sutton,07/06/2022,50199193,"12,324.15",0,Dorchester Primary School,GRANTS & EX GRATIA PAYMENTS,Peoples Services,Place Funding
London Borough of Sutton,23/05/2022,20025315,"3,190.00",0,REDACTED - PERSONAL DATA,SUNDRY SUPPLIER - EDUCATION,Peoples Services,Client Related Assessments
London Borough of Sutton,27/05/2022,20025450,334.49,0,DSI Billing Services Ltd,OFFICE SERVICES,Resources,Postage & Couriers
London Borough of Sutton,27/05/2022,20025450,334.48,0,DSI Billing Services Ltd,OFFICE SERVICES,Resources,Postage & Couriers
London Borough of Sutton,31/05/2022,20025656,"9,130.85",0,DSI Billing Services Ltd,OFFICE SERVICES,Resources,Printing
London Borough of Sutton,01/05/2022,50204375,"4,594.63",0,Dunfield & Mead Ltd,CHILDREN'S SERVICES - RESIDENTIAL,Peoples Services,Accommodation - Supported Living
London Borough of Sutton,01/05/2022,50204385,"3,930.35",0,Dunfield & Mead Ltd,CHILDREN'S SERVICES - RESIDENTIAL,Peoples Services,Accommodation - Supported Living
London Borough of Sutton,01/05/2022,50204403,"4,019.65",0,Dunfield & Mead Ltd,CHILDREN'S SERVICES - RESIDENTIAL,Peoples Services,Accommodation - Supported Living
London Borough of Sutton,31/05/2022,20025673,"1,178.00",0,Dunheved Hotel Ltd,ACCOMMODATION BED & BREAKFAST,Environment Housing and Neighbourhoods,Bed & Breakfast
London Borough of Sutton,10/06/2022,50204542,"3,187.44",0,Dunheved Lodge,SOCIAL SERVICES RESIDENTIAL,Peoples Services,Residential Care - Ext Provider
London Borough of Sutton,10/06/2022,50204542,"3,016.00",0,Dunheved Lodge,SOCIAL SERVICES RESIDENTIAL,Peoples Services,One to One Care
London Borough of Sutton,20/05/2022,20025298,"3,624.99",0,Dynamic Care Ltd,SOCIAL SERVICES RESIDENTIAL,Peoples Services,Living Allowance
London Borough of Sutton,01/06/2022,50204451,"4,926.77",0,Dynamic Care Ltd,SOCIAL SERVICES RESIDENTIAL,Peoples Services,Approved Lodgings
London Borough of Sutton,31/05/2022,20025687,"17,429.34",0,E Homes And Shelters,ACCOMMODATION BED & BREAKFAST,Environment Housing and Neighbourhoods,Bed & Breakfast
London Borough of Sutton,31/05/2022,20025970,650,0,E Homes And Shelters,ACCOMMODATION BED & BREAKFAST,Peoples Services,Temporary Residential Accommodation
London Borough of Sutton,08/06/2022,20026226,"2,520.00",0,E Homes And Shelters,ACCOMMODATION BED & BREAKFAST,Peoples Services,Client Care/Assistance
London Borough of Sutton,13/06/2022,20027049,878,0,E Pollard & Sons Limited,SUNDRY SUPPLIER - ASC,Health and Wellbeing,Equipment And Materials Purchase
London Borough of Sutton,18/05/2022,20024768,659,0,Earth Anchors Ltd,REFUSE COLLECTION / DISPOSAL,Environment Housing and Neighbourhoods,Furniture - Purchase
London Borough of Sutton,24/05/2022,20025147,659,0,Earth Anchors Ltd,REFUSE COLLECTION / DISPOSAL,Environment Housing and Neighbourhoods,Furniture - Purchase
London Borough of Sutton,10/06/2022,50204662,"3,734.88",0,Eastcroft Nursing Home,SOCIAL SERVICES RESIDENTIAL,Peoples Services,Nursing Care - Ext Provider
London Borough of Sutton,10/06/2022,50204662,-750.4,0,Eastcroft Nursing Home,SOCIAL SERVICES RESIDENTIAL,Peoples Services,Nursing Care - 3rd party top up payment
London Borough of Sutton,10/06/2022,50204729,"3,734.88",0,Eastcroft Nursing Home,SOCIAL SERVICES RESIDENTIAL,Peoples Services,Nursing Care - Ext Provider
London Borough of Sutton,10/06/2022,50204729,-750.4,0,Eastcroft Nursing Home,SOCIAL SERVICES RESIDENTIAL,Peoples Services,Nursing Care - 3rd party top up payment
London Borough of Sutton,10/06/2022,50204870,"3,736.00",0,Eastcroft Nursing Home,SOCIAL SERVICES RESIDENTIAL,Peoples Services,Nursing Care Short Term
London Borough of Sutton,10/06/2022,50204870,-750.4,0,Eastcroft Nursing Home,SOCIAL SERVICES RESIDENTIAL,Peoples Services,Nursing Care - 3rd party top up payment
London Borough of Sutton,10/06/2022,50204938,"3,848.24",0,Eastcroft Nursing Home,SOCIAL SERVICES RESIDENTIAL,Peoples Services,Nursing Care - Ext Provider
London Borough of Sutton,10/06/2022,50204938,-750.4,0,Eastcroft Nursing Home,SOCIAL SERVICES RESIDENTIAL,Peoples Services,Nursing Care - 3rd party top up payment
London Borough of Sutton,29/04/2022,20025666,668.62,0,EDF Energy ,UTILITIES,Peoples Services,Gas
London Borough of Sutton,31/05/2022,20025667,"1,055.10",0,EDF Energy ,UTILITIES,Environment Housing and Neighbourhoods,Electricity
London Borough of Sutton,06/06/2022,20025806,558.62,0,EDF Energy ,UTILITIES,HRA,Electricity
London Borough of Sutton,01/06/2022,20025899,928.33,0,EDF Energy ,UTILITIES,Environment Housing and Neighbourhoods,Electricity
London Borough of Sutton,10/06/2022,20026909,"9,324.08",0,EDF Energy ,UTILITIES,Resources,Electricity
London Borough of Sutton,08/06/2022,20026982,932.73,0,EDF Energy ,UTILITIES,Environment Housing and Neighbourhoods,Electricity
London Borough of Sutton,24/05/2022,20027168,"2,331.98",0,EE Airtime,TELECOMS,Resources,Communications
London Borough of Sutton,24/06/2022,20027363,"2,435.22",0,EE Airtime,TELECOMS,Peoples Services,Mobile Phones
London Borough of Sutton,24/01/2022,20027364,"2,436.68",0,EE Airtime,TELECOMS,Peoples Services,Mobile Phones
London Borough of Sutton,24/02/2022,20027365,"2,435.55",0,EE Airtime,TELECOMS,Peoples Services,Mobile Phones
London Borough of Sutton,24/05/2022,20027366,"2,437.41",0,EE Airtime,TELECOMS,Peoples Services,Mobile Phones
London Borough of Sutton,24/06/2022,20027368,"3,151.99",0,EE Airtime,TELECOMS,Peoples Services,Mobile Phones
London Borough of Sutton,07/06/2022,50199344,827.55,0,REDACTED - PERSONAL DATA,GRANTS & EX GRATIA PAYMENTS,Peoples Services,Place Funding
London Borough of Sutton,07/06/2022,50199415,"1,449.90",0,REDACTED - PERSONAL DATA,GRANTS & EX GRATIA PAYMENTS,Peoples Services,Place Funding
London Borough of Sutton,01/05/2022,50198909,552.83,0,Elite CarePlus Ltd,SOCIAL SERVICES DAY CARE,Peoples Services,Home Care Services
London Borough of Sutton,18/04/2022,20022807,"2,632.00",0,Elite Guarding (UK) Ltd,GRANTS & EX GRATIA PAYMENTS,Environment Housing and Neighbourhoods,Payments to Contractors
London Borough of Sutton,25/04/2022,20023165,"2,632.00",0,Elite Guarding (UK) Ltd,GRANTS & EX GRATIA PAYMENTS,Environment Housing and Neighbourhoods,Payments to Contractors
London Borough of Sutton,03/05/2022,20024432,"2,632.00",0,Elite Guarding (UK) Ltd,GRANTS & EX GRATIA PAYMENTS,Environment Housing and Neighbourhoods,Payments to Contractors
London Borough of Sutton,09/05/2022,20024438,"3,008.00",0,Elite Guarding (UK) Ltd,GRANTS & EX GRATIA PAYMENTS,Environment Housing and Neighbourhoods,Payments to Contractors
London Borough of Sutton,16/05/2022,20024529,"2,632.00",0,Elite Guarding (UK) Ltd,GRANTS & EX GRATIA PAYMENTS,Environment Housing and Neighbourhoods,Payments to Contractors
London Borough of Sutton,30/05/2022,20025472,"2,632.00",0,Elite Guarding (UK) Ltd,GRANTS & EX GRATIA PAYMENTS,Environment Housing and Neighbourhoods,Payments to Contractors
London Borough of Sutton,10/06/2022,50204583,"9,101.84",0,Elysium Healthcare Ltd,CHILDREN'S SERVICES - FOSTERING & ADOPTION SERVICES,Peoples Services,Residential Care - Ext Provider
London Borough of Sutton,10/06/2022,50204558,"7,668.40",0,Elysium Supported Living Limited,SOCIAL SERVICES RESIDENTIAL,Peoples Services,Residential Care - Ext Provider
London Borough of Sutton,22/06/2022,50210966,"3,642.85",0,Enriched Care Ltd,CHILDREN'S SERVICES - RESIDENTIAL,Peoples Services,Supported Living
London Borough of Sutton,11/05/2022,50199642,"2,008.25",0,Enviva Paediatric Care,DISABLED CHILDRENS TEAM,Peoples Services,Provider Contract Payments
London Borough of Sutton,12/05/2022,20026313,736.02,0,Epsom & St Helier Nhs Trust,OFFICE SERVICES,Health and Wellbeing,Provider Contract Payments
London Borough of Sutton,21/06/2022,20026947,613,0,Epsom & St Helier Nhs Trust,OFFICE SERVICES,Health and Wellbeing,Provider Contract Payments
London Borough of Sutton,07/06/2022,50199521,"7,410.60",0,Epsom & St Helier Nhs Trust,OFFICE SERVICES,Peoples Services,Place Funding
London Borough of Sutton,09/06/2022,50205073,798,0,Escoben Care Services Ltd,SOCIAL SERVICES RESIDENTIAL,Peoples Services,Home Care Services
London Borough of Sutton,09/06/2022,50205080,882,0,Escoben Care Services Ltd,SOCIAL SERVICES RESIDENTIAL,Peoples Services,Home Care Services
London Borough of Sutton,09/06/2022,50205082,630,0,Escoben Care Services Ltd,SOCIAL SERVICES RESIDENTIAL,Peoples Services,Home Care Services
London Borough of Sutton,13/06/2022,50205329,882,0,Escoben Care Services Ltd,SOCIAL SERVICES RESIDENTIAL,Peoples Services,Home Care Services
London Borough of Sutton,13/06/2022,50205333,798,0,Escoben Care Services Ltd,SOCIAL SERVICES RESIDENTIAL,Peoples Services,Home Care Services
London Borough of Sutton,13/06/2022,50205359,630,0,Escoben Care Services Ltd,SOCIAL SERVICES RESIDENTIAL,Peoples Services,Home Care Services
London Borough of Sutton,20/06/2022,50208492,630,0,Escoben Care Services Ltd,SOCIAL SERVICES RESIDENTIAL,Peoples Services,Home Care Services
London Borough of Sutton,20/06/2022,50208529,882,0,Escoben Care Services Ltd,SOCIAL SERVICES RESIDENTIAL,Peoples Services,Home Care Services
London Borough of Sutton,20/06/2022,50208556,798,0,Escoben Care Services Ltd,SOCIAL SERVICES RESIDENTIAL,Peoples Services,Home Care Services
London Borough of Sutton,31/05/2022,20025661,341.44,0,Esendex Limited,TELECOMS,Resources,IT Software Purchase
London Borough of Sutton,31/05/2022,20025661,341.44,0,Esendex Limited,TELECOMS,Resources,IT Software Purchase
London Borough of Sutton,13/05/2022,20025569,"55,056.63",0,ETEC CONTRACT SERVICES LTD ,CONSTRUCTION INDUSTRY,Environment Housing and Neighbourhoods,Payments to Contractors
London Borough of Sutton,14/06/2022,20026965,"139,976.25",0,ETEC CONTRACT SERVICES LTD ,CONSTRUCTION INDUSTRY,Environment Housing and Neighbourhoods,Payments to Contractors
London Borough of Sutton,05/05/2022,50204484,"4,042.49",0,Ethelbert Specialist Homes Ltd,CHILDREN'S SERVICES - RESIDENTIAL,Peoples Services,Foster Parents Support
London Borough of Sutton,22/05/2022,50198133,551.25,0,Exodus Health Care Services Ltd,SOCIAL SERVICES RESIDENTIAL,Peoples Services,Home Care Services
London Borough of Sutton,22/05/2022,50198133,52.5,0,Exodus Health Care Services Ltd,SOCIAL SERVICES RESIDENTIAL,Peoples Services,Home Care Services
London Borough of Sutton,22/05/2022,50198181,551.15,0,Exodus Health Care Services Ltd,SOCIAL SERVICES RESIDENTIAL,Peoples Services,Home Care Services
London Borough of Sutton,22/05/2022,50198181,91.98,0,Exodus Health Care Services Ltd,SOCIAL SERVICES RESIDENTIAL,Peoples Services,Home Care Services
London Borough of Sutton,22/05/2022,50198184,551.25,0,Exodus Health Care Services Ltd,SOCIAL SERVICES RESIDENTIAL,Peoples Services,Home Care Services
London Borough of Sutton,22/05/2022,50198189,612.5,0,Exodus Health Care Services Ltd,SOCIAL SERVICES RESIDENTIAL,Peoples Services,Home Care Services
London Borough of Sutton,22/05/2022,50198197,367.47,0,Exodus Health Care Services Ltd,SOCIAL SERVICES RESIDENTIAL,Peoples Services,Home Care Services
London Borough of Sutton,22/05/2022,50198197,336.91,0,Exodus Health Care Services Ltd,SOCIAL SERVICES RESIDENTIAL,Peoples Services,Home Care Services
London Borough of Sutton,22/05/2022,50198211,612.5,0,Exodus Health Care Services Ltd,SOCIAL SERVICES RESIDENTIAL,Peoples Services,Home Care Services
London Borough of Sutton,22/05/2022,50198211,52.5,0,Exodus Health Care Services Ltd,SOCIAL SERVICES RESIDENTIAL,Peoples Services,Home Care Services
London Borough of Sutton,22/05/2022,50198212,551.25,0,Exodus Health Care Services Ltd,SOCIAL SERVICES RESIDENTIAL,Peoples Services,Home Care Services
London Borough of Sutton,29/05/2022,50199859,367.5,0,Exodus Health Care Services Ltd,SOCIAL SERVICES RESIDENTIAL,Peoples Services,Home Care Services
London Borough of Sutton,29/05/2022,50199859,336.88,0,Exodus Health Care Services Ltd,SOCIAL SERVICES RESIDENTIAL,Peoples Services,Home Care Services
London Borough of Sutton,29/05/2022,50200030,551.15,0,Exodus Health Care Services Ltd,SOCIAL SERVICES RESIDENTIAL,Peoples Services,Home Care Services
London Borough of Sutton,29/05/2022,50200030,91.98,0,Exodus Health Care Services Ltd,SOCIAL SERVICES RESIDENTIAL,Peoples Services,Home Care Services
London Borough of Sutton,29/05/2022,50200032,612.5,0,Exodus Health Care Services Ltd,SOCIAL SERVICES RESIDENTIAL,Peoples Services,Home Care Services
London Borough of Sutton,29/05/2022,50200032,52.5,0,Exodus Health Care Services Ltd,SOCIAL SERVICES RESIDENTIAL,Peoples Services,Home Care Services
London Borough of Sutton,29/05/2022,50200033,551.25,0,Exodus Health Care Services Ltd,SOCIAL SERVICES RESIDENTIAL,Peoples Services,Home Care Services
London Borough of Sutton,29/05/2022,50200033,52.5,0,Exodus Health Care Services Ltd,SOCIAL SERVICES RESIDENTIAL,Peoples Services,Home Care Services
London Borough of Sutton,29/05/2022,50200035,551.25,0,Exodus Health Care Services Ltd,SOCIAL SERVICES RESIDENTIAL,Peoples Services,Home Care Services
London Borough of Sutton,29/05/2022,50200036,551.25,0,Exodus Health Care Services Ltd,SOCIAL SERVICES RESIDENTIAL,Peoples Services,Home Care Services
London Borough of Sutton,29/05/2022,50200042,612.5,0,Exodus Health Care Services Ltd,SOCIAL SERVICES RESIDENTIAL,Peoples Services,Home Care Services
London Borough of Sutton,05/06/2022,50207072,612.5,0,Exodus Health Care Services Ltd,SOCIAL SERVICES RESIDENTIAL,Peoples Services,Home Care Services
London Borough of Sutton,05/06/2022,50207072,52.5,0,Exodus Health Care Services Ltd,SOCIAL SERVICES RESIDENTIAL,Peoples Services,Home Care Services
London Borough of Sutton,05/06/2022,50207073,551.25,0,Exodus Health Care Services Ltd,SOCIAL SERVICES RESIDENTIAL,Peoples Services,Home Care Services
London Borough of Sutton,05/06/2022,50207073,52.5,0,Exodus Health Care Services Ltd,SOCIAL SERVICES RESIDENTIAL,Peoples Services,Home Care Services
London Borough of Sutton,05/06/2022,50207074,551.15,0,Exodus Health Care Services Ltd,SOCIAL SERVICES RESIDENTIAL,Peoples Services,Home Care Services
London Borough of Sutton,05/06/2022,50207074,91.98,0,Exodus Health Care Services Ltd,SOCIAL SERVICES RESIDENTIAL,Peoples Services,Home Care Services
London Borough of Sutton,05/06/2022,50207076,551.25,0,Exodus Health Care Services Ltd,SOCIAL SERVICES RESIDENTIAL,Peoples Services,Home Care Services
London Borough of Sutton,05/06/2022,50207077,551.25,0,Exodus Health Care Services Ltd,SOCIAL SERVICES RESIDENTIAL,Peoples Services,Home Care Services
London Borough of Sutton,05/06/2022,50207083,612.5,0,Exodus Health Care Services Ltd,SOCIAL SERVICES RESIDENTIAL,Peoples Services,Home Care Services
London Borough of Sutton,05/06/2022,50207093,367.47,0,Exodus Health Care Services Ltd,SOCIAL SERVICES RESIDENTIAL,Peoples Services,Home Care Services
London Borough of Sutton,05/06/2022,50207093,336.91,0,Exodus Health Care Services Ltd,SOCIAL SERVICES RESIDENTIAL,Peoples Services,Home Care Services
London Borough of Sutton,24/04/2022,50208687,551.15,0,Exodus Health Care Services Ltd,SOCIAL SERVICES RESIDENTIAL,Peoples Services,Home Care Services
London Borough of Sutton,24/04/2022,50208687,91.98,0,Exodus Health Care Services Ltd,SOCIAL SERVICES RESIDENTIAL,Peoples Services,Home Care Services
London Borough of Sutton,12/06/2022,50208688,551.15,0,Exodus Health Care Services Ltd,SOCIAL SERVICES RESIDENTIAL,Peoples Services,Home Care Services
London Borough of Sutton,12/06/2022,50208688,91.98,0,Exodus Health Care Services Ltd,SOCIAL SERVICES RESIDENTIAL,Peoples Services,Home Care Services
London Borough of Sutton,24/04/2022,50208691,612.5,0,Exodus Health Care Services Ltd,SOCIAL SERVICES RESIDENTIAL,Peoples Services,Home Care Services
London Borough of Sutton,24/04/2022,50208691,52.5,0,Exodus Health Care Services Ltd,SOCIAL SERVICES RESIDENTIAL,Peoples Services,Home Care Services
London Borough of Sutton,12/06/2022,50208692,612.5,0,Exodus Health Care Services Ltd,SOCIAL SERVICES RESIDENTIAL,Peoples Services,Home Care Services
London Borough of Sutton,12/06/2022,50208692,52.5,0,Exodus Health Care Services Ltd,SOCIAL SERVICES RESIDENTIAL,Peoples Services,Home Care Services
London Borough of Sutton,24/04/2022,50208693,551.25,0,Exodus Health Care Services Ltd,SOCIAL SERVICES RESIDENTIAL,Peoples Services,Home Care Services
London Borough of Sutton,24/04/2022,50208693,52.5,0,Exodus Health Care Services Ltd,SOCIAL SERVICES RESIDENTIAL,Peoples Services,Home Care Services
London Borough of Sutton,12/06/2022,50208694,551.25,0,Exodus Health Care Services Ltd,SOCIAL SERVICES RESIDENTIAL,Peoples Services,Home Care Services
London Borough of Sutton,12/06/2022,50208694,52.5,0,Exodus Health Care Services Ltd,SOCIAL SERVICES RESIDENTIAL,Peoples Services,Home Care Services
London Borough of Sutton,24/04/2022,50208698,551.25,0,Exodus Health Care Services Ltd,SOCIAL SERVICES RESIDENTIAL,Peoples Services,Home Care Services
London Borough of Sutton,12/06/2022,50208699,551.25,0,Exodus Health Care Services Ltd,SOCIAL SERVICES RESIDENTIAL,Peoples Services,Home Care Services
London Borough of Sutton,24/04/2022,50208700,551.25,0,Exodus Health Care Services Ltd,SOCIAL SERVICES RESIDENTIAL,Peoples Services,Home Care Services
London Borough of Sutton,12/06/2022,50208701,551.25,0,Exodus Health Care Services Ltd,SOCIAL SERVICES RESIDENTIAL,Peoples Services,Home Care Services
London Borough of Sutton,24/04/2022,50208711,612.5,0,Exodus Health Care Services Ltd,SOCIAL SERVICES RESIDENTIAL,Peoples Services,Home Care Services
London Borough of Sutton,12/06/2022,50208712,612.5,0,Exodus Health Care Services Ltd,SOCIAL SERVICES RESIDENTIAL,Peoples Services,Home Care Services
London Borough of Sutton,24/04/2022,50208732,367.47,0,Exodus Health Care Services Ltd,SOCIAL SERVICES RESIDENTIAL,Peoples Services,Home Care Services
London Borough of Sutton,24/04/2022,50208732,336.91,0,Exodus Health Care Services Ltd,SOCIAL SERVICES RESIDENTIAL,Peoples Services,Home Care Services
London Borough of Sutton,12/06/2022,50208733,367.47,0,Exodus Health Care Services Ltd,SOCIAL SERVICES RESIDENTIAL,Peoples Services,Home Care Services
London Borough of Sutton,12/06/2022,50208733,336.91,0,Exodus Health Care Services Ltd,SOCIAL SERVICES RESIDENTIAL,Peoples Services,Home Care Services
London Borough of Sutton,24/04/2022,50208798,551.25,0,Exodus Health Care Services Ltd,SOCIAL SERVICES RESIDENTIAL,Peoples Services,Home Care Services
London Borough of Sutton,07/06/2022,20025984,"1,986.00",0,F L Beadle & Sons Ltd,CONSTRUCTION INDUSTRY,Environment Housing and Neighbourhoods,Other Supplies & Services
London Borough of Sutton,31/01/2022,20025705,"30,000.00",0,F M Conway Limited,CONSTRUCTION INDUSTRY,Environment Housing and Neighbourhoods,External Fees and Consultants
London Borough of Sutton,10/02/2022,20026096,"13,945.23",0,F M Conway Limited,CONSTRUCTION INDUSTRY,Environment Housing and Neighbourhoods,Payments to Contractors
London Borough of Sutton,17/06/2022,20026699,"68,894.27",0,F M Conway Limited,CONSTRUCTION INDUSTRY,Environment Housing and Neighbourhoods,Payments to Contractors
London Borough of Sutton,07/06/2022,50199348,"1,655.10",0,Fairlands Pre-School,GRANTS & EX GRATIA PAYMENTS,Peoples Services,Place Funding
London Borough of Sutton,07/06/2022,50199431,"8,941.05",0,Fairlands Pre-School,GRANTS & EX GRATIA PAYMENTS,Peoples Services,Place Funding
London Borough of Sutton,17/05/2022,50204371,"5,712.85",0,Family First Fostering,CHILDREN'S SERVICES - FOSTERING & ADOPTION SERVICES,Peoples Services,Foster Parents Support
London Borough of Sutton,10/06/2022,50204684,"-11,936.75",0,Family Star Ltd,SOCIAL SERVICES RESIDENTIAL,Peoples Services,Nursing Care - 3rd party top up payment
London Borough of Sutton,10/06/2022,50204684,"58,826.06",0,Family Star Ltd,SOCIAL SERVICES RESIDENTIAL,Peoples Services,Nursing Care - Ext Provider
London Borough of Sutton,10/06/2022,50204713,"3,646.72",0,Family Star Ltd,SOCIAL SERVICES RESIDENTIAL,Peoples Services,Nursing Care - Ext Provider
London Borough of Sutton,10/06/2022,50204713,-662.24,0,Family Star Ltd,SOCIAL SERVICES RESIDENTIAL,Peoples Services,Nursing Care - 3rd party top up payment
London Borough of Sutton,10/06/2022,50204771,"3,848.24",0,Family Star Ltd,SOCIAL SERVICES RESIDENTIAL,Peoples Services,Nursing Care - Ext Provider
London Borough of Sutton,10/06/2022,50204771,-750.4,0,Family Star Ltd,SOCIAL SERVICES RESIDENTIAL,Peoples Services,Nursing Care - 3rd party top up payment
London Borough of Sutton,10/06/2022,50204921,-750.4,0,Family Star Ltd,SOCIAL SERVICES RESIDENTIAL,Peoples Services,Nursing Care - 3rd party top up payment
London Borough of Sutton,10/06/2022,50204921,"3,734.88",0,Family Star Ltd,SOCIAL SERVICES RESIDENTIAL,Peoples Services,Nursing Care Short Term
London Borough of Sutton,10/06/2022,50204931,"3,736.00",0,Family Star Ltd,SOCIAL SERVICES RESIDENTIAL,Peoples Services,Nursing Care - Ext Provider
London Borough of Sutton,10/06/2022,50204931,-750.4,0,Family Star Ltd,SOCIAL SERVICES RESIDENTIAL,Peoples Services,Nursing Care - 3rd party top up payment
London Borough of Sutton,10/06/2022,50204954,-750.4,0,Family Star Ltd,SOCIAL SERVICES RESIDENTIAL,Peoples Services,Nursing Care - 3rd party top up payment
London Borough of Sutton,10/06/2022,50204954,"4,172.80",0,Family Star Ltd,SOCIAL SERVICES RESIDENTIAL,Peoples Services,Nursing Care Short Term
London Borough of Sutton,10/06/2022,50204954,-312.8,0,Family Star Ltd,SOCIAL SERVICES RESIDENTIAL,Peoples Services,Nursing Care - 3rd party top up payment
London Borough of Sutton,10/06/2022,50204963,"3,734.88",0,Family Star Ltd,SOCIAL SERVICES RESIDENTIAL,Peoples Services,Nursing Care - Ext Provider
London Borough of Sutton,10/06/2022,50204963,-750.4,0,Family Star Ltd,SOCIAL SERVICES RESIDENTIAL,Peoples Services,Nursing Care - 3rd party top up payment
London Borough of Sutton,10/06/2022,50204964,"3,848.24",0,Family Star Ltd,SOCIAL SERVICES RESIDENTIAL,Peoples Services,Nursing Care - Ext Provider
London Borough of Sutton,10/06/2022,50204964,-750.4,0,Family Star Ltd,SOCIAL SERVICES RESIDENTIAL,Peoples Services,Nursing Care - 3rd party top up payment
London Borough of Sutton,10/06/2022,50204991,"3,734.88",0,Family Star Ltd,SOCIAL SERVICES RESIDENTIAL,Peoples Services,Nursing Care - Ext Provider
London Borough of Sutton,10/06/2022,50204991,-750.4,0,Family Star Ltd,SOCIAL SERVICES RESIDENTIAL,Peoples Services,Nursing Care - 3rd party top up payment
London Borough of Sutton,01/06/2022,20026099,"10,734.00",0,Fern Court London Limited,ACCOMMODATION BED & BREAKFAST,Environment Housing and Neighbourhoods,Bed & Breakfast
London Borough of Sutton,20/06/2022,50208547,"2,588.80",0,Field Lane Foundation,CHARITIES & VOLUNTARY ORGNS,Peoples Services,Home Care Services
London Borough of Sutton,07/06/2022,50199463,"1,333.90",0,REDACTED - PERSONAL DATA,GRANTS & EX GRATIA PAYMENTS,Peoples Services,Place Funding
London Borough of Sutton,10/06/2022,50204544,"3,652.88",0,Fircroft Homes,SOCIAL SERVICES RESIDENTIAL,Peoples Services,Residential Care - Ext Provider
London Borough of Sutton,10/06/2022,50204544,-517.55,0,Fircroft Homes,SOCIAL SERVICES RESIDENTIAL,Peoples Services,Residential Care - Client Cont ( Net Paymt )
London Borough of Sutton,25/04/2022,20026004,"1,104.00",0,First Little Steps,SUNDRY SUPPLIER - EDUCATION,Peoples Services,Client Care/Assistance
London Borough of Sutton,07/06/2022,50199349,"2,482.65",0,FIRST LITTLE STEPS DAY NURSERY LTD,CHILDREN'S SERVICES - SEN SERVICES,Peoples Services,Place Funding
London Borough of Sutton,07/06/2022,50199432,"9,676.80",0,FIRST LITTLE STEPS DAY NURSERY LTD,CHILDREN'S SERVICES - SEN SERVICES,Peoples Services,Place Funding
London Borough of Sutton,07/06/2022,50200309,"6,000.00",0,FIRST LITTLE STEPS DAY NURSERY LTD,CHILDREN'S SERVICES - SEN SERVICES,Peoples Services,Top-up individual funding
London Borough of Sutton,30/05/2022,50206051,"2,900.00",0,FIRST LITTLE STEPS DAY NURSERY LTD,CHILDREN'S SERVICES - SEN SERVICES,Peoples Services,Top-up individual funding
London Borough of Sutton,10/06/2022,50204587,"5,647.16",0,Fitzroy,SOCIAL SERVICES RESIDENTIAL,Peoples Services,Residential Care - Ext Provider
London Borough of Sutton,10/06/2022,50204587,-425.6,0,Fitzroy,SOCIAL SERVICES RESIDENTIAL,Peoples Services,Residential Care - Client Cont ( Net Paymt )
London Borough of Sutton,01/05/2022,50204346,"3,587.14",0,Five Rivers Child Care Ltd,CHILDREN'S SERVICES - FOSTERING & ADOPTION SERVICES,Peoples Services,Foster Parents Support
London Borough of Sutton,08/06/2022,20026100,440,0,Fleet Tutors,TEMP STAFF & CONSULTANCY,Peoples Services,LAC - Education
London Borough of Sutton,08/06/2022,50206043,"3,594.00",0,Fleet Tutors,TEMP STAFF & CONSULTANCY,Peoples Services,Independent School Fees
London Borough of Sutton,08/06/2022,50206044,"3,480.00",0,Fleet Tutors,TEMP STAFF & CONSULTANCY,Peoples Services,Independent School Fees
London Borough of Sutton,08/06/2022,50206047,"1,920.00",0,Fleet Tutors,TEMP STAFF & CONSULTANCY,Peoples Services,Independent School Fees
London Borough of Sutton,10/06/2022,50204733,"7,470.72",0,Florence Avenue Care Home Ltd,SOCIAL SERVICES RESIDENTIAL,Peoples Services,Residential Care - Ext Provider
London Borough of Sutton,01/06/2022,50204496,"4,140.70",0,Flying Colours Foster Care Ltd,CHILDREN'S SERVICES - FOSTERING & ADOPTION SERVICES,Peoples Services,Foster Parents Support
London Borough of Sutton,07/06/2022,50199367,551.7,0,Mill House Day Nursery,GRANTS & EX GRATIA PAYMENTS,Peoples Services,Place Funding
London Borough of Sutton,07/06/2022,50199467,"8,941.05",0,Mill House Day Nursery,GRANTS & EX GRATIA PAYMENTS,Peoples Services,Place Funding
London Borough of Sutton,22/06/2022,50210874,650,0,Mill House Day Nursery,GRANTS & EX GRATIA PAYMENTS,Peoples Services,SEND Inclusion funding
London Borough of Sutton,07/06/2022,50199140,"108,593.32",0,Foresters Primary,GRANTS & EX GRATIA PAYMENTS,Peoples Services,Payments to Schools
London Borough of Sutton,07/06/2022,50199168,"21,000.00",0,Foresters Primary,GRANTS & EX GRATIA PAYMENTS,Peoples Services,Place Funding
London Borough of Sutton,07/06/2022,50199194,"2,174.85",0,Foresters Primary,GRANTS & EX GRATIA PAYMENTS,Peoples Services,Place Funding
London Borough of Sutton,07/06/2022,50199220,"1,760.00",0,Foresters Primary,GRANTS & EX GRATIA PAYMENTS,Peoples Services,Payments to Schools
London Borough of Sutton,31/05/2022,50204488,"4,435.17",0,Foster Care Associates Ltd,CHILDREN'S SERVICES - FOSTERING & ADOPTION SERVICES,Peoples Services,Foster Parents Support
London Borough of Sutton,01/05/2022,50204377,"3,228.34",0,Foster Care UK Ltd,CHILDREN'S SERVICES - FOSTERING & ADOPTION SERVICES,Peoples Services,Foster Parents Support
London Borough of Sutton,06/05/2022,50204448,"4,772.82",0,Foster Care UK Ltd,CHILDREN'S SERVICES - FOSTERING & ADOPTION SERVICES,Peoples Services,Foster Parents Support
London Borough of Sutton,01/05/2022,50204449,599.3,0,Foster Care UK Ltd,CHILDREN'S SERVICES - FOSTERING & ADOPTION SERVICES,Peoples Services,Foster Parents Support
London Borough of Sutton,31/05/2022,50204419,"3,210.58",0,Fostering For You,CHILDREN'S SERVICES - FOSTERING & ADOPTION SERVICES,Peoples Services,Foster Parents Support
London Borough of Sutton,31/05/2022,50204466,"4,024.46",0,Fostering For You,CHILDREN'S SERVICES - FOSTERING & ADOPTION SERVICES,Peoples Services,Foster Parents Support
London Borough of Sutton,31/05/2022,50204467,"3,210.58",0,Fostering For You,CHILDREN'S SERVICES - FOSTERING & ADOPTION SERVICES,Peoples Services,Foster Parents Support
London Borough of Sutton,31/05/2022,50204468,"3,277.01",0,Fostering For You,CHILDREN'S SERVICES - FOSTERING & ADOPTION SERVICES,Peoples Services,Foster Parents Support
London Borough of Sutton,31/05/2022,50204472,"5,369.51",0,Fostering For You,CHILDREN'S SERVICES - FOSTERING & ADOPTION SERVICES,Peoples Services,Foster Parents Support
London Borough of Sutton,31/05/2022,50204473,"3,189.01",0,Fostering For You,CHILDREN'S SERVICES - FOSTERING & ADOPTION SERVICES,Peoples Services,Foster Parents Support
London Borough of Sutton,20/05/2022,50204366,"3,542.86",0,Fostering Innovations Limited,CHILDREN'S SERVICES - FOSTERING & ADOPTION SERVICES,Peoples Services,Foster Parents Support
London Borough of Sutton,20/05/2022,50204429,"3,542.86",0,Fostering Innovations Limited,CHILDREN'S SERVICES - FOSTERING & ADOPTION SERVICES,Peoples Services,Foster Parents Support
London Borough of Sutton,31/05/2022,50204369,"5,699.35",0,Fostering Support Group ,CHILDREN'S SERVICES - RESIDENTIAL,Peoples Services,Foster Parents Support
London Borough of Sutton,31/05/2022,50204390,"3,375.28",0,Fostering Support Group ,CHILDREN'S SERVICES - RESIDENTIAL,Peoples Services,Foster Parents Support
London Borough of Sutton,31/05/2022,50204504,"4,354.26",0,Fostering Support Group ,CHILDREN'S SERVICES - RESIDENTIAL,Peoples Services,Foster Parents Support
London Borough of Sutton,31/05/2022,50204357,"7,041.34",0,Fosteringuk Ltd,CHILDREN'S SERVICES - FOSTERING & ADOPTION SERVICES,Peoples Services,Foster Parents Support
London Borough of Sutton,10/06/2022,50204519,"2,697.76",0,Foxley Lodge,SOCIAL SERVICES RESIDENTIAL,Peoples Services,Interim Placements - Ext Provider
London Borough of Sutton,09/06/2022,20026102,951,0,REDACTED - PERSONAL DATA,GRANTS & EX GRATIA PAYMENTS,Environment Housing and Neighbourhoods,Temporary Protection - Homeless Persons
London Borough of Sutton,31/05/2022,50200323,"2,952.00",0,Fresh Start In Education Ltd,ACADEMIC INSTNS - OTHER,Peoples Services,Independent School Fees
London Borough of Sutton,31/05/2022,50200324,"3,403.00",0,Fresh Start In Education Ltd,ACADEMIC INSTNS - OTHER,Peoples Services,Independent School Fees
London Borough of Sutton,31/05/2022,50200325,"4,346.00",0,Fresh Start In Education Ltd,ACADEMIC INSTNS - OTHER,Peoples Services,Independent School Fees
London Borough of Sutton,30/05/2022,20025574,892,0,Friends of Rose Hill Parks,SUNDRY SUPPLIER - ENV SERVICES,Resources,"Grants, Contributions & Donations"
London Borough of Sutton,30/05/2022,20025575,915,0,Friends of Sutton Green,SUNDRY SUPPLIER - ENV SERVICES,Resources,"Grants, Contributions & Donations"
London Borough of Sutton,10/06/2022,50204610,"2,697.76",0,Friends Of The Elderly,SOCIAL SERVICES RESIDENTIAL,Peoples Services,Interim Placements - Ext Provider
London Borough of Sutton,10/06/2022,50204685,578.09,0,Friends Of The Elderly,SOCIAL SERVICES RESIDENTIAL,Peoples Services,Interim Placements - Ext Provider
London Borough of Sutton,10/06/2022,50204686,"1,348.88",0,Friends Of The Elderly,SOCIAL SERVICES RESIDENTIAL,Peoples Services,Interim Placements - Ext Provider
London Borough of Sutton,10/06/2022,50204742,"2,697.76",0,Friends Of The Elderly,SOCIAL SERVICES RESIDENTIAL,Peoples Services,Residential Care - Ext Provider
London Borough of Sutton,10/06/2022,50204779,"2,697.76",0,Friends Of The Elderly,SOCIAL SERVICES RESIDENTIAL,Peoples Services,Residential Care - Ext Provider
London Borough of Sutton,10/06/2022,50204840,"3,332.76",0,Friends Of The Elderly,SOCIAL SERVICES RESIDENTIAL,Peoples Services,Residential Care - Ext Provider
London Borough of Sutton,10/06/2022,50204854,"2,697.76",0,Friends Of The Elderly,SOCIAL SERVICES RESIDENTIAL,Peoples Services,Interim Placements - Ext Provider
London Borough of Sutton,10/06/2022,50204885,"4,503.20",0,Friends Of The Elderly,SOCIAL SERVICES RESIDENTIAL,Peoples Services,Residential Care - Ext Provider
London Borough of Sutton,10/06/2022,50204886,"2,697.76",0,Friends Of The Elderly,SOCIAL SERVICES RESIDENTIAL,Peoples Services,Residential Care - Ext Provider
London Borough of Sutton,10/06/2022,50204966,674.44,0,Friends Of The Elderly,SOCIAL SERVICES RESIDENTIAL,Peoples Services,Interim Placements - Ext Provider
London Borough of Sutton,10/06/2022,50204979,"2,697.76",0,Friends Of The Elderly,SOCIAL SERVICES RESIDENTIAL,Peoples Services,Residential Care - Ext Provider
London Borough of Sutton,10/06/2022,50204980,"2,697.76",0,Friends Of The Elderly,SOCIAL SERVICES RESIDENTIAL,Peoples Services,Residential Care - Ext Provider
London Borough of Sutton,10/06/2022,50205368,253.5,0,Friends Of The Elderly,SOCIAL SERVICES RESIDENTIAL,Peoples Services,Hire of Transport - Non Staff
London Borough of Sutton,10/06/2022,50205368,614.1,0,Friends Of The Elderly,SOCIAL SERVICES RESIDENTIAL,Peoples Services,Day Care Services
London Borough of Sutton,10/06/2022,50205371,810.6,0,Friends Of The Elderly,SOCIAL SERVICES RESIDENTIAL,Peoples Services,Day Care Services
London Borough of Sutton,10/06/2022,50205371,351,0,Friends Of The Elderly,SOCIAL SERVICES RESIDENTIAL,Peoples Services,Hire of Transport - Non Staff
London Borough of Sutton,10/06/2022,50205372,273,0,Friends Of The Elderly,SOCIAL SERVICES RESIDENTIAL,Peoples Services,Hire of Transport - Non Staff
London Borough of Sutton,10/06/2022,50205372,594.6,0,Friends Of The Elderly,SOCIAL SERVICES RESIDENTIAL,Peoples Services,Day Care Services
London Borough of Sutton,10/06/2022,50205374,"1,098.30",0,Friends Of The Elderly,SOCIAL SERVICES RESIDENTIAL,Peoples Services,Day Care Services
London Borough of Sutton,10/06/2022,50205376,561.3,0,Friends Of The Elderly,SOCIAL SERVICES RESIDENTIAL,Peoples Services,Day Care Services
London Borough of Sutton,10/06/2022,50205376,234,0,Friends Of The Elderly,SOCIAL SERVICES RESIDENTIAL,Peoples Services,Hire of Transport - Non Staff
London Borough of Sutton,10/06/2022,50205378,679.9,0,Friends Of The Elderly,SOCIAL SERVICES RESIDENTIAL,Peoples Services,Day Care Services
London Borough of Sutton,10/06/2022,50205379,679.9,0,Friends Of The Elderly,SOCIAL SERVICES RESIDENTIAL,Peoples Services,Day Care Services
London Borough of Sutton,10/06/2022,50205380,156,0,Friends Of The Elderly,SOCIAL SERVICES RESIDENTIAL,Peoples Services,Hire of Transport - Non Staff
London Borough of Sutton,10/06/2022,50205380,422.4,0,Friends Of The Elderly,SOCIAL SERVICES RESIDENTIAL,Peoples Services,Day Care Services
London Borough of Sutton,10/06/2022,50205381,679.9,0,Friends Of The Elderly,SOCIAL SERVICES RESIDENTIAL,Peoples Services,Day Care Services
London Borough of Sutton,10/06/2022,50205382,"1,098.30",0,Friends Of The Elderly,SOCIAL SERVICES RESIDENTIAL,Peoples Services,Day Care Services
London Borough of Sutton,10/06/2022,50205386,679.9,0,Friends Of The Elderly,SOCIAL SERVICES RESIDENTIAL,Peoples Services,Day Care Services
London Borough of Sutton,10/06/2022,50205387,273,0,Friends Of The Elderly,SOCIAL SERVICES RESIDENTIAL,Peoples Services,Hire of Transport - Non Staff
London Borough of Sutton,10/06/2022,50205387,354.6,0,Friends Of The Elderly,SOCIAL SERVICES RESIDENTIAL,Peoples Services,Day Care Services
London Borough of Sutton,10/06/2022,50205388,96,0,Friends Of The Elderly,SOCIAL SERVICES RESIDENTIAL,Peoples Services,Hire of Transport - Non Staff
London Borough of Sutton,10/06/2022,50205388,422.4,0,Friends Of The Elderly,SOCIAL SERVICES RESIDENTIAL,Peoples Services,Day Care Services
London Borough of Sutton,10/06/2022,50205390,666.9,0,Friends Of The Elderly,SOCIAL SERVICES RESIDENTIAL,Peoples Services,Day Care Services
London Borough of Sutton,10/06/2022,50205390,273,0,Friends Of The Elderly,SOCIAL SERVICES RESIDENTIAL,Peoples Services,Hire of Transport - Non Staff
London Borough of Sutton,10/06/2022,50205391,"1,098.30",0,Friends Of The Elderly,SOCIAL SERVICES RESIDENTIAL,Peoples Services,Day Care Services
London Borough of Sutton,31/05/2022,20025706,"10,683.93",0,Full Circle Support UK Limited,CHILDREN'S SERVICES - FOSTERING & ADOPTION SERVICES,Peoples Services,Approved Lodgings
London Borough of Sutton,31/05/2022,20025707,"4,926.79",0,Full Circle Support UK Limited,CHILDREN'S SERVICES - FOSTERING & ADOPTION SERVICES,Peoples Services,Approved Lodgings
London Borough of Sutton,31/05/2022,20025708,"4,705.36",0,Full Circle Support UK Limited,CHILDREN'S SERVICES - FOSTERING & ADOPTION SERVICES,Peoples Services,Approved Lodgings
London Borough of Sutton,31/05/2022,50204445,794.64,0,Full Circle Support UK Limited,CHILDREN'S SERVICES - FOSTERING & ADOPTION SERVICES,Peoples Services,Approved Lodgings
London Borough of Sutton,10/06/2022,50204651,"2,697.76",0,Gable Lodge,SOCIAL SERVICES RESIDENTIAL,Peoples Services,Residential Care - Ext Provider
London Borough of Sutton,10/06/2022,50204748,"2,697.76",0,Gable Lodge,SOCIAL SERVICES RESIDENTIAL,Peoples Services,Residential Care - Ext Provider
London Borough of Sutton,10/06/2022,50204812,"2,697.76",0,Gable Lodge,SOCIAL SERVICES RESIDENTIAL,Peoples Services,Residential Care - Ext Provider
London Borough of Sutton,10/06/2022,50204894,"2,697.76",0,Gable Lodge,SOCIAL SERVICES RESIDENTIAL,Peoples Services,Interim Placements - Ext Provider
London Borough of Sutton,10/06/2022,50204895,"2,697.76",0,Gable Lodge,SOCIAL SERVICES RESIDENTIAL,Peoples Services,Residential Care - Ext Provider
London Borough of Sutton,10/06/2022,50204620,"3,923.20",0,Galleon Care Homes Ltd,SOCIAL SERVICES RESIDENTIAL,Peoples Services,Nursing Care - Ext Provider
London Borough of Sutton,10/06/2022,50204620,-735.68,0,Galleon Care Homes Ltd,SOCIAL SERVICES RESIDENTIAL,Peoples Services,Nursing Care - 3rd party top up payment
London Borough of Sutton,31/03/2022,20022289,641.12,0,Garden Care Contracting Ltd,AGRICULTURAL & ESTATE SERVICES,Health and Wellbeing,Other Supplies & Services
London Borough of Sutton,10/06/2022,50204615,"2,697.76",0,Gate Lodge Care Home,SOCIAL SERVICES RESIDENTIAL,Peoples Services,Residential Care - Ext Provider
London Borough of Sutton,10/06/2022,50204804,"2,905.28",0,Gate Lodge Care Home,SOCIAL SERVICES RESIDENTIAL,Peoples Services,Residential Care - Ext Provider
London Borough of Sutton,10/06/2022,50204805,"2,697.76",0,Gate Lodge Care Home,SOCIAL SERVICES RESIDENTIAL,Peoples Services,Residential Care - Ext Provider
London Borough of Sutton,10/06/2022,50204926,"2,697.76",0,Gate Lodge Care Home,SOCIAL SERVICES RESIDENTIAL,Peoples Services,Residential Care - Ext Provider
London Borough of Sutton,10/06/2022,50204927,"2,697.76",0,Gate Lodge Care Home,SOCIAL SERVICES RESIDENTIAL,Peoples Services,Residential Care - Ext Provider
London Borough of Sutton,24/05/2022,20025199,"1,072.50",0,Gatten and Lake Primary School,SUNDRY SUPPLIER - EDUCATION,Peoples Services,Client Related Assessments
London Borough of Sutton,07/06/2022,50199352,"2,206.80",0,Hidden Gems Daycare Ltd,GRANTS & EX GRATIA PAYMENTS,Peoples Services,Place Funding
London Borough of Sutton,07/06/2022,50199440,"4,147.20",0,Hidden Gems Daycare Ltd,GRANTS & EX GRATIA PAYMENTS,Peoples Services,Place Funding
London Borough of Sutton,07/06/2022,50199522,"1,930.95",0,Gifted Hands Childcare Ltd,GRANTS & EX GRATIA PAYMENTS,Peoples Services,Place Funding
London Borough of Sutton,07/06/2022,50199523,"3,354.00",0,Gifted Hands Childcare Ltd,GRANTS & EX GRATIA PAYMENTS,Peoples Services,Place Funding
London Borough of Sutton,31/05/2022,20025690,"15,811.00",0,Gilroy Court Ltd,ACCOMMODATION BED & BREAKFAST,Environment Housing and Neighbourhoods,Bed & Breakfast
London Borough of Sutton,07/06/2022,50199436,"23,040.00",0,Glaisdale Day Nursery,GRANTS & EX GRATIA PAYMENTS,Peoples Services,Place Funding
London Borough of Sutton,22/06/2022,50212861,650,0,Glaisdale Day Nursery,GRANTS & EX GRATIA PAYMENTS,Peoples Services,SEND Inclusion funding
London Borough of Sutton,10/06/2022,50204577,"5,642.72",0,Glebe Care Ltd,SOCIAL SERVICES DAY CARE,Peoples Services,Nursing Care - Ext Provider
London Borough of Sutton,10/06/2022,50204577,-662.24,0,Glebe Care Ltd,SOCIAL SERVICES DAY CARE,Peoples Services,Nursing Care - 3rd party top up payment
London Borough of Sutton,07/06/2022,50199163,"6,903.80",0,Glenthorne High School (Academy),GRANTS & EX GRATIA PAYMENTS,Peoples Services,Pupil Growth
London Borough of Sutton,31/05/2022,50200306,"2,100.00",0,Glenthorne High School (Academy),GRANTS & EX GRATIA PAYMENTS,Peoples Services,Top Up Additional Support
London Borough of Sutton,30/04/2022,20024874,"2,800.00",0,GLOBAL MEDIATION LIMITED,LEGAL & PROFESSIONAL SERVICES,Peoples Services,Other Supplies & Services
London Borough of Sutton,05/05/2022,20025634,"3,450.00",0,Global Resourcing Limited,TEMP STAFF & CONSULTANCY,Resources,Agency Staff - Other
London Borough of Sutton,31/05/2022,20026370,"3,450.00",0,Global Resourcing Limited,TEMP STAFF & CONSULTANCY,Resources,Agency Staff - Other
London Borough of Sutton,29/05/2022,20025428,"1,500.00",0,REDACTED - PERSONAL DATA,SUNDRY SUPPLIER - HOUSING,Environment Housing and Neighbourhoods,Rent Deposit Scheme
London Borough of Sutton,10/06/2022,50204747,"4,150.40",0,Gracewell Healthcare 3 Ltd,SOCIAL SERVICES RESIDENTIAL,Peoples Services,Residential Care - Ext Provider
London Borough of Sutton,10/06/2022,50204790,"2,865.93",0,Gracewell Healthcare 3 Ltd,SOCIAL SERVICES RESIDENTIAL,Peoples Services,Nursing Care - Ext Provider
London Borough of Sutton,10/06/2022,50204790,-627.57,0,Gracewell Healthcare 3 Ltd,SOCIAL SERVICES RESIDENTIAL,Peoples Services,Nursing Care - 3rd party top up payment
London Borough of Sutton,10/06/2022,50204972,"6,884.88",0,Gracewell Healthcare 3 Ltd,SOCIAL SERVICES RESIDENTIAL,Peoples Services,Nursing Care - Ext Provider
London Borough of Sutton,10/06/2022,50204972,-750.4,0,Gracewell Healthcare 3 Ltd,SOCIAL SERVICES RESIDENTIAL,Peoples Services,Nursing Care - 3rd party top up payment
London Borough of Sutton,10/06/2022,50205002,-735.68,0,Gracewell Healthcare 3 Ltd,SOCIAL SERVICES RESIDENTIAL,Peoples Services,Nursing Care - 3rd party top up payment
London Borough of Sutton,10/06/2022,50205002,"5,275.92",0,Gracewell Healthcare 3 Ltd,SOCIAL SERVICES RESIDENTIAL,Peoples Services,Nursing Care - Ext Provider
London Borough of Sutton,10/06/2022,50204655,"3,730.60",0,Grange Cottage Ltd,MANAGEMENT & TRAINING SERVICES,Peoples Services,Interim Placements - Ext Provider
London Borough of Sutton,10/06/2022,50204667,"3,320.32",0,Grange Cottage Ltd,MANAGEMENT & TRAINING SERVICES,Peoples Services,Residential Care - Ext Provider
London Borough of Sutton,10/06/2022,50204668,"3,360.16",0,Grange Cottage Ltd,MANAGEMENT & TRAINING SERVICES,Peoples Services,Residential Care - Ext Provider
London Borough of Sutton,10/06/2022,50204723,"2,697.76",0,Grange Cottage Ltd,MANAGEMENT & TRAINING SERVICES,Peoples Services,Interim Placements - Ext Provider
London Borough of Sutton,10/06/2022,50204736,"-3,210.72",0,Grange Cottage Ltd,MANAGEMENT & TRAINING SERVICES,Peoples Services,Residential Care - Ext Provider
London Borough of Sutton,10/06/2022,50204745,"2,697.76",0,Grange Cottage Ltd,MANAGEMENT & TRAINING SERVICES,Peoples Services,Residential Care - Ext Provider
London Borough of Sutton,10/06/2022,50204792,"3,112.80",0,Grange Cottage Ltd,MANAGEMENT & TRAINING SERVICES,Peoples Services,Residential Care - Ext Provider
London Borough of Sutton,10/06/2022,50204837,"2,697.76",0,Grange Cottage Ltd,MANAGEMENT & TRAINING SERVICES,Peoples Services,Residential Care - Ext Provider
London Borough of Sutton,10/06/2022,50204838,"2,697.76",0,Grange Cottage Ltd,MANAGEMENT & TRAINING SERVICES,Peoples Services,Residential Care - Ext Provider
London Borough of Sutton,10/06/2022,50204863,"2,697.76",0,Grange Cottage Ltd,MANAGEMENT & TRAINING SERVICES,Peoples Services,Interim Placements - Ext Provider
London Borough of Sutton,10/06/2022,50204903,"2,801.52",0,Grange Cottage Ltd,MANAGEMENT & TRAINING SERVICES,Peoples Services,Interim Placements - Ext Provider
London Borough of Sutton,10/06/2022,50204924,"2,905.28",0,Grange Cottage Ltd,MANAGEMENT & TRAINING SERVICES,Peoples Services,Residential Care - Ext Provider
London Borough of Sutton,10/06/2022,50204935,"2,697.76",0,Grange Cottage Ltd,MANAGEMENT & TRAINING SERVICES,Peoples Services,Interim Placements - Ext Provider
London Borough of Sutton,10/06/2022,50204975,"2,697.76",0,Grange Cottage Ltd,MANAGEMENT & TRAINING SERVICES,Peoples Services,Residential Care - Ext Provider
London Borough of Sutton,10/06/2022,50204669,"3,608.52",0,Grasmere Rest Home,SOCIAL SERVICES RESIDENTIAL,Peoples Services,Residential Care - Ext Provider
London Borough of Sutton,10/06/2022,50204670,"2,697.76",0,Grasmere Rest Home,SOCIAL SERVICES RESIDENTIAL,Peoples Services,Residential Care - Ext Provider
London Borough of Sutton,10/06/2022,50204737,"14,163.24",0,Grasmere Rest Home,SOCIAL SERVICES RESIDENTIAL,Peoples Services,Residential Care - Ext Provider
London Borough of Sutton,10/06/2022,50204738,"2,697.76",0,Grasmere Rest Home,SOCIAL SERVICES RESIDENTIAL,Peoples Services,Residential Care - Ext Provider
London Borough of Sutton,10/06/2022,50204739,"2,697.76",0,Grasmere Rest Home,SOCIAL SERVICES RESIDENTIAL,Peoples Services,Residential Care - Ext Provider
London Borough of Sutton,10/06/2022,50204768,"2,905.28",0,Grasmere Rest Home,SOCIAL SERVICES RESIDENTIAL,Peoples Services,Residential Care - Ext Provider
London Borough of Sutton,10/06/2022,50204839,"2,697.76",0,Grasmere Rest Home,SOCIAL SERVICES RESIDENTIAL,Peoples Services,Residential Care - Ext Provider
London Borough of Sutton,31/05/2022,50204348,"3,418.99",0,Greater London Fostering Company Ltd,CHILDREN'S SERVICES - FOSTERING & ADOPTION SERVICES,Peoples Services,Foster Parents Support
London Borough of Sutton,31/05/2022,50204349,"2,977.83",0,Greater London Fostering Company Ltd,CHILDREN'S SERVICES - FOSTERING & ADOPTION SERVICES,Peoples Services,Foster Parents Support
London Borough of Sutton,31/05/2022,50204350,"3,039.39",0,Greater London Fostering Company Ltd,CHILDREN'S SERVICES - FOSTERING & ADOPTION SERVICES,Peoples Services,Foster Parents Support
London Borough of Sutton,31/05/2022,50204420,"1,463.41",0,Greater London Fostering Company Ltd,CHILDREN'S SERVICES - FOSTERING & ADOPTION SERVICES,Peoples Services,Foster Parents Support
London Borough of Sutton,31/05/2022,50204456,"1,433.77",0,Greater London Fostering Company Ltd,CHILDREN'S SERVICES - FOSTERING & ADOPTION SERVICES,Peoples Services,Foster Parents Support
London Borough of Sutton,31/05/2022,50204498,"4,517.15",0,Green Harvest Ltd,CHILDREN'S SERVICES - FOSTERING & ADOPTION SERVICES,Peoples Services,Approved Lodgings
London Borough of Sutton,31/05/2022,50207716,"3,089.29",0,Green Harvest Ltd,CHILDREN'S SERVICES - FOSTERING & ADOPTION SERVICES,Peoples Services,Approved Lodgings
London Borough of Sutton,31/05/2022,50207717,617.86,0,Green Harvest Ltd,CHILDREN'S SERVICES - FOSTERING & ADOPTION SERVICES,Peoples Services,Approved Lodgings
London Borough of Sutton,31/05/2022,20025689,"2,500.00",0,Green Space Information for London CIC,SUNDRY SUPPLIER - ENV SERVICES,Environment Housing and Neighbourhoods,Nature Conservation
London Borough of Sutton,07/06/2022,50199195,"5,990.40",0,Green Wrythe Primary School,SCHOOL FUNDS,Peoples Services,Place Funding
London Borough of Sutton,30/06/2022,50212847,728,0,Green Wrythe Primary School,SCHOOL FUNDS,Peoples Services,Payments to Schools
London Borough of Sutton,10/06/2022,50204582,"5,827.24",0,Sunrise Rehabilitation Centre & Trading Associates Ltd,SOCIAL SERVICES RESIDENTIAL,Peoples Services,Residential Care - Ext Provider
London Borough of Sutton,07/06/2022,50199209,"21,748.50",0,Victor Seymour Infants School,GRANTS & EX GRATIA PAYMENTS,Peoples Services,Place Funding
London Borough of Sutton,30/06/2022,50212855,985.6,0,Victor Seymour Infants School,GRANTS & EX GRATIA PAYMENTS,Peoples Services,Payments to Schools
London Borough of Sutton,07/06/2022,50199384,"1,268.91",0,Greenwich Leisure Ltd,OFFICE SERVICES,Peoples Services,Place Funding
London Borough of Sutton,07/06/2022,50199502,"11,473.92",0,Greenwich Leisure Ltd,OFFICE SERVICES,Peoples Services,Place Funding
London Borough of Sutton,19/05/2022,20025570,"38,375.20",0,Greyline Builders Limited,CONSTRUCTION INDUSTRY,Environment Housing and Neighbourhoods,Payments to Contractors
London Borough of Sutton,07/06/2022,50199132,"290,594.56",0,Hackbridge Primary School,GRANTS & EX GRATIA PAYMENTS,Peoples Services,Payments to Schools
London Borough of Sutton,07/06/2022,50199196,"25,131.60",0,Hackbridge Primary School,GRANTS & EX GRATIA PAYMENTS,Peoples Services,Place Funding
London Borough of Sutton,07/06/2022,50199212,"1,803.24",0,Hackbridge Primary School,GRANTS & EX GRATIA PAYMENTS,Peoples Services,Payments to Schools
London Borough of Sutton,14/06/2022,50205287,"1,580.00",0,Hackbridge Primary School,GRANTS & EX GRATIA PAYMENTS,Non-Service Cost Centres,Recharge-Teaching Staff
London Borough of Sutton,14/06/2022,50205288,"2,674.36",0,Hackbridge Primary School,GRANTS & EX GRATIA PAYMENTS,Non-Service Cost Centres,Recharge-Teaching Staff
London Borough of Sutton,14/06/2022,50205289,"3,163.63",0,Hackbridge Primary School,GRANTS & EX GRATIA PAYMENTS,Non-Service Cost Centres,Recharge-Teaching Staff
London Borough of Sutton,14/06/2022,50205290,"3,024.64",0,Hackbridge Primary School,GRANTS & EX GRATIA PAYMENTS,Non-Service Cost Centres,Recharge-Teaching Staff
London Borough of Sutton,16/06/2022,50206031,"1,580.00",0,Hackbridge Primary School,GRANTS & EX GRATIA PAYMENTS,Non-Service Cost Centres,Recharge-Teaching Staff
London Borough of Sutton,16/06/2022,50206032,"2,674.36",0,Hackbridge Primary School,GRANTS & EX GRATIA PAYMENTS,Non-Service Cost Centres,Recharge-Teaching Staff
London Borough of Sutton,16/06/2022,50206033,"3,163.63",0,Hackbridge Primary School,GRANTS & EX GRATIA PAYMENTS,Non-Service Cost Centres,Recharge-Teaching Staff
London Borough of Sutton,16/06/2022,50206034,"3,024.64",0,Hackbridge Primary School,GRANTS & EX GRATIA PAYMENTS,Non-Service Cost Centres,Recharge-Teaching Staff
London Borough of Sutton,21/06/2022,50212888,"7,495.83",0,Hackbridge Primary School,GRANTS & EX GRATIA PAYMENTS,Peoples Services,Top-up Funding
London Borough of Sutton,10/06/2022,50204647,"5,810.56",0,Hallmark Care Homes (Banstead) Ltd,SOCIAL SERVICES RESIDENTIAL,Peoples Services,Residential Care - Ext Provider
London Borough of Sutton,10/06/2022,50204985,"5,395.52",0,Hallmark Care Homes (Banstead) Ltd,SOCIAL SERVICES RESIDENTIAL,Peoples Services,Interim Placements - Ext Provider
London Borough of Sutton,10/06/2022,50204515,"8,621.74",0,Hankham Lodge,CHILDREN'S SERVICES - RESIDENTIAL,Peoples Services,Residential Care - Ext Provider
London Borough of Sutton,31/05/2022,50199116,467.68,0,Hats Group Ltd,TAXI AND COACH HIRE,Peoples Services,Hired Peoples Transport (Adults)
London Borough of Sutton,10/06/2022,50204810,"5,046.88",0,Haydon Park Lodge,SOCIAL SERVICES RESIDENTIAL,Peoples Services,Residential Care - Ext Provider
London Borough of Sutton,10/06/2022,50204847,"5,306.28",0,Haydon Park Lodge,SOCIAL SERVICES RESIDENTIAL,Peoples Services,Residential Care - Ext Provider
London Borough of Sutton,07/06/2022,50199517,"1,369.35",0,Hazel W Wheeler,GRANTS & EX GRATIA PAYMENTS,Peoples Services,Place Funding
